{"text_format":"2","workbook":"xlsx","n_sheets":8,"sheets":["PLANILHA","Resumo Parcialmente","Orçamento Sintético (P)","Orçamento Analítico (P)","Resumo Totalmente","Orçamento Sintético (T)","Orçamento Analítico (T)","Planilha1"],"not_rendered":{"charts":0,"images":2,"macros":0,"external_links":2,"defined_names":18,"comments":0,"pivot_tables":0},"unopened":[],"bounds":{"document_bytes":16777216,"sheet_cells":100000,"run_cost":"one","rows_first":2000,"rows_last":500,"rows_between":2000,"halvings":0,"cell_chars":16384,"cell_head_chars":4096},"cells_cut":0,"cells_raw":0,"read":"whole","date_system":"1900"}

{"sheet":"PLANILHA","index":0,"n_rows":23,"n_cols":14,"rows_kept":23,"cut":false,"hidden":false,"merged":[[3,0,4,5],[2,1,2,5],[5,0,5,5],[8,0,14,1],[17,12,17,17],[0,1,0,5],[1,1,1,5]]}
[null,"                                                                    MINISTÉRIO DA INTEGRAÇÃO E DO DESENVOLVIMENTO REGIONAL - MIDR"]
[null,"                                                                    COMPANHIA DE DESENVOLVIMENTO DOS VALES DO SÃO FRANCISCO E PARNAÍBA"]
[null,"                                                                   1ª SUPERINTENDÊNCIA REGIONAL "]
["OBJETO: Execução dos serviços de perfuração e instalação de poços tubulares a serem executados em municípios inseridos na área de atuação da 1ª Superintendência Regional da CODEVASF, localizados nos estados de Minas Gerais."]
[]
["ANEXO V - PLANILHA ORÇAMENTÁRIA ESTIMATIVA GERAL"]
["Processo:","59510.003036/2024-13-e"]
["Banco:"]
["SINAPI - 09/2024 - Minas Gerais\nSBC - 10/2024 - Minas Gerais\nSICRO3 - 04/2024 - Minas Gerais\nORSE - 06/2024 - Sergipe\nSEINFRA - 028 - Ceará\nCPOS/CDHU - 09/2024 - São Paulo\nFDE - 07/2024 - São Paulo\nEMBASA - 05/2024 - Bahia"]
[]
[null,null,null,"BDI Materiais","BDI Serviços","Encargos Sociais"]
[null,null,null,"Não Desonerado:","Não Desonerado:","Não Desonerado:"]
[null,null,null,0.15279999999999999,0.26340000000000002,"Horista: 108,90%"]
[{"$nulls":5},"Mensalista: 67,79%"]
[]
[null,"GRUPO ÚNICO"]
["ITEM","Desccrição","UNIDADE","QUANTIDADE","PREÇO (R$)","PREÇO TOTAL (R$)"]
[1,"Perfuração e instalação de poço tubular parcialmente revestido, instalado com sistema fotovoltaico, motobomba submersa, reservatório e bebedouro para animais","unid.",26,146087.1,{"$f":"TRUNC((D18*E18),2)","v":3798264.6},{"$nulls":6},"\n"]
[2,"Perfuração e instalação de poço tubular totalmente revestido, instalado com sistema fotovoltaico, motobomba submersa, reservatório e bebedouro para animais","unid.",5,232426.4,{"$f":"TRUNC((D19*E19),2)","v":1162132}]
[null," TOTAL ESTIMADO",null,{"$f":"SUM(D18:D19)","v":31},null,{"$f":"F18+F19","v":4960396.5999999996}]
[]
[]
[{"$nulls":13},{"$f":"150*255","v":38250}]

{"sheet":"Resumo Parcialmente","index":1,"n_rows":23,"n_cols":11,"rows_kept":23,"cut":false,"hidden":false,"merged":[[22,0,22,10],[19,0,19,2],[19,6,19,7],[19,8,19,10],[20,0,20,2],[20,6,20,7],[20,8,20,10],[15,0,15,2],[15,3,15,8],[16,0,16,2],[16,3,16,8],[18,0,18,2],[18,6,18,7],[18,8,18,10],[12,0,12,2],[12,3,12,8],[13,0,13,2],[13,3,13,8],[14,0,14,2],[14,3,14,8],[9,0,9,2],[9,3,9,8],[10,0,10,2],[10,3,10,8],[11,0,11,2],[11,3,11,8],[6,0,6,2],[6,3,6,8],[7,0,7,2],[7,3,7,8],[8,0,8,2],[8,3,8,8],[3,0,3,2],[3,3,3,8],[4,0,4,2],[4,3,4,8],[5,0,5,2],[5,3,5,8],[0,5,0,7],[0,8,0,10],[1,5,1,7],[1,8,1,10],[2,0,2,10]]}
[null,null,null,"Obra:","Bancos",null,null,null,"Encargos Sociais"]
["1ªSR/MG",null,null,"PERFURAÇÃO E INSTALAÇÃO DE POÇO TUBULAR PARCIALMENTE REVESTIDO - 120m","SINAPI - 09/2024 - Minas Gerais\nSBC - 10/2024 - Minas Gerais\nSICRO3 - 04/2024 - Minas Gerais\nORSE - 06/2024 - Sergipe\nSEINFRA - 028 - Ceará\nCPOS/CDHU - 09/2024 - São Paulo\nFDE - 07/2024 - São Paulo\nEMBASA - 05/2024 - Bahia\n",null,null,null,"Não Desonerado: \nHorista: 108,90%\nMensalista: 67,79%"]
["Planilha Orçamentária Resumida"]
["Item",null,null,"Descrição",{"$nulls":5},"Total","Peso (%)"]
[1,null,null,"SERVIÇOS PRELIMINARES",{"$nulls":5},7638.12,{"$f":"J5 / 146087.1","v":5.2284698648956685E-2}]
[2,null,null,"MOBILIZAÇÂO E DESMOBILIZAÇÂO EQUIPES PERFURAÇÂO E INSTALAÇÃO",{"$nulls":5},4407,3.016693465747489E-2]
[3,null,null,"PERFURAÇÃO E COMPLETAÇÃO DE POÇO TUBULAR",{"$nulls":5},32713.97,0.22393469375461625]
[4,null,null,"PÓS PERFURAÇÃO",{"$nulls":5},11799.03,8.0767090318036291E-2]
[5,null,null,"RESERVAÇÃO",{"$nulls":5},27094.09,0.18546531487037526]
[6,null,null,"BEBEDOURO",{"$nulls":5},1951.4,1.3357784499794986E-2]
[7,null,null,"CHAFARIZ",{"$nulls":5},1331.14,9.1119612888475449E-3]
[8,null,null,"CAVALETE",{"$nulls":5},2163.96,1.4812806880278957E-2]
[9,null,null,"INSTALAÇÕES HIDRÁULICAS",{"$nulls":5},21026.04,0.14392810864203615]
[10,null,null,"ESTRUTURA DE FIXAÇÃO PARA MÓDULOS FOTOVOLTÁICOS",{"$nulls":5},5111.04,3.498625135278885E-2]
[11,null,null,"INSTALAÇÕES ELÉTRICAS E BÓIA ELÉTRICA",{"$nulls":5},17574.02,0.12029823304042588]
[12,null,null,"URBANIZAÇÃO",{"$nulls":5},4225.3599999999997,2.892356683102067E-2]
[13,null,null,"OUTROS SERVIÇOS E INSUMOS EXCEPCIONAIS",{"$nulls":5},9051.93,6.1962555215347555E-2]
[]
[]
[]
[{"$nulls":6},"Total Geral",null,146087.1]
[]
["_______________________________________________________________\n1ªGRR/UES"]

{"sheet":"Orçamento Sintético (P)","index":2,"n_rows":66,"n_cols":9,"rows_kept":66,"cut":false,"hidden":false,"merged":[[62,6,62,8],[0,4,0,5],[0,6,0,7],[0,8,0,8],[1,4,1,5],[1,6,1,7],[1,8,1,8],[63,0,63,2],[63,4,63,5],[63,6,63,8],[65,0,65,8],[2,0,2,8],[61,0,61,2],[61,4,61,5],[61,6,61,8],[62,0,62,2],[62,4,62,5]]}
[null,null,null,"Obra:","Bancos",null,null,null,"Encargos Sociais"]
["1ªSR/MG",null,null,"PERFURAÇÃO E INSTALAÇÃO DE POÇO TUBULAR PARCIALMENTE REVESTIDO - 120m","SINAPI - 09/2024 - Minas Gerais\nSBC - 10/2024 - Minas Gerais\nSICRO3 - 04/2024 - Minas Gerais\nORSE - 06/2024 - Sergipe\nSEINFRA - 028 - Ceará\nCPOS/CDHU - 09/2024 - São Paulo\nFDE - 07/2024 - São Paulo\nEMBASA - 05/2024 - Bahia\n",null,null,null,"Não Desonerado: \nHorista: 108,90%\nMensalista: 67,79%"]
["Orçamento Sintético"]
["Item","Código","Banco","Descrição","Und","Quant.","Valor Unit","Total","Peso (%)"]
[" 1 ",null,null,"SERVIÇOS PRELIMINARES",null,null,null,7638.12,{"$f":"H5 / 146087.1","v":5.2284698648956685E-2}]
[" 1.1 "," COMPOSIÇÃO - 046 ","Próprio","Administração Local da Obra - Poço Parcialmente Revestido","un",1,324.98,{"$f":"ROUND(F6 * G6, 2)","v":324.98},{"$f":"H6 / 146087.1","v":2.2245632913515294E-3}]
[" 1.2 "," COMPOSIÇÃO - 003 ","Próprio","Serviço de locação Geológica de campo com relatório hidro geológico e perfil construtivo e geológico esperado. Relatório de Viabilidade de implantação das estruturas e vistorias preliminares","un",1,745.79,{"$f":"ROUND(F7 * G7, 2)","v":745.79},{"$f":"H7 / 146087.1","v":5.1051051051051047E-3}]
[" 1.3 "," 103689 ","SINAPI","FORNECIMENTO E INSTALAÇÃO DE PLACA DE OBRA COM CHAPA GALVANIZADA E ESTRUTURA DE MADEIRA. AF_03/2022_PS","m²",0.72,615.74,{"$f":"ROUND(F8 * G8, 2)","v":443.33},{"$f":"H8 / 146087.1","v":3.0346964242564879E-3}]
[" 1.4 "," COMPOSIÇÃO - 052 ","Próprio","Taxas e emolumentos fiscais , administrativos para obtenção outorga e outros","un",1,6124.02,{"$f":"ROUND(F9 * G9, 2)","v":6124.02},{"$f":"H9 / 146087.1","v":4.1920333828243561E-2}]
[" 2 ",null,null,"MOBILIZAÇÂO E DESMOBILIZAÇÂO EQUIPES PERFURAÇÂO E INSTALAÇÃO",null,null,null,4407,{"$f":"H10 / 146087.1","v":3.016693465747489E-2}]
[" 2.1 "," COMPOSIÇÃO - 006 ","Próprio","Transporte de Comboio Perfuração","km",300,5.8,{"$f":"ROUND(F11 * G11, 2)","v":1740},{"$f":"H11 / 146087.1","v":1.1910702587702816E-2}]
[" 2.2 "," COMPOSIÇÃO - 007 ","Próprio","Transporte de Comboio Instalação","km",300,7.3,{"$f":"ROUND(F12 * G12, 2)","v":2190},{"$f":"H12 / 146087.1","v":1.4991056705212164E-2}]
[" 2.3 "," COMPOSIÇÃO - 067 ","Próprio","Transporte de Equipe Teste de Vazão","km",150,3.18,{"$f":"ROUND(F13 * G13, 2)","v":477},{"$f":"H13 / 146087.1","v":3.2651753645599095E-3}]
[" 3 ",null,null,"PERFURAÇÃO E COMPLETAÇÃO DE POÇO TUBULAR",null,null,null,32713.97,{"$f":"H14 / 146087.1","v":0.22393469375461625}]
[" 3.1 "," 5051 ","ORSE","Perfuraçao em rocha metassedimentar - metassedimento alterado / compacto dn 6\"  (poço 120m)","m",90,197.48,{"$f":"ROUND(F15 * G15, 2)","v":17773.2},{"$f":"H15 / 146087.1","v":0.12166166622514925}]
[" 3.2 "," 5057 ","ORSE","Perfuração rocha sedimentar sedimento / camadas inconsolidadas dn 12.1/2\" - poço até 150m","m",30,312.89,{"$f":"ROUND(F16 * G16, 2)","v":9386.7000000000007},{"$f":"H16 / 146087.1","v":6.4254133321833343E-2}]
[" 3.3 "," COMPOSIÇÃO - 011 ","Próprio","Serviço de lançamento cimentação anelar, incluso materiais.","m³",1.74,684.41,{"$f":"ROUND(F17 * G17, 2)","v":1190.8699999999999},{"$f":"H17 / 146087.1","v":8.1517806842630169E-3}]
[" 3.4 "," 00009854 ","SINAPI","TUBO PVC DE REVESTIMENTO GEOMECANICO NERVURADO STANDARD, DN = 154 MM, COMPRIMENTO = 2 M","M",30,145.44,{"$f":"ROUND(F18 * G18, 2)","v":4363.2},{"$f":"H18 / 146087.1","v":2.9867113523370643E-2}]
[" 4 ",null,null,"PÓS PERFURAÇÃO",null,null,null,11799.03,{"$f":"H19 / 146087.1","v":8.0767090318036291E-2}]
[" 4.1 "," 6305 ","ORSE","Desenvolvimento com Compressor 250psi / 750cfm","h",2,519.46,{"$f":"ROUND(F20 * G20, 2)","v":1038.92},{"$f":"H20 / 146087.1","v":7.1116477772506948E-3}]
[" 4.2 "," COMPOSIÇÃO - 015 ","Próprio","Inspeção ótica em poço tubular câmera com rotação de 360º, visada lateral, com fonte própria de luz, entregue vídeo em cores e marcação de profundidades.","m",120,11.9,{"$f":"ROUND(F21 * G21, 2)","v":1428},{"$f":"H21 / 146087.1","v":9.7749903995629998E-3}]
[" 4.3 "," COMPOSIÇÃO - 053 ","Próprio","Serviço de coleta e Análise Físico-Química e Bacteriológica","un",1,784.81,{"$f":"ROUND(F22 * G22, 2)","v":784.81},{"$f":"H22 / 146087.1","v":5.372206033250026E-3}]
[" 4.4 "," 24.80.22 ","EMBASA","Ensaio de bombeamento poço tubular incluso materiais e grupo gerador","H",24,322.76,{"$f":"ROUND(F23 * G23, 2)","v":7746.24},{"$f":"H23 / 146087.1","v":5.3024805064923596E-2}]
[" 4.5 "," COMPOSIÇÃO - 014 ","Próprio","Serviço de instalação de laje sanitária com dimensões (1,5x1,5x0,3) metros , incluso material.","un",1,801.06,{"$f":"ROUND(F24 * G24, 2)","v":801.06},{"$f":"H24 / 146087.1","v":5.4834410430489753E-3}]
[" 5 ",null,null,"RESERVAÇÃO",null,null,null,27094.09,{"$f":"H25 / 146087.1","v":0.18546531487037526}]
[" 5.1 "," COMPOSIÇÃO - 059 ","Próprio","Fornecimento e instalação de reservatório e base elevada 10 m³","un",0.8,31974.89,{"$f":"ROUND(F26 * G26, 2)","v":25579.91},{"$f":"H26 / 146087.1","v":0.17510040243115238}]
[" 5.2 "," COMPOSIÇÃO - 039 ","Próprio","Fornecimento e execução de reservatório apoiado de 5 m³","un",0.2,7570.91,{"$f":"ROUND(F27 * G27, 2)","v":1514.18},{"$f":"H27 / 146087.1","v":1.0364912439222902E-2}]
[" 6 ",null,null,"BEBEDOURO",null,null,null,1951.4,{"$f":"H28 / 146087.1","v":1.3357784499794986E-2}]
[" 6.1 "," COMPOSIÇÃO - 017 ","Próprio","Serviço de execução do bebedouro em concreto armado, incluso materiais.","un",1,1951.4,{"$f":"ROUND(F29 * G29, 2)","v":1951.4},{"$f":"H29 / 146087.1","v":1.3357784499794986E-2}]
[" 7 ",null,null,"CHAFARIZ",null,null,null,1331.14,{"$f":"H30 / 146087.1","v":9.1119612888475449E-3}]
[" 7.1 "," COMPOSIÇÃO - 045 ","Próprio","Fornecimento de material e instalação do chafariz","un",1,1331.14,{"$f":"ROUND(F31 * G31, 2)","v":1331.14},{"$f":"H31 / 146087.1","v":9.1119612888475449E-3}]
[" 8 ",null,null,"CAVALETE",null,null,null,2163.96,{"$f":"H32 / 146087.1","v":1.4812806880278957E-2}]
[" 8.1 "," COMPOSIÇÃO - 018 ","Próprio","Fornecimento de conexões e Instalação do Cavalete com hidrômetro e clorador de pastilhas","un",1,2163.96,{"$f":"ROUND(F33 * G33, 2)","v":2163.96},{"$f":"H33 / 146087.1","v":1.4812806880278957E-2}]
[" 9 ",null,null,"INSTALAÇÕES HIDRÁULICAS",null,null,null,21026.04,{"$f":"H34 / 146087.1","v":0.14392810864203615}]
[" 9.1 "," COMPOSIÇÃO - 020 ","Próprio","Fornecimento e instalação da rede adutora poço-reservatório-bebedouro em PN80 e DN50MM","m",400,35.72,{"$f":"ROUND(F35 * G35, 2)","v":14288},{"$f":"H35 / 146087.1","v":9.7804665846607949E-2}]
[" 9.2 "," COMPOSIÇÃO - 019 ","Próprio","Montagem hidráulica do equipamento de bombeamento","un",1,187.16,{"$f":"ROUND(F36 * G36, 2)","v":187.16},{"$f":"H36 / 146087.1","v":1.2811535036289993E-3}]
[" 9.3 "," 00038200 ","SINAPI","CORDA DE POLIAMIDA 12 MM TIPO BOMBEIRO, PARA TRABALHO EM ALTURA","100M",0.93,732.17,{"$f":"ROUND((F37 * 1 ) * ROUND(F37, 2), 2)","v":0.86},{"$f":"H37 / 146087.1","v":5.8868989801289773E-6}]
[" 9.4 "," 00009860 ","SINAPI","TUBO PVC, ROSCAVEL,  2\", PARA AGUA FRIA PREDIAL","M",90,55.65,{"$f":"ROUND(F38 * G38, 2)","v":5008.5},{"$f":"H38 / 146087.1","v":3.4284341327879053E-2}]
[" 9.5 "," 00003912 ","SINAPI","LUVA DE FERRO GALVANIZADO, COM ROSCA BSP, DE 2\"","UN",16,45.37,{"$f":"ROUND(F39 * G39, 2)","v":725.92},{"$f":"H39 / 146087.1","v":4.9690903577386362E-3}]
[" 9.6 "," 5128 ","ORSE","Tampa de poço galvanizada em 6\" un","un",1,135.54,{"$f":"ROUND(F40 * G40, 2)","v":135.54},{"$f":"H40 / 146087.1","v":9.2780266019381577E-4}]
[" 11 ",null,null,"ESTRUTURA DE FIXAÇÃO PARA MÓDULOS FOTOVOLTÁICOS",null,null,null,5111.04,{"$f":"H41 / 146087.1","v":3.498625135278885E-2}]
[" 11.1 "," COMPOSIÇÃO - 022 ","Próprio","Serviço de fixação de estruturas para os módulos fotovoltaicos e suportes de concreto, incluso materiais.","m²",16,319.44,{"$f":"ROUND(F42 * G42, 2)","v":5111.04},{"$f":"H42 / 146087.1","v":3.498625135278885E-2}]
[" 12 ",null,null,"INSTALAÇÕES ELÉTRICAS E BÓIA ELÉTRICA",null,null,null,17574.02,{"$f":"H43 / 146087.1","v":0.12029823304042588}]
[" 12.1 "," COMPOSIÇÃO - 021 ","Próprio","Montagem e instalação elétrica do kit de bombeamento e sistema fotovoltaico inclusive sistema de aterramento.","un",1,1361.05,{"$f":"ROUND(F44 * G44, 2)","v":1361.05},{"$f":"H44 / 146087.1","v":9.3167021591913316E-3}]
[" 12.2 "," 00034622 ","SINAPI","FORNECIMENTO DE  CABO FLEXIVEL PVC 750 V, 3 CONDUTORES DE 6,0 MM2","M",105,23.18,{"$f":"ROUND((F45 * 1 ) * ROUND(F45, 2), 2)","v":11025},{"$f":"H45 / 146087.1","v":7.5468675878979041E-2}]
[" 12.3 "," COMPOSIÇÃO - 047 ","Próprio","Fornecimento e instalação de automático de bóia superior e inferior","un",1,86.01,{"$f":"ROUND(F46 * G46, 2)","v":86.01},{"$f":"H46 / 146087.1","v":5.8875835032662024E-4}]
[" 12.4 "," 00039257 ","SINAPI","CABO MULTIPOLAR DE COBRE, FLEXIVEL, CLASSE 4 OU 5, ISOLACAO EM HEPR, COBERTURA EM PVC-ST2, ANTICHAMA BWF-B, 0,6/1 KV, 3 CONDUTORES DE 1,5 MM2","M",200,6.91,{"$f":"ROUND(F47 * G47, 2)","v":1382},{"$f":"H47 / 146087.1","v":9.4601097564398218E-3}]
[" 12.5 "," COTAÇÃO-001 ","Próprio","Fornecimento de kit de bombeamento fotovoltaico, incluindo uma bomba CC de 1500W com controladora de carga externa, caixa de proteção metálica, módulos fotovoltaicos compatíveis com a geração de 2200Wp além de componentes elétricos necessários para interligação dos painéis, como cabos, conectores MC4 e presilhas de fixação.","un",1,12311.06,{"$f":"ROUND(F48 * G48, 2)","v":12311.06},{"$f":"H48 / 146087.1","v":8.4272054137565874E-2}]
[" 13 ",null,null,"URBANIZAÇÃO",null,null,null,4225.3599999999997,{"$f":"H49 / 146087.1","v":2.892356683102067E-2}]
[" 13.1 "," COMPOSIÇÃO - 023 ","Próprio","Cerca com mourões de concreto de 15x15cm, espaçados de 3m e cravados a 0,5m, escoras de 10x10cm nos cantos, e 9 fios de arame de aço ovalado 15x17.","m",28,105.11,{"$f":"ROUND(F50 * G50, 2)","v":2943.08},{"$f":"H50 / 146087.1","v":2.014606354702092E-2}]
[" 13.2 "," COMPOSIÇÃO - 024 ","Próprio","Serviço de instalação de portão de ferro com suporte e batedor conforme projeto, incluso material","m²",1.5,854.85,{"$f":"ROUND(F51 * G51, 2)","v":1282.28},{"$f":"H51 / 146087.1","v":8.7775032839997498E-3}]
[" 14 ",null,null,"OUTROS SERVIÇOS E INSUMOS EXCEPCIONAIS",null,null,null,9051.93,{"$f":"H52 / 146087.1","v":6.1962555215347555E-2}]
[" 14.1 "," COMPOSIÇÃO - 054 ","Próprio","Fornecimento e instalação do pré filtro para revestimento interno","m³",0.18,2103.9299999999998,{"$f":"ROUND(F53 * G53, 2)","v":378.71},{"$f":"H53 / 146087.1","v":2.5923575729821452E-3}]
[" 14.2 "," COMPOSIÇÃO - 025 ","Próprio","Execução de tamponamento conforme especificação","m³",0.24,840.14,{"$f":"ROUND(F54 * G54, 2)","v":201.63},{"$f":"H54 / 146087.1","v":1.3802040015853554E-3}]
[" 14.3 "," COMPOSIÇÃO - 056 ","Próprio","Fornecimento e instalação do filtro para revestimento interno Ø 4 1/2\"","m",0.6,151.94,{"$f":"ROUND(F55 * G55, 2)","v":91.16},{"$f":"H55 / 146087.1","v":6.2401129189367161E-4}]
[" 14.4 "," COMPOSIÇÃO - 055 ","Próprio","Fornecimento e instalação do revestimento interno Ø 4 1/2\"","m",0.6,140.86000000000001,{"$f":"ROUND(F56 * G56, 2)","v":84.52},{"$f":"H56 / 146087.1","v":5.7855895558197809E-4}]
[" 14.5 "," M3929 ","SICRO3","Tubo em aço-carbono - E = 3,00 mm e D = 150 mm (6\")","m",9,216.33,{"$f":"ROUND(F57 * G57, 2)","v":1946.97},{"$f":"H57 / 146087.1","v":1.3327460124815949E-2}]
[" 14.6 "," 00041699 ","SINAPI","TUBO DE REVESTIMENTO, EM ACO, CORPO SCHEDULE 40, PONTEIRA SCHEDULE 80, ROSQUEAVEL E SEGMENTADO PARA PERFURACAO, DIAMETRO 8","M",1.8,2803.67,{"$f":"ROUND(F58 * G58, 2)","v":5046.6099999999997},{"$f":"H58 / 146087.1","v":3.454521309547523E-2}]
[" 14.7 "," M039706073 ","EMBASA","FILTRO NOLD EM AÇO GALVANIZADO DN 6\"","M",1.2,965.11,{"$f":"ROUND(F59 * G59, 2)","v":1158.1300000000001},{"$f":"H59 / 146087.1","v":7.9276678091357838E-3}]
[" 14.8 "," COMPOSIÇÃO - 009 ","Próprio","Limpeza manual , remoção de cerca, capina e instalação dos equipamentos (área do poço, painéis solares, bebedouro e reservatório)","m²",70,2.06,{"$f":"ROUND(F60 * G60, 2)","v":144.19999999999999},{"$f":"H60 / 146087.1","v":9.8708236387744014E-4}]
[]
[]
[]
[{"$nulls":4},"Total Geral",null,146087.1]
[]
["_______________________________________________________________\n1ªGRR/UES"]

{"sheet":"Orçamento Analítico (P)","index":3,"n_rows":453,"n_cols":10,"rows_kept":453,"cut":false,"hidden":false,"merged":[[449,7,449,9],[450,0,450,2],[450,5,450,6],[450,7,450,9],[440,4,440,5],[441,4,441,5],[442,4,442,5],[444,7,444,8],[452,0,452,9],[448,0,448,2],[448,5,448,6],[448,7,448,9],[449,0,449,2],[449,5,449,6],[428,4,428,5],[429,4,429,5],[431,7,431,8],[434,4,434,5],[435,4,435,5],[437,7,437,8],[416,4,416,5],[417,4,417,5],[419,7,419,8],[422,4,422,5],[423,4,423,5],[425,7,425,8],[407,4,407,5],[408,4,408,5],[410,7,410,8],[413,4,413,5],[414,4,414,5],[415,4,415,5],[398,4,398,5],[399,4,399,5],[401,7,401,8],[404,4,404,5],[405,4,405,5],[406,4,406,5],[389,4,389,5],[390,4,390,5],[392,7,392,8],[395,4,395,5],[396,4,396,5],[397,4,397,5],[381,7,381,8],[384,5,384,6],[385,4,385,5],[386,4,386,5],[387,4,387,5],[388,4,388,5],[374,4,374,5],[375,4,375,5],[376,4,376,5],[377,4,377,5],[378,4,378,5],[379,4,379,5],[365,4,365,5],[366,4,366,5],[367,4,367,5],[368,4,368,5],[370,7,370,8],[373,4,373,5],[359,5,359,6],[360,4,360,5],[361,4,361,5],[362,4,362,5],[363,4,363,5],[364,4,364,5],[347,4,347,5],[348,4,348,5],[350,7,350,8],[353,4,353,5],[354,4,354,5],[356,7,356,8],[338,4,338,5],[339,4,339,5],[340,4,340,5],[341,4,341,5],[342,4,342,5],[344,7,344,8],[327,7,327,8],[330,4,330,5],[331,4,331,5],[333,7,333,8],[336,4,336,5],[337,4,337,5],[320,4,320,5],[321,4,321,5],[322,4,322,5],[323,4,323,5],[324,4,324,5],[325,4,325,5],[314,4,314,5],[315,4,315,5],[316,4,316,5],[317,4,317,5],[318,4,318,5],[319,4,319,5],[305,4,305,5],[306,4,306,5],[307,4,307,5],[309,7,309,8],[312,5,312,6],[313,4,313,5],[299,5,299,6],[300,4,300,5],[301,4,301,5],[302,4,302,5],[303,4,303,5],[304,4,304,5],[287,4,287,5],[288,4,288,5],[290,7,290,8],[293,4,293,5],[294,4,294,5],[296,7,296,8],[275,4,275,5],[276,4,276,5],[278,7,278,8],[281,4,281,5],[282,4,282,5],[284,7,284,8],[264,7,264,8],[267,4,267,5],[268,4,268,5],[269,4,269,5],[270,4,270,5],[272,7,272,8],[257,4,257,5],[258,4,258,5],[259,4,259,5],[260,4,260,5],[261,4,261,5],[262,4,262,5],[248,4,248,5],[249,4,249,5],[250,4,250,5],[251,4,251,5],[253,7,253,8],[256,5,256,6],[242,4,242,5],[243,4,243,5],[244,4,244,5],[245,4,245,5],[246,4,246,5],[247,4,247,5],[236,4,236,5],[237,4,237,5],[238,4,238,5],[239,4,239,5],[240,4,240,5],[241,4,241,5],[227,4,227,5],[228,4,228,5],[229,4,229,5],[231,7,231,8],[234,5,234,6],[235,4,235,5],[221,4,221,5],[222,4,222,5],[223,4,223,5],[224,4,224,5],[225,4,225,5],[226,4,226,5],[215,4,215,5],[216,4,216,5],[217,4,217,5],[218,4,218,5],[219,4,219,5],[220,4,220,5],[209,4,209,5],[210,4,210,5],[211,4,211,5],[212,4,212,5],[213,4,213,5],[214,4,214,5],[200,4,200,5],[201,4,201,5],[202,4,202,5],[204,7,204,8],[207,5,207,6],[208,4,208,5],[194,4,194,5],[195,4,195,5],[196,4,196,5],[197,4,197,5],[198,4,198,5],[199,4,199,5],[188,4,188,5],[189,4,189,5],[190,4,190,5],[191,4,191,5],[192,4,192,5],[193,4,193,5],[182,4,182,5],[183,4,183,5],[184,4,184,5],[185,4,185,5],[186,4,186,5],[187,4,187,5],[173,4,173,5],[174,4,174,5],[175,4,175,5],[176,4,176,5],[178,7,178,8],[181,5,181,6],[167,4,167,5],[168,4,168,5],[169,4,169,5],[170,4,170,5],[171,4,171,5],[172,4,172,5],[158,4,158,5],[159,4,159,5],[161,7,161,8],[164,4,164,5],[165,4,165,5],[166,4,166,5],[152,4,152,5],[153,4,153,5],[154,4,154,5],[155,4,155,5],[156,4,156,5],[157,4,157,5],[146,4,146,5],[147,4,147,5],[148,4,148,5],[149,4,149,5],[150,4,150,5],[151,4,151,5],[140,4,140,5],[141,4,141,5],[142,4,142,5],[143,4,143,5],[144,4,144,5],[145,4,145,5],[134,5,134,6],[135,4,135,5],[136,4,136,5],[137,4,137,5],[138,4,138,5],[139,4,139,5],[125,4,125,5],[126,4,126,5],[127,4,127,5],[128,4,128,5],[129,4,129,5],[131,7,131,8],[116,4,116,5],[117,4,117,5],[118,4,118,5],[119,4,119,5],[121,7,121,8],[124,4,124,5],[105,7,105,8],[108,4,108,5],[109,4,109,5],[110,4,110,5],[111,4,111,5],[113,7,113,8],[95,4,95,5],[97,7,97,8],[100,4,100,5],[101,4,101,5],[102,4,102,5],[103,4,103,5],[86,4,86,5],[87,4,87,5],[89,7,89,8],[92,5,92,6],[93,4,93,5],[94,4,94,5],[74,4,74,5],[76,7,76,8],[79,4,79,5],[80,4,80,5],[81,4,81,5],[83,7,83,8],[63,7,63,8],[66,5,66,6],[67,4,67,5],[68,4,68,5],[70,7,70,8],[73,4,73,5],[53,4,53,5],[55,7,55,8],[58,4,58,5],[59,4,59,5],[60,4,60,5],[61,4,61,5],[44,4,44,5],[45,4,45,5],[47,7,47,8],[50,4,50,5],[51,4,51,5],[52,4,52,5],[35,4,35,5],[36,4,36,5],[38,7,38,8],[41,5,41,6],[42,4,42,5],[43,4,43,5],[26,4,26,5],[27,4,27,5],[28,4,28,5],[29,4,29,5],[31,7,31,8],[34,4,34,5],[18,7,18,8],[21,4,21,5],[22,4,22,5],[23,4,23,5],[24,4,24,5],[25,4,25,5],[9,7,9,8],[12,4,12,5],[13,4,13,5],[14,4,14,5],[15,4,15,5],[16,4,16,5],[2,0,2,9],[3,5,3,6],[4,4,4,5],[5,4,5,5],[6,4,6,5],[7,4,7,5],[0,2,0,3],[0,4,0,5],[0,6,0,7],[0,8,0,9],[1,2,1,3],[1,4,1,5],[1,6,1,7],[1,8,1,9]]}
[null,null,"Obra:",null,"Bancos",null,"B.D.I.",null,"Encargos Sociais"]
["1ªSR/MG",null,"PERFURAÇÃO E INSTALAÇÃO DE POÇO TUBULAR PARCIALMENTE \nREVESTIDO - 120m",null,"SINAPI - 09/2024 - Minas Gerais\nSBC - 10/2024 - Minas Gerais\nSICRO3 - 04/2024 - Minas Gerais\nORSE - 06/2024 - Sergipe\nSEINFRA - 028 - Ceará\nCPOS/CDHU - 09/2024 - São Paulo\nFDE - 07/2024 - São Paulo\nEMBASA - 05/2024 - Bahia\n",null,"26,34%",null,"Não Desonerado: \nHorista: 108,90%\nMensalista: 67,79%"]
["Planilha Orçamentária Analítica"]
[" 1 ",null,null,"SERVIÇOS PRELIMINARES",{"$nulls":5},7638.12]
[" 1.1 ","Código","Banco","Descrição","Tipo",null,"Und","Quant.","Valor Unit","Total"]
["Composição"," COMPOSIÇÃO - 046 ","Próprio","Administração Local da Obra - Poço Parcialmente Revestido","CANT - CANTEIRO DE OBRAS",null,"un",1,257.23,257.23]
["Composição Auxiliar"," 012710 ","SBC","DESPESAS GERAIS DE MANUTENCAO CANTEIRO DE OBRAS","INSTALACOES PROVISORIAS",null,"MES",0.03,1805.82,54.17]
["Composição Auxiliar"," 100321 ","SINAPI","TÉCNICO EM SEGURANÇA DO TRABALHO COM ENCARGOS COMPLEMENTARES","SEDI - SERVIÇOS DIVERSOS",null,"MES",0.03,6768.58,203.06]
[{"$nulls":4},"MO sem LS =>",91.2,"LS =>",99.31,"MO com LS =>",190.51]
[{"$nulls":4},"Valor do BDI =>",67.754382000000007,null,"Valor com BDI =>",null,324.98]
[{"$nulls":6},"Quant. =>",1,"Preço Total =>",324.98]
[]
[" 1.2 ","Código","Banco","Descrição","Tipo",null,"Und","Quant.","Valor Unit","Total"]
["Composição"," COMPOSIÇÃO - 003 ","Próprio","Serviço de locação Geológica de campo com relatório hidro geológico e perfil construtivo e geológico esperado. Relatório de Viabilidade de implantação das estruturas e vistorias preliminares","SERT - SERVIÇOS TÉCNICOS",null,"un",1,590.29999999999995,590.29999999999995]
["Composição Auxiliar"," 30.01.45 ","EMBASA","GEOLOGO SENIOR",3001,null,"hora",5,97.41,487.05]
["Insumo"," 5896 ","ORSE","Veículo tipo sedan ou pick-up capacidade 0,6 ton h","Equipamento",null,"h",5,8.33,41.65]
["Insumo"," 00004222 ","SINAPI","GASOLINA COMUM","Material",null,"L",10,6.16,61.6]
[{"$nulls":4},"MO sem LS =>",233.15,"LS =>",253.9,"MO com LS =>",487.05]
[{"$nulls":4},"Valor do BDI =>",155.48501999999999,null,"Valor com BDI =>",null,745.79]
[{"$nulls":6},"Quant. =>",1,"Preço Total =>",745.79]
[]
[" 1.3 ","Código","Banco","Descrição","Tipo",null,"Und","Quant.","Valor Unit","Total"]
["Composição"," 103689 ","SINAPI","FORNECIMENTO E INSTALAÇÃO DE PLACA DE OBRA COM CHAPA GALVANIZADA E ESTRUTURA DE MADEIRA. AF_03/2022_PS","PAVI - PAVIMENTAÇÃO",null,"m²",1,487.37,487.37]
["Composição Auxiliar"," 102234 ","SINAPI","PINTURA IMUNIZANTE PARA MADEIRA, 2 DEMÃOS. AF_01/2021","PINT - PINTURAS",null,"m²",0.5,22.24,11.12]
["Composição Auxiliar"," 88262 ","SINAPI","CARPINTEIRO DE FORMAS COM ENCARGOS COMPLEMENTARES","SEDI - SERVIÇOS DIVERSOS",null,"H",0.37290000000000001,27.78,10.36]
["Composição Auxiliar"," 88316 ","SINAPI","SERVENTE COM ENCARGOS COMPLEMENTARES","SEDI - SERVIÇOS DIVERSOS",null,"H",1.1186,20.420000000000002,22.84]
["Insumo"," 00004509 ","SINAPI","SARRAFO *2,5 X 10* CM EM PINUS, MISTA OU EQUIVALENTE DA REGIAO - BRUTA","Material",null,"M",3.2082999999999999,4.0199999999999996,12.9]
["Insumo"," 00004813 ","SINAPI","PLACA DE OBRA (PARA CONSTRUCAO CIVIL) EM CHAPA GALVANIZADA *N. 22*, ADESIVADA, DE *2,4 X 1,2* M (SEM POSTES PARA FIXACAO)","Material",null,"m²",1,429.5,429.5]
["Insumo"," 00005065 ","SINAPI","PREGO DE ACO POLIDO COM CABECA 10 X 10 (7/8 X 17)","Material",null,"KG",1.1299999999999999E-2,35.119999999999997,0.4]
["Insumo"," 00005069 ","SINAPI","PREGO DE ACO POLIDO COM CABECA 17 X 27 (2 1/2 X 11)","Material",null,"KG",1.32E-2,18.82,0.25]
[{"$nulls":4},"MO sem LS =>",14.07,"LS =>",15.33,"MO com LS =>",29.4]
[{"$nulls":4},"Valor do BDI =>",128.37325799999999,null,"Valor com BDI =>",null,615.74]
[{"$nulls":6},"Quant. =>",0.72,"Preço Total =>",443.33]
[]
[" 1.4 ","Código","Banco","Descrição","Tipo",null,"Und","Quant.","Valor Unit","Total"]
["Composição"," COMPOSIÇÃO - 052 ","Próprio","Taxas e emolumentos fiscais , administrativos para obtenção outorga e outros","ASTU - ASSENTAMENTO DE TUBOS E PECAS",null,"un",1,4847.25,4847.25]
["Insumo"," A.09.000.020507 ","CPOS/CDHU","Outorga de direito de uso para poço profundo conforme Portaria DAEE nº 1.630 de 30/05/2017 e suas complementares 1.631 a 1.635 e Instrução Técnica DPO nº 10 de 30/05/2017 do DAEE","Material",null,"UN",1,4847.25,4847.25]
[{"$nulls":4},"MO sem LS =>",0,"LS =>",0,"MO com LS =>",0]
[{"$nulls":4},"Valor do BDI =>",1276.7656500000001,null,"Valor com BDI =>",null,6124.02]
[{"$nulls":6},"Quant. =>",1,"Preço Total =>",6124.02]
[]
[" 2 ",null,null,"MOBILIZAÇÂO E DESMOBILIZAÇÂO EQUIPES PERFURAÇÂO E INSTALAÇÃO",{"$nulls":5},4407]
[" 2.1 ","Código","Banco","Descrição","Tipo",null,"Und","Quant.","Valor Unit","Total"]
["Composição"," COMPOSIÇÃO - 006 ","Próprio","Transporte de Comboio Perfuração","TRAN - TRANSPORTES, CARGAS E DESCARGAS",null,"km",1,4.59,4.59]
["Composição Auxiliar"," 5824 ","SINAPI","CAMINHÃO TOCO, PBT 16.000 KG, CARGA ÚTIL MÁX. 10.685 KG, DIST. ENTRE EIXOS 4,8 M, POTÊNCIA 189 CV, INCLUSIVE CARROCERIA FIXA ABERTA DE MADEIRA P/ TRANSPORTE GERAL DE CARGA SECA, DIMEN. APROX. 2,5 X 7,00 X 0,50 M - CHP DIURNO. AF_06/2014","CHOR - CUSTOS HORÁRIOS DE MÁQUINAS E EQUIPAMENTOS",null,"CHP",1.6660000000000001E-2,213.13,3.55]
["Composição Auxiliar"," 5826 ","SINAPI","CAMINHÃO TOCO, PBT 16.000 KG, CARGA ÚTIL MÁX. 10.685 KG, DIST. ENTRE EIXOS 4,8 M, POTÊNCIA 189 CV, INCLUSIVE CARROCERIA FIXA ABERTA DE MADEIRA P/ TRANSPORTE GERAL DE CARGA SECA, DIMEN. APROX. 2,5 X 7,00 X 0,50 M - CHI DIURNO. AF_06/2014","CHOR - CUSTOS HORÁRIOS DE MÁQUINAS E EQUIPAMENTOS",null,"CHI",1.6660000000000001E-2,62.19,1.04]
[{"$nulls":4},"MO sem LS =>",0.4,"LS =>",0.44,"MO com LS =>",0.84]
[{"$nulls":4},"Valor do BDI =>",1.209006,null,"Valor com BDI =>",null,5.8]
[{"$nulls":6},"Quant. =>",300,"Preço Total =>",1740]
[]
[" 2.2 ","Código","Banco","Descrição","Tipo",null,"Und","Quant.","Valor Unit","Total"]
["Composição"," COMPOSIÇÃO - 007 ","Próprio","Transporte de Comboio Instalação","TRAN - TRANSPORTES, CARGAS E DESCARGAS",null,"km",1,5.78,5.78]
["Composição Auxiliar"," 5928 ","SINAPI","GUINDAUTO HIDRÁULICO, CAPACIDADE MÁXIMA DE CARGA 6200 KG, MOMENTO MÁXIMO DE CARGA 11,7 TM, ALCANCE MÁXIMO HORIZONTAL 9,70 M, INCLUSIVE CAMINHÃO TOCO PBT 16.000 KG, POTÊNCIA DE 189 CV - CHP DIURNO. AF_06/2014","CHOR - CUSTOS HORÁRIOS DE MÁQUINAS E EQUIPAMENTOS",null,"CHP",1.6660000000000001E-2,272.82,4.55]
["Composição Auxiliar"," 5930 ","SINAPI","GUINDAUTO HIDRÁULICO, CAPACIDADE MÁXIMA DE CARGA 6200 KG, MOMENTO MÁXIMO DE CARGA 11,7 TM, ALCANCE MÁXIMO HORIZONTAL 9,70 M, INCLUSIVE CAMINHÃO TOCO PBT 16.000 KG, POTÊNCIA DE 189 CV - CHI DIURNO. AF_06/2014","CHOR - CUSTOS HORÁRIOS DE MÁQUINAS E EQUIPAMENTOS",null,"CHI",1.6660000000000001E-2,73.84,1.23]
[{"$nulls":4},"MO sem LS =>",0.45,"LS =>",0.51,"MO com LS =>",0.96]
[{"$nulls":4},"Valor do BDI =>",1.5224519999999999,null,"Valor com BDI =>",null,7.3]
[{"$nulls":6},"Quant. =>",300,"Preço Total =>",2190]
[]
[" 2.3 ","Código","Banco","Descrição","Tipo",null,"Und","Quant.","Valor Unit","Total"]
["Composição"," COMPOSIÇÃO - 067 ","Próprio","Transporte de Equipe Teste de Vazão","TRAN - TRANSPORTES, CARGAS E DESCARGAS",null,"km",1,2.52,2.52]
["Composição Auxiliar"," 73467 ","SINAPI","CAMINHÃO TOCO, PBT 14.300 KG, CARGA ÚTIL MÁX. 9.710 KG, DIST. ENTRE EIXOS 3,56 M, POTÊNCIA 185 CV, INCLUSIVE CARROCERIA FIXA ABERTA DE MADEIRA P/ TRANSPORTE GERAL DE CARGA SECA, DIMEN. APROX. 2,50 X 6,50 X 0,50 M - CHP DIURNO. AF_06/2014","CHOR - CUSTOS HORÁRIOS DE MÁQUINAS E EQUIPAMENTOS",null,"CHP",8.3000000000000001E-3,244.26,2.0299999999999998]
["Composição Auxiliar"," 91395 ","SINAPI","CAMINHÃO TOCO, PBT 14.300 KG, CARGA ÚTIL MÁX. 9.710 KG, DIST. ENTRE EIXOS 3,56 M, POTÊNCIA 185 CV, INCLUSIVE CARROCERIA FIXA ABERTA DE MADEIRA P/ TRANSPORTE GERAL DE CARGA SECA, DIMEN. APROX. 2,50 X 6,50 X 0,50 M - CHI DIURNO. AF_06/2014","CHOR - CUSTOS HORÁRIOS DE MÁQUINAS E EQUIPAMENTOS",null,"CHI",8.3000000000000001E-3,59.38,0.49]
[{"$nulls":4},"MO sem LS =>",0.2,"LS =>",0.22,"MO com LS =>",0.42]
[{"$nulls":4},"Valor do BDI =>",0.66376800000000002,null,"Valor com BDI =>",null,3.18]
[{"$nulls":6},"Quant. =>",150,"Preço Total =>",477]
[]
[" 3 ",null,null,"PERFURAÇÃO E COMPLETAÇÃO DE POÇO TUBULAR",{"$nulls":5},32713.97]
[" 3.1 ","Código","Banco","Descrição","Tipo",null,"Und","Quant.","Valor Unit","Total"]
["Insumo"," 5051 ","ORSE","Perfuraçao em rocha metassedimentar - metassedimento alterado / compacto dn 6\"  (poço 120m)","Serviços",null,"m",1,156.31,156.31]
[{"$nulls":4},"MO sem LS =>",0,"LS =>",0,"MO com LS =>",0]
[{"$nulls":4},"Valor do BDI =>",41.17,null,"Valor com BDI =>",null,197.48]
[{"$nulls":6},"Quant. =>",90,"Preço Total =>",17773.2]
[]
[" 3.2 ","Código","Banco","Descrição","Tipo",null,"Und","Quant.","Valor Unit","Total"]
["Insumo"," 5057 ","ORSE","Perfuração rocha sedimentar sedimento / camadas inconsolidadas dn 12.1/2\" - poço até 150m","Serviços",null,"m",1,247.66,247.66]
[{"$nulls":4},"MO sem LS =>",0,"LS =>",0,"MO com LS =>",0]
[{"$nulls":4},"Valor do BDI =>",65.23,null,"Valor com BDI =>",null,312.89]
[{"$nulls":6},"Quant. =>",30,"Preço Total =>",9386.7000000000007]
[]
[" 3.3 ","Código","Banco","Descrição","Tipo",null,"Und","Quant.","Valor Unit","Total"]
["Composição"," COMPOSIÇÃO - 011 ","Próprio","Serviço de lançamento cimentação anelar, incluso materiais.","SEDI - SERVIÇOS DIVERSOS",null,"m³",1,541.72,541.72]
["Composição Auxiliar"," 1903 ","ORSE","Argamassa cimento e areia traço t-1 (1:3) - 1 saco cimento 50kg / 3 padiolas areia dim. 0.35 x 0.45 x 0.23 m - Confecção mecânica e transporte","Argamassas",null,"m³",1,541.72,541.72]
[{"$nulls":4},"MO sem LS =>",26.14,"LS =>",28.46,"MO com LS =>",54.6]
[{"$nulls":4},"Valor do BDI =>",142.68904800000001,null,"Valor com BDI =>",null,684.41]
[{"$nulls":6},"Quant. =>",1.74,"Preço Total =>",1190.8699999999999]
[]
[" 3.4 ","Código","Banco","Descrição","Tipo",null,"Und","Quant.","Valor Unit","Total"]
["Insumo"," 00009854 ","SINAPI","TUBO PVC DE REVESTIMENTO GEOMECANICO NERVURADO STANDARD, DN = 154 MM, COMPRIMENTO = 2 M","Material",null,"M",1,115.12,115.12]
[{"$nulls":4},"MO sem LS =>",0,"LS =>",0,"MO com LS =>",0]
[{"$nulls":4},"Valor do BDI =>",30.32,null,"Valor com BDI =>",null,145.44]
[{"$nulls":6},"Quant. =>",30,"Preço Total =>",4363.2]
[]
[" 4 ",null,null,"PÓS PERFURAÇÃO",{"$nulls":5},11799.03]
[" 4.1 ","Código","Banco","Descrição","Tipo",null,"Und","Quant.","Valor Unit","Total"]
["Composição"," 6305 ","ORSE","Desenvolvimento com Compressor 250psi / 750cfm","Conversão InfoWOrca",null,"h",1,411.16,411.16]
["Insumo"," 5030 ","ORSE","Desenvolvimento com compressor 250psi - 750cfm h","Serviços",null,"h",1,411.16,411.16]
[{"$nulls":4},"MO sem LS =>",0,"LS =>",0,"MO com LS =>",0]
[{"$nulls":4},"Valor do BDI =>",108.299544,null,"Valor com BDI =>",null,519.46]
[{"$nulls":6},"Quant. =>",2,"Preço Total =>",1038.92]
[]
[" 4.2 ","Código","Banco","Descrição","Tipo",null,"Und","Quant.","Valor Unit","Total"]
["Composição"," COMPOSIÇÃO - 015 ","Próprio","Inspeção ótica em poço tubular câmera com rotação de 360º, visada lateral, com fonte própria de luz, entregue vídeo em cores e marcação de profundidades.","SEES - SERVIÇOS ESPECIAIS",null,"m",1,9.42,9.42]
["Insumo"," H020050004 ","EMBASA","APARELHO DE PERFILAGEM OPTICA","Material",null,"M",1,4.4000000000000004,4.4000000000000004]
["Insumo"," B590000022 ","EMBASA","TECNICO MEDIO","Mão de Obra",null,"H",8.3500000000000005E-2,60.147199999999998,5.0199999999999996]
[{"$nulls":4},"MO sem LS =>",2.4,"LS =>",2.62,"MO com LS =>",5.0199999999999996]
[{"$nulls":4},"Valor do BDI =>",2.4812280000000002,null,"Valor com BDI =>",null,11.9]
[{"$nulls":6},"Quant. =>",120,"Preço Total =>",1428]
[]
[" 4.3 ","Código","Banco","Descrição","Tipo",null,"Und","Quant.","Valor Unit","Total"]
["Composição"," COMPOSIÇÃO - 053 ","Próprio","Serviço de coleta e Análise Físico-Química e Bacteriológica","SEDI - SERVIÇOS DIVERSOS",null,"un",1,621.19000000000005,621.19000000000005]
["Composição Auxiliar"," 6312 ","ORSE","Análise Físico-química da Água","Conversão InfoWOrca",null,"un",1,565.21,565.21]
["Composição Auxiliar"," 6313 ","ORSE","Análise Bacteriológica da Água","Conversão InfoWOrca",null,"un",1,55.98,55.98]
[{"$nulls":4},"MO sem LS =>",0,"LS =>",0,"MO com LS =>",0]
[{"$nulls":4},"Valor do BDI =>",163.62144599999999,null,"Valor com BDI =>",null,784.81]
[{"$nulls":6},"Quant. =>",1,"Preço Total =>",784.81]
[]
[" 4.4 ","Código","Banco","Descrição","Tipo",null,"Und","Quant.","Valor Unit","Total"]
["Composição"," 24.80.22 ","EMBASA","Ensaio de bombeamento poço tubular incluso materiais e grupo gerador",2480,null,"H",1,255.47,255.47]
["Composição Auxiliar"," 24.00.15 ","EMBASA","EQUIPE (3 PROFISSIONAIS CAMPO) - BOMBEIO",2400,null,"H",1,190.55,190.55]
["Insumo"," H020050001 ","EMBASA","UNIDADE DE ENSAIO E BOMBEAMENTO - UEB1 ATE 150M3 NO SEDIMENTO","Material",null,"H",1,64.92,64.92]
[{"$nulls":4},"MO sem LS =>",91.22,"LS =>",99.33,"MO com LS =>",190.55]
[{"$nulls":4},"Valor do BDI =>",67.290797999999995,null,"Valor com BDI =>",null,322.76]
[{"$nulls":6},"Quant. =>",24,"Preço Total =>",7746.24]
[]
[" 4.5 ","Código","Banco","Descrição","Tipo",null,"Und","Quant.","Valor Unit","Total"]
["Composição"," COMPOSIÇÃO - 014 ","Próprio","Serviço de instalação de laje sanitária com dimensões (1,5x1,5x0,3) metros , incluso material.","SEDI - SERVIÇOS DIVERSOS",null,"un",1,634.04999999999995,634.04999999999995]
["Composição Auxiliar"," 92522 ","SINAPI","MONTAGEM E DESMONTAGEM DE FÔRMA DE LAJE MACIÇA, PÉ-DIREITO SIMPLES, EM CHAPA DE MADEIRA COMPENSADA RESINADA, 8 UTILIZAÇÕES. AF_09/2020","FUES - FUNDAÇÕES E ESTRUTURAS",null,"m²",1.8,38.4,69.12]
["Composição Auxiliar"," 93358 ","SINAPI","ESCAVAÇÃO MANUAL DE VALA COM PROFUNDIDADE MENOR OU IGUAL A 1,30 M. AF_02/2021","MOVT - MOVIMENTO DE TERRA",null,"m³",0.22500000000000001,80.78,18.18]
["Composição Auxiliar"," 94975 ","SINAPI","CONCRETO FCK = 15MPA, TRAÇO 1:3,4:3,5 (EM MASSA SECA DE CIMENTO/ AREIA MÉDIA/ BRITA 1) - PREPARO MANUAL. AF_05/2021","FUES - FUNDAÇÕES E ESTRUTURAS",null,"m³",0.67500000000000004,519.59,350.72]
["Composição Auxiliar"," 103670 ","SINAPI","LANÇAMENTO COM USO DE BALDES, ADENSAMENTO E ACABAMENTO DE CONCRETO EM ESTRUTURAS. AF_02/2022","FUES - FUNDAÇÕES E ESTRUTURAS",null,"m³",0.67500000000000004,290.42,196.03]
[{"$nulls":4},"MO sem LS =>",116.8,"LS =>",127.2,"MO com LS =>",244]
[{"$nulls":4},"Valor do BDI =>",167.00877,null,"Valor com BDI =>",null,801.06]
[{"$nulls":6},"Quant. =>",1,"Preço Total =>",801.06]
[]
[" 5 ",null,null,"RESERVAÇÃO",{"$nulls":5},27094.09]
[" 5.1 ","Código","Banco","Descrição","Tipo",null,"Und","Quant.","Valor Unit","Total"]
["Composição"," COMPOSIÇÃO - 059 ","Próprio","Fornecimento e instalação de reservatório e base elevada 10 m³","ASTU - ASSENTAMENTO DE TUBOS E PECAS",null,"un",1,25308.6,25308.6]
["Composição Auxiliar"," 92759 ","SINAPI","ARMAÇÃO DE PILAR OU VIGA DE ESTRUTURA CONVENCIONAL DE CONCRETO ARMADO UTILIZANDO AÇO CA-60 DE 5,0 MM - MONTAGEM. AF_06/2022","FUES - FUNDAÇÕES E ESTRUTURAS",null,"KG",29.1,14,407.4]
["Composição Auxiliar"," 92761 ","SINAPI","ARMAÇÃO DE PILAR OU VIGA DE ESTRUTURA CONVENCIONAL DE CONCRETO ARMADO UTILIZANDO AÇO CA-50 DE 8,0 MM - MONTAGEM. AF_06/2022","FUES - FUNDAÇÕES E ESTRUTURAS",null,"KG",48,12.31,590.88]
["Composição Auxiliar"," 93358 ","SINAPI","ESCAVAÇÃO MANUAL DE VALA COM PROFUNDIDADE MENOR OU IGUAL A 1,30 M. AF_02/2021","MOVT - MOVIMENTO DE TERRA",null,"m³",5.2,80.78,420.06]
["Composição Auxiliar"," 92763 ","SINAPI","ARMAÇÃO DE PILAR OU VIGA DE ESTRUTURA CONVENCIONAL DE CONCRETO ARMADO UTILIZANDO AÇO CA-50 DE 12,5 MM - MONTAGEM. AF_06/2022","FUES - FUNDAÇÕES E ESTRUTURAS",null,"KG",118.4,9.19,1088.0999999999999]
["Composição Auxiliar"," 94970 ","SINAPI","CONCRETO FCK = 20MPA, TRAÇO 1:2,7:3 (EM MASSA SECA DE CIMENTO/ AREIA MÉDIA/ BRITA 1) - PREPARO MECÂNICO COM BETONEIRA 600 L. AF_05/2021","FUES - FUNDAÇÕES E ESTRUTURAS",null,"m³",4.8899999999999997,500.39,2446.91]
["Composição Auxiliar"," 103670 ","SINAPI","LANÇAMENTO COM USO DE BALDES, ADENSAMENTO E ACABAMENTO DE CONCRETO EM ESTRUTURAS. AF_02/2022","FUES - FUNDAÇÕES E ESTRUTURAS",null,"m³",6.85,290.42,1989.38]
["Composição Auxiliar"," 84651 ","SINAPI","PINTURA COM TINTA IMPERMEAVEL MINERAL EM PO, DUAS DEMAOS","PINT - PINTURAS",null,"m²",28.66,13.29,380.89]
["Composição Auxiliar"," 90776 ","SINAPI","ENCARREGADO GERAL COM ENCARGOS COMPLEMENTARES","SEDI - SERVIÇOS DIVERSOS",null,"H",1,55.16,55.16]
["Composição Auxiliar"," 102482 ","SINAPI","CONCRETO FCK = 25MPA, TRAÇO 1:2,2:2,5 (EM MASSA SECA DE CIMENTO/ AREIA MÉDIA/ SEIXO ROLADO) - PREPARO MECÂNICO COM BETONEIRA 600 L. AF_05/2021","FUES - FUNDAÇÕES E ESTRUTURAS",null,"m³",1.96,713.85,1399.15]
["Composição Auxiliar"," 92263 ","SINAPI","FABRICAÇÃO DE FÔRMA PARA PILARES E ESTRUTURAS SIMILARES, EM CHAPA DE MADEIRA COMPENSADA RESINADA, E = 17 MM. AF_09/2020","FUES - FUNDAÇÕES E ESTRUTURAS",null,"m²",18.100000000000001,156.69,2836.09]
["Composição Auxiliar"," 89272 ","SINAPI","GUINDASTE HIDRÁULICO AUTOPROPELIDO, COM LANÇA TELESCÓPICA 28,80 M, CAPACIDADE MÁXIMA 30 T, POTÊNCIA 97 KW, TRAÇÃO 4 X 4 - CHP DIURNO. AF_11/2014","CHOR - CUSTOS HORÁRIOS DE MÁQUINAS E EQUIPAMENTOS",null,"CHP",13,225.81,2935.53]
["Composição Auxiliar"," 5824 ","SINAPI","CAMINHÃO TOCO, PBT 16.000 KG, CARGA ÚTIL MÁX. 10.685 KG, DIST. ENTRE EIXOS 4,8 M, POTÊNCIA 189 CV, INCLUSIVE CARROCERIA FIXA ABERTA DE MADEIRA P/ TRANSPORTE GERAL DE CARGA SECA, DIMEN. APROX. 2,5 X 7,00 X 0,50 M - CHP DIURNO. AF_06/2014","CHOR - CUSTOS HORÁRIOS DE MÁQUINAS E EQUIPAMENTOS",null,"CHP",24,213.13,5115.12]
["Composição Auxiliar"," 88267 ","SINAPI","ENCANADOR OU BOMBEIRO HIDRÁULICO COM ENCARGOS COMPLEMENTARES","SEDI - SERVIÇOS DIVERSOS",null,"H",4,27.39,109.56]
["Composição Auxiliar"," 88248 ","SINAPI","AUXILIAR DE ENCANADOR OU BOMBEIRO HIDRÁULICO COM ENCARGOS COMPLEMENTARES","SEDI - SERVIÇOS DIVERSOS",null,"H",4,21.99,87.96]
["Insumo"," 00011677 ","SINAPI","REGISTRO DE ESFERA, PVC, COM VOLANTE, VS, SOLDAVEL, DN 50 MM, COM CORPO DIVIDIDO","Material",null,"UN",1,32.78,32.78]
["Insumo"," 00003146 ","SINAPI","FITA VEDA ROSCA EM ROLOS DE 18 MM X 10 M (L X C)","Material",null,"UN",0.18,3.93,0.71]
["Insumo"," 00037106 ","SINAPI","CAIXA D'AGUA / RESERVATORIO EM POLIESTER REFORCADO COM FIBRA DE VIDRO, 10000 LITROS, COM TAMPA","Material",null,"UN",1,5073.93,5073.93]
["Insumo"," 00009875 ","SINAPI","TUBO PVC, SOLDAVEL, DE 50 MM, AGUA FRIA (NBR-5648)","Material",null,"M",15.2,15.16,230.43]
["Insumo"," 00000113 ","SINAPI","ADAPTADOR PVC SOLDAVEL CURTO COM BOLSA E ROSCA, 60 MM X 2\", PARA AGUA FRIA","Material",null,"UN",1,10.97,10.97]
["Insumo"," 00003871 ","SINAPI","LUVA SOLDAVEL COM ROSCA, PVC, 50 MM X 1 1/2\", PARA AGUA FRIA PREDIAL","Material",null,"UN",1,17.95,17.95]
["Insumo"," 00003540 ","SINAPI","JOELHO PVC, SOLDAVEL, 90 GRAUS, 50 MM, COR MARROM, PARA AGUA FRIA PREDIAL","Material",null,"UN",5,4.9000000000000004,24.5]
["Insumo"," 00000099 ","SINAPI","ADAPTADOR PVC SOLDAVEL, COM FLANGE E ANEL DE VEDACAO, 50 MM X 1 1/2\", PARA CAIXA D'AGUA","Material",null,"UN",2,25.76,51.52]
["Insumo"," 00000119 ","SINAPI","ADESIVO PLASTICO PARA PVC, BISNAGA COM 75 GR","Material",null,"UN",0.45,8.0500000000000007,3.62]
[{"$nulls":4},"MO sem LS =>",2216.34,"LS =>",2413.7199999999998,"MO com LS =>",4630.0600000000004]
[{"$nulls":4},"Valor do BDI =>",6666.2852400000002,null,"Valor com BDI =>",null,31974.89]
[{"$nulls":6},"Quant. =>",0.8,"Preço Total =>",25579.91]
[]
[" 5.2 ","Código","Banco","Descrição","Tipo",null,"Und","Quant.","Valor Unit","Total"]
["Composição"," COMPOSIÇÃO - 039 ","Próprio","Fornecimento e execução de reservatório apoiado de 5 m³","SEDI - SERVIÇOS DIVERSOS",null,"un",1,5992.49,5992.49]
["Composição Auxiliar"," 5928 ","SINAPI","GUINDAUTO HIDRÁULICO, CAPACIDADE MÁXIMA DE CARGA 6200 KG, MOMENTO MÁXIMO DE CARGA 11,7 TM, ALCANCE MÁXIMO HORIZONTAL 9,70 M, INCLUSIVE CAMINHÃO TOCO PBT 16.000 KG, POTÊNCIA DE 189 CV - CHP DIURNO. AF_06/2014","CHOR - CUSTOS HORÁRIOS DE MÁQUINAS E EQUIPAMENTOS",null,"CHP",4,272.82,1091.28]
["Composição Auxiliar"," 88309 ","SINAPI","PEDREIRO COM ENCARGOS COMPLEMENTARES","SEDI - SERVIÇOS DIVERSOS",null,"H",3,28.16,84.48]
["Composição Auxiliar"," 88316 ","SINAPI","SERVENTE COM ENCARGOS COMPLEMENTARES","SEDI - SERVIÇOS DIVERSOS",null,"H",3,20.420000000000002,61.26]
["Composição Auxiliar"," 88262 ","SINAPI","CARPINTEIRO DE FORMAS COM ENCARGOS COMPLEMENTARES","SEDI - SERVIÇOS DIVERSOS",null,"H",3,27.78,83.34]
["Composição Auxiliar"," 102617 ","SINAPI","CAIXA D´ÁGUA EM POLIÉSTER REFORÇADO COM FIBRA DE VIDRO, 5000 LITROS - FORNECIMENTO E INSTALAÇÃO. AF_06/2021","INHI - INSTALAÇÕES HIDROS SANITÁRIAS",null,"UN",1,3517.25,3517.25]
["Composição Auxiliar"," 92783 ","SINAPI","ARMAÇÃO DE LAJE DE UMA ESTRUTURA CONVENCIONAL DE CONCRETO ARMADO EM UMA EDIFICAÇÃO TÉRREA OU SOBRADO UTILIZANDO AÇO CA-60 DE 4,2 MM - MONTAGEM. AF_12/2015","FUES - FUNDAÇÕES E ESTRUTURAS",null,"KG",3.2,18.07,57.82]
["Composição Auxiliar"," 92759 ","SINAPI","ARMAÇÃO DE PILAR OU VIGA DE ESTRUTURA CONVENCIONAL DE CONCRETO ARMADO UTILIZANDO AÇO CA-60 DE 5,0 MM - MONTAGEM. AF_06/2022","FUES - FUNDAÇÕES E ESTRUTURAS",null,"KG",5.6,14,78.400000000000006]
["Composição Auxiliar"," 94964 ","SINAPI","CONCRETO FCK = 20MPA, TRAÇO 1:2,7:3 (EM MASSA SECA DE CIMENTO/ AREIA MÉDIA/ BRITA 1) - PREPARO MECÂNICO COM BETONEIRA 400 L. AF_05/2021","FUES - FUNDAÇÕES E ESTRUTURAS",null,"m³",1.56,513.20000000000005,800.59]
["Composição Auxiliar"," 84651 ","SINAPI","PINTURA COM TINTA IMPERMEAVEL MINERAL EM PO, DUAS DEMAOS","PINT - PINTURAS",null,"m²",2.7,13.29,35.880000000000003]
["Composição Auxiliar"," 92783 ","SINAPI","ARMAÇÃO DE LAJE DE UMA ESTRUTURA CONVENCIONAL DE CONCRETO ARMADO EM UMA EDIFICAÇÃO TÉRREA OU SOBRADO UTILIZANDO AÇO CA-60 DE 4,2 MM - MONTAGEM. AF_12/2015","FUES - FUNDAÇÕES E ESTRUTURAS",null,"KG",3.2,18.07,57.82]
["Insumo"," 00007155 ","SINAPI","TELA DE ACO SOLDADA NERVURADA, CA-60, Q-138, (2,20 KG/M2), DIAMETRO DO FIO = 4,2 MM, LARGURA = 2,45 M, ESPACAMENTO DA MALHA = 10  X 10 CM","Material",null,"m²",6.16,20.190000000000001,124.37]
[{"$nulls":4},"MO sem LS =>",300.93,"LS =>",327.73,"MO com LS =>",628.66]
[{"$nulls":4},"Valor do BDI =>",1578.4218659999999,null,"Valor com BDI =>",null,7570.91]
[{"$nulls":6},"Quant. =>",0.2,"Preço Total =>",1514.18]
[]
[" 6 ",null,null,"BEBEDOURO",{"$nulls":5},1951.4]
[" 6.1 ","Código","Banco","Descrição","Tipo",null,"Und","Quant.","Valor Unit","Total"]
["Composição"," COMPOSIÇÃO - 017 ","Próprio","Serviço de execução do bebedouro em concreto armado, incluso materiais.","SEDI - SERVIÇOS DIVERSOS",null,"un",1,1544.56,1544.56]
["Composição Auxiliar"," 5928 ","SINAPI","GUINDAUTO HIDRÁULICO, CAPACIDADE MÁXIMA DE CARGA 6200 KG, MOMENTO MÁXIMO DE CARGA 11,7 TM, ALCANCE MÁXIMO HORIZONTAL 9,70 M, INCLUSIVE CAMINHÃO TOCO PBT 16.000 KG, POTÊNCIA DE 189 CV - CHP DIURNO. AF_06/2014","CHOR - CUSTOS HORÁRIOS DE MÁQUINAS E EQUIPAMENTOS",null,"CHP",2,272.82,545.64]
["Composição Auxiliar"," 87445 ","SINAPI","BETONEIRA CAPACIDADE NOMINAL 400 L, CAPACIDADE DE MISTURA 310 L, MOTOR A DIESEL POTÊNCIA 5,0 HP, SEM CARREGADOR - CHP DIURNO. AF_05/2023","CHOR - CUSTOS HORÁRIOS DE MÁQUINAS E EQUIPAMENTOS",null,"CHP",0.5,5.38,2.69]
["Composição Auxiliar"," 88377 ","SINAPI","OPERADOR DE BETONEIRA ESTACIONÁRIA/MISTURADOR COM ENCARGOS COMPLEMENTARES","SEDI - SERVIÇOS DIVERSOS",null,"H",0.5,25.33,12.67]
["Composição Auxiliar"," 88310 ","SINAPI","PINTOR COM ENCARGOS COMPLEMENTARES","SEDI - SERVIÇOS DIVERSOS",null,"H",0.3,29.64,8.89]
["Composição Auxiliar"," 100301 ","SINAPI","AJUDANTE DE PINTOR COM ENCARGOS COMPLEMENTARES","SEDI - SERVIÇOS DIVERSOS",null,"H",0.1,24.26,2.4300000000000002]
["Composição Auxiliar"," 88245 ","SINAPI","ARMADOR COM ENCARGOS COMPLEMENTARES","SEDI - SERVIÇOS DIVERSOS",null,"H",3,27.92,83.76]
["Composição Auxiliar"," 88262 ","SINAPI","CARPINTEIRO DE FORMAS COM ENCARGOS COMPLEMENTARES","SEDI - SERVIÇOS DIVERSOS",null,"H",2,27.78,55.56]
["Composição Auxiliar"," 88316 ","SINAPI","SERVENTE COM ENCARGOS COMPLEMENTARES","SEDI - SERVIÇOS DIVERSOS",null,"H",5,20.420000000000002,102.1]
["Composição Auxiliar"," 88309 ","SINAPI","PEDREIRO COM ENCARGOS COMPLEMENTARES","SEDI - SERVIÇOS DIVERSOS",null,"H",4,28.16,112.64]
["Insumo"," 00043055 ","SINAPI","ACO CA-50, 12,5 MM OU 16,0 MM, VERGALHAO","Material",null,"KG",12,6.86,82.32]
["Insumo"," 00043059 ","SINAPI","ACO CA-60, 4,2 MM, OU 5,0 MM, OU 6,0 MM, OU 7,0 MM, VERGALHAO","Material",null,"KG",13,7.49,97.37]
["Insumo"," 00000032 ","SINAPI","ACO CA-50, 6,3 MM, VERGALHAO","Material",null,"KG",6,8.35,50.1]
["Insumo"," 00000370 ","SINAPI","AREIA MEDIA - POSTO JAZIDA/FORNECEDOR (RETIRADO NA JAZIDA, SEM TRANSPORTE)","Material",null,"m³",0.32,130,41.6]
["Insumo"," 00001379 ","SINAPI","CIMENTO PORTLAND COMPOSTO CP II-32","Material",null,"KG",127,0.76,96.52]
["Insumo"," 00004718 ","SINAPI","PEDRA BRITADA N. 2 (19 A 38 MM) POSTO PEDREIRA/FORNECEDOR, SEM FRETE","Material",null,"m³",0.08,128.37,10.27]
["Insumo"," 00004721 ","SINAPI","PEDRA BRITADA N. 1 (9,5 a 19 MM) POSTO PEDREIRA/FORNECEDOR, SEM FRETE","Material",null,"m³",0.23,127.69,29.37]
["Insumo"," 00003767 ","SINAPI","LIXA EM FOLHA PARA PAREDE OU MADEIRA, NUMERO 120, COR VERMELHA","Material",null,"UN",0.12,1.31,0.16]
["Insumo"," 00007356 ","SINAPI","TINTA LATEX ACRILICA PREMIUM, COR BRANCO FOSCO","Material",null,"L",0.18,29.67,5.34]
["Insumo"," 00043681 ","SINAPI","CHAPA/PAINEL DE MADEIRA COMPENSADA RESINADA (MADEIRITE RESINADO ROSA) PARA FORMA DE CONCRETO, DE 2200 x 1100 MM, E = 8 A 12 MM","Material",null,"m²",7.3,28.1,205.13]
[{"$nulls":4},"MO sem LS =>",165.8,"LS =>",180.56,"MO com LS =>",346.36]
[{"$nulls":4},"Valor do BDI =>",406.83710400000001,null,"Valor com BDI =>",null,1951.4]
[{"$nulls":6},"Quant. =>",1,"Preço Total =>",1951.4]
[]
[" 7 ",null,null,"CHAFARIZ",{"$nulls":5},1331.14]
[" 7.1 ","Código","Banco","Descrição","Tipo",null,"Und","Quant.","Valor Unit","Total"]
["Composição"," COMPOSIÇÃO - 045 ","Próprio","Fornecimento de material e instalação do chafariz","ASTU - ASSENTAMENTO DE TUBOS E PECAS",null,"un",1,1053.6199999999999,1053.6199999999999]
["Composição Auxiliar"," 88267 ","SINAPI","ENCANADOR OU BOMBEIRO HIDRÁULICO COM ENCARGOS COMPLEMENTARES","SEDI - SERVIÇOS DIVERSOS",null,"H",2,27.39,54.78]
["Composição Auxiliar"," 88248 ","SINAPI","AUXILIAR DE ENCANADOR OU BOMBEIRO HIDRÁULICO COM ENCARGOS COMPLEMENTARES","SEDI - SERVIÇOS DIVERSOS",null,"H",2,21.99,43.98]
["Composição Auxiliar"," 93358 ","SINAPI","ESCAVAÇÃO MANUAL DE VALA COM PROFUNDIDADE MENOR OU IGUAL A 1,30 M. AF_02/2021","MOVT - MOVIMENTO DE TERRA",null,"m³",9.4990000000000005E-2,80.78,7.67]
["Composição Auxiliar"," 92270 ","SINAPI","FABRICAÇÃO DE FÔRMA PARA VIGAS, COM MADEIRA SERRADA, E = 25 MM. AF_09/2020","FUES - FUNDAÇÕES E ESTRUTURAS",null,"m²",0.628,214.68,134.82]
["Composição Auxiliar"," 94975 ","SINAPI","CONCRETO FCK = 15MPA, TRAÇO 1:3,4:3,5 (EM MASSA SECA DE CIMENTO/ AREIA MÉDIA/ BRITA 1) - PREPARO MANUAL. AF_05/2021","FUES - FUNDAÇÕES E ESTRUTURAS",null,"m³",0.157,519.59,81.58]
["Composição Auxiliar"," 2171 ","ORSE","Piso cimentado liso traço 1:5, e = 3 cm, c/ junta plástica 3 x 27 mm","Pisos : Cimentados, em Concreto Simples, tipo Tech-Stone e de Alta Resistência",null,"m²",0.78500000000000003,52.58,41.28]
["Composição Auxiliar"," 87904 ","SINAPI","CHAPISCO APLICADO EM ALVENARIA (COM PRESENÇA DE VÃOS) E ESTRUTURAS DE CONCRETO DE FACHADA, COM COLHER DE PEDREIRO.  ARGAMASSA TRAÇO 1:3 COM PREPARO MANUAL. AF_10/2022","REVE - REVESTIMENTO E TRATAMENTO DE SUPERFÍCIES",null,"m²",0.314,8.5,2.67]
["Composição Auxiliar"," 87529 ","SINAPI","MASSA ÚNICA, EM ARGAMASSA TRAÇO 1:2:8, PREPARO MECÂNICO, APLICADA MANUALMENTE EM PAREDES INTERNAS DE AMBIENTES COM ÁREA ENTRE 5M² E 10M², E = 17,5MM, COM TALISCAS. AF_03/2024","REVE - REVESTIMENTO E TRATAMENTO DE SUPERFÍCIES",null,"m²",0.314,36.840000000000003,11.57]
["Composição Auxiliar"," 84651 ","SINAPI","PINTURA COM TINTA IMPERMEAVEL MINERAL EM PO, DUAS DEMAOS","PINT - PINTURAS",null,"m²",0.314,13.29,4.17]
["Insumo"," 00000765 ","SINAPI","BUCHA DE REDUCAO DE FERRO GALVANIZADO, COM ROSCA BSP, DE 1\" X 3/4\"","Material",null,"UN",2,10.23,20.46]
["Insumo"," 00009887 ","SINAPI","UNIAO DE FERRO GALVANIZADO, COM ROSCA BSP, COM ASSENTO PLANO, DE 2\"","Material",null,"UN",2,104.13,208.26]
["Insumo"," 00021013 ","SINAPI","TUBO ACO GALVANIZADO COM COSTURA, CLASSE LEVE, DN 50 MM ( 2\"),  E = 3,00 MM,  *4,40* KG/M (NBR 5580)","Material",null,"M",1.8,74.3,133.74]
["Insumo"," 00006298 ","SINAPI","TE DE FERRO GALVANIZADO, DE 2\"","Material",null,"UN",1,67.819999999999993,67.819999999999993]
["Insumo"," 00003471 ","SINAPI","COTOVELO 90 GRAUS DE FERRO GALVANIZADO, COM ROSCA BSP, DE 2\"","Material",null,"UN",1,51.01,51.01]
["Insumo"," 00000113 ","SINAPI","ADAPTADOR PVC SOLDAVEL CURTO COM BOLSA E ROSCA, 60 MM X 2\", PARA AGUA FRIA","Material",null,"UN",1,10.97,10.97]
["Insumo"," 00000818 ","SINAPI","BUCHA DE REDUCAO DE PVC, SOLDAVEL, CURTA, COM 60 X 50 MM, PARA AGUA FRIA PREDIAL","Material",null,"UN",1,6.7,6.7]
["Insumo"," 00007604 ","SINAPI","TORNEIRA METALICA CROMADA PARA TANQUE / JARDIM, SEM BICO , CANO LONGO, DE PAREDE, PADRAO POPULAR / USO GERAL, 1/2 \" OU 3/4 \" (REF 1126)","Material",null,"UN",2,51.68,103.36]
["Insumo"," 00000119 ","SINAPI","ADESIVO PLASTICO PARA PVC, BISNAGA COM 75 GR","Material",null,"UN",1,8.0500000000000007,8.0500000000000007]
["Insumo"," 00003146 ","SINAPI","FITA VEDA ROSCA EM ROLOS DE 18 MM X 10 M (L X C)","Material",null,"UN",1,3.93,3.93]
["Insumo"," 00000771 ","SINAPI","BUCHA DE REDUCAO DE FERRO GALVANIZADO, COM ROSCA BSP, DE 2\" X 1\"","Material",null,"UN",2,28.4,56.8]
[{"$nulls":4},"MO sem LS =>",70.400000000000006,"LS =>",76.66,"MO com LS =>",147.06]
[{"$nulls":4},"Valor do BDI =>",277.52350799999999,null,"Valor com BDI =>",null,1331.14]
[{"$nulls":6},"Quant. =>",1,"Preço Total =>",1331.14]
[]
[" 8 ",null,null,"CAVALETE",{"$nulls":5},2163.96]
[" 8.1 ","Código","Banco","Descrição","Tipo",null,"Und","Quant.","Valor Unit","Total"]
["Composição"," COMPOSIÇÃO - 018 ","Próprio","Fornecimento de conexões e Instalação do Cavalete com hidrômetro e clorador de pastilhas","INHI - INSTALAÇÕES HIDROS SANITÁRIAS",null,"un",1,1712.81,1712.81]
["Composição Auxiliar"," 88248 ","SINAPI","AUXILIAR DE ENCANADOR OU BOMBEIRO HIDRÁULICO COM ENCARGOS COMPLEMENTARES","SEDI - SERVIÇOS DIVERSOS",null,"H",3,21.99,65.97]
["Insumo"," 00000791 ","SINAPI","BUCHA DE REDUCAO DE FERRO GALVANIZADO, COM ROSCA BSP, DE 1 1/2\" X 1\"","Material",null,"UN",1,21.16,21.16]
["Insumo"," 00009862 ","SINAPI","TUBO PVC, ROSCAVEL, 1 1/2\",  AGUA FRIA PREDIAL","Material",null,"M",1.5,30.78,46.17]
["Insumo"," 00011831 ","SINAPI","TORNEIRA PLASTICA PARA TANQUE 1/2 \" OU 3/4 \" COM BICO PARA MANGUEIRA","Material",null,"UN",1,18.579999999999998,18.579999999999998]
["Insumo"," 002121 ","SBC","TE DE REDUCAO FERRO GALVANIZADO 1.1/2\" x 1\"","Material",null,"UN",1,57.49,57.49]
["Insumo"," 9569 ","ORSE","Adaptador pvc BSxRM d= 35mm x 1 1/2\", linha Irriga-LF, Tigre ou similar un","Material",null,"un",1,3.04,3.04]
["Insumo"," 00003939 ","SINAPI","LUVA DE FERRO GALVANIZADO, COM ROSCA BSP, DE 1 1/2\"","Material",null,"UN",1,23.45,23.45]
["Insumo"," 00001798 ","SINAPI","CURVA 90 GRAUS DE FERRO GALVANIZADO, COM ROSCA BSP MACHO, DE 2\"","Material",null,"UN",1,130.71,130.71]
["Insumo"," 00009887 ","SINAPI","UNIAO DE FERRO GALVANIZADO, COM ROSCA BSP, COM ASSENTO PLANO, DE 2\"","Material",null,"UN",2,104.13,208.26]
["Insumo"," 00004181/SINAPI ","ORSE","Niple de ferro galvanizado, com rosca bsp, de 2\"","Material",null,"un",2,39.24,78.48]
["Insumo"," 00006028 ","SINAPI","REGISTRO GAVETA BRUTO EM LATAO FORJADO, BITOLA 2 \" (REF 1509)","Material",null,"UN",1,180.34,180.34]
["Insumo"," 00012775 ","SINAPI","HIDROMETRO MULTIJATO / MEDIDOR DE AGUA, DN 1\", VAZAO MAXIMA DE 7 M3/H, PARA AGUA POTAVEL FRIA, RELOJOARIA PLANA, CLASSE B, HORIZONTAL (SEM CONEXOES)","Material",null,"UN",1,524.70000000000005,524.70000000000005]
["Insumo"," 00000771 ","SINAPI","BUCHA DE REDUCAO DE FERRO GALVANIZADO, COM ROSCA BSP, DE 2\" X 1\"","Material",null,"UN",1,28.4,28.4]
["Insumo"," 00006305 ","SINAPI","TE DE REDUCAO DE FERRO GALVANIZADO, COM ROSCA BSP, DE 2\" X 1\"","Material",null,"UN",1,75.09,75.09]
["Insumo"," 12464 ","ORSE","Clorador dosador de cloro de pastilhas automático","Material",null,"un",1,250.97,250.97]
[{"$nulls":4},"MO sem LS =>",23.94,"LS =>",26.07,"MO com LS =>",50.01]
[{"$nulls":4},"Valor do BDI =>",451.15415400000001,null,"Valor com BDI =>",null,2163.96]
[{"$nulls":6},"Quant. =>",1,"Preço Total =>",2163.96]
[]
[" 9 ",null,null,"INSTALAÇÕES HIDRÁULICAS",{"$nulls":5},21026.04]
[" 9.1 ","Código","Banco","Descrição","Tipo",null,"Und","Quant.","Valor Unit","Total"]
["Composição"," COMPOSIÇÃO - 020 ","Próprio","Fornecimento e instalação da rede adutora poço-reservatório-bebedouro em PN80 e DN50MM","SEDI - SERVIÇOS DIVERSOS",null,"m",1,28.27,28.27]
["Composição Auxiliar"," 88316 ","SINAPI","SERVENTE COM ENCARGOS COMPLEMENTARES","SEDI - SERVIÇOS DIVERSOS",null,"H",0.05,20.420000000000002,1.02]
["Composição Auxiliar"," 93358 ","SINAPI","ESCAVAÇÃO MANUAL DE VALA COM PROFUNDIDADE MENOR OU IGUAL A 1,30 M. AF_02/2021","MOVT - MOVIMENTO DE TERRA",null,"m³",0.05,80.78,4.04]
["Insumo"," 00009875 ","SINAPI","TUBO PVC, SOLDAVEL, DE 50 MM, AGUA FRIA (NBR-5648)","Material",null,"M",1,15.16,15.16]
["Insumo"," 00000119 ","SINAPI","ADESIVO PLASTICO PARA PVC, BISNAGA COM 75 GR","Material",null,"UN",1,8.0500000000000007,8.0500000000000007]
[{"$nulls":4},"MO sem LS =>",1.72,"LS =>",1.88,"MO com LS =>",3.6]
[{"$nulls":4},"Valor do BDI =>",7.4463179999999998,null,"Valor com BDI =>",null,35.72]
[{"$nulls":6},"Quant. =>",400,"Preço Total =>",14288]
[]
[" 9.2 ","Código","Banco","Descrição","Tipo",null,"Und","Quant.","Valor Unit","Total"]
["Composição"," COMPOSIÇÃO - 019 ","Próprio","Montagem hidráulica do equipamento de bombeamento","INHI - INSTALAÇÕES HIDROS SANITÁRIAS",null,"un",1,148.13999999999999,148.13999999999999]
["Composição Auxiliar"," 88267 ","SINAPI","ENCANADOR OU BOMBEIRO HIDRÁULICO COM ENCARGOS COMPLEMENTARES","SEDI - SERVIÇOS DIVERSOS",null,"H",3,27.39,82.17]
["Composição Auxiliar"," 88248 ","SINAPI","AUXILIAR DE ENCANADOR OU BOMBEIRO HIDRÁULICO COM ENCARGOS COMPLEMENTARES","SEDI - SERVIÇOS DIVERSOS",null,"H",3,21.99,65.97]
[{"$nulls":4},"MO sem LS =>",55.63,"LS =>",60.59,"MO com LS =>",116.22]
[{"$nulls":4},"Valor do BDI =>",39.020076000000003,null,"Valor com BDI =>",null,187.16]
[{"$nulls":6},"Quant. =>",1,"Preço Total =>",187.16]
[]
[" 9.3 ","Código","Banco","Descrição","Tipo",null,"Und","Quant.","Valor Unit","Total"]
["Insumo"," 00038200 ","SINAPI","CORDA DE POLIAMIDA 12 MM TIPO BOMBEIRO, PARA TRABALHO EM ALTURA","Material",null,"100M",1,635.12,635.12]
[{"$nulls":4},"MO sem LS =>",0,"LS =>",0,"MO com LS =>",0]
[{"$nulls":4},"Valor do BDI =>",97.05,null,"Valor com BDI =>",null,732.17]
[{"$nulls":6},"Quant. =>",0.93,"Preço Total =>",680.92]
[]
[" 9.4 ","Código","Banco","Descrição","Tipo",null,"Und","Quant.","Valor Unit","Total"]
["Insumo"," 00009860 ","SINAPI","TUBO PVC, ROSCAVEL,  2\", PARA AGUA FRIA PREDIAL","Material",null,"M",1,44.05,44.05]
[{"$nulls":4},"MO sem LS =>",0,"LS =>",0,"MO com LS =>",0]
[{"$nulls":4},"Valor do BDI =>",11.6,null,"Valor com BDI =>",null,55.65]
[{"$nulls":6},"Quant. =>",90,"Preço Total =>",5008.5]
[]
[" 9.5 ","Código","Banco","Descrição","Tipo",null,"Und","Quant.","Valor Unit","Total"]
["Insumo"," 00003912 ","SINAPI","LUVA DE FERRO GALVANIZADO, COM ROSCA BSP, DE 2\"","Material",null,"UN",1,35.909999999999997,35.909999999999997]
[{"$nulls":4},"MO sem LS =>",0,"LS =>",0,"MO com LS =>",0]
[{"$nulls":4},"Valor do BDI =>",9.4600000000000009,null,"Valor com BDI =>",null,45.37]
[{"$nulls":6},"Quant. =>",16,"Preço Total =>",725.92]
[]
[" 9.6 ","Código","Banco","Descrição","Tipo",null,"Und","Quant.","Valor Unit","Total"]
["Insumo"," 5128 ","ORSE","Tampa de poço galvanizada em 6\" un","Serviços",null,"un",1,107.28,107.28]
[{"$nulls":4},"MO sem LS =>",0,"LS =>",0,"MO com LS =>",0]
[{"$nulls":4},"Valor do BDI =>",28.26,null,"Valor com BDI =>",null,135.54]
[{"$nulls":6},"Quant. =>",1,"Preço Total =>",135.54]
[]
[" 11 ",null,null,"ESTRUTURA DE FIXAÇÃO PARA MÓDULOS FOTOVOLTÁICOS",{"$nulls":5},5111.04]
[" 11.1 ","Código","Banco","Descrição","Tipo",null,"Und","Quant.","Valor Unit","Total"]
["Composição"," COMPOSIÇÃO - 022 ","Próprio","Serviço de fixação de estruturas para os módulos fotovoltaicos e suportes de concreto, incluso materiais.","SEDI - SERVIÇOS DIVERSOS",null,"m²",1,252.84,252.84]
["Composição Auxiliar"," 94975 ","SINAPI","CONCRETO FCK = 15MPA, TRAÇO 1:3,4:3,5 (EM MASSA SECA DE CIMENTO/ AREIA MÉDIA/ BRITA 1) - PREPARO MANUAL. AF_05/2021","FUES - FUNDAÇÕES E ESTRUTURAS",null,"m³",9.4500000000000001E-2,519.59,49.1]
["Composição Auxiliar"," 93358 ","SINAPI","ESCAVAÇÃO MANUAL DE VALA COM PROFUNDIDADE MENOR OU IGUAL A 1,30 M. AF_02/2021","MOVT - MOVIMENTO DE TERRA",null,"m³",6.25E-2,80.78,5.05]
["Composição Auxiliar"," 96534 ","SINAPI","FABRICAÇÃO, MONTAGEM E DESMONTAGEM DE FÔRMA PARA BLOCO DE COROAMENTO, EM MADEIRA SERRADA, E=25 MM, 4 UTILIZAÇÕES. AF_06/2017","FUES - FUNDAÇÕES E ESTRUTURAS",null,"m²",3.2000000000000001E-2,76.260000000000005,2.44]
["Composição Auxiliar"," 88316 ","SINAPI","SERVENTE COM ENCARGOS COMPLEMENTARES","SEDI - SERVIÇOS DIVERSOS",null,"H",2.637,20.420000000000002,53.85]
["Composição Auxiliar"," 88278 ","SINAPI","MONTADOR DE ESTRUTURA METÁLICA COM ENCARGOS COMPLEMENTARES","SEDI - SERVIÇOS DIVERSOS",null,"H",2.637,24.46,64.5]
["Insumo"," 015690 ","SBC","ESTRUTURA METALICA TESOURA C/COLUNA 20/35m(24,72kg/m2)","Material",null,"m²",1,77.900000000000006,77.900000000000006]
[{"$nulls":4},"MO sem LS =>",49.55,"LS =>",53.97,"MO com LS =>",103.52]
[{"$nulls":4},"Valor do BDI =>",66.598056,null,"Valor com BDI =>",null,319.44]
[{"$nulls":6},"Quant. =>",16,"Preço Total =>",5111.04]
[]
[" 12 ",null,null,"INSTALAÇÕES ELÉTRICAS E BÓIA ELÉTRICA",{"$nulls":5},17574.02]
[" 12.1 ","Código","Banco","Descrição","Tipo",null,"Und","Quant.","Valor Unit","Total"]
["Composição"," COMPOSIÇÃO - 021 ","Próprio","Montagem e instalação elétrica do kit de bombeamento e sistema fotovoltaico inclusive sistema de aterramento.","INEL - INSTALAÇÃO ELÉTRICA/ELETRIFICAÇÃO E ILUMINAÇÃO EXTERNA",null,"un",1,1077.29,1077.29]
["Composição Auxiliar"," 88247 ","SINAPI","AUXILIAR DE ELETRICISTA COM ENCARGOS COMPLEMENTARES","SEDI - SERVIÇOS DIVERSOS",null,"H",8,23.03,184.24]
["Insumo"," 00020111 ","SINAPI","FITA ISOLANTE ADESIVA ANTICHAMA, USO ATE 750 V, EM ROLO DE 19 MM X 20 M","Material",null,"UN",1,8.42,8.42]
["Insumo"," 00002674 ","SINAPI","FORNECIMENTO DE  ELETRODUTO DE PVC RIGIDO ROSCAVEL DE 3/4 \", SEM LUVA","Material",null,"M",15,5.64,84.6]
["Insumo"," 00012034 ","SINAPI","FORNECIMENTO DE  CURVA 180 GRAUS, DE PVC RIGIDO ROSCAVEL, DE 3/4\", PARA ELETRODUTO","Material",null,"UN",1,5.35,5.35]
["Insumo"," 00039272 ","SINAPI","FORNECIMENTO DE  CURVA 90 GRAUS, CURTA, DE PVC RIGIDO ROSCAVEL, DE 3/4\", PARA ELETRODUTO","Material",null,"UN",2,2.92,5.84]
["Insumo"," 00003379 ","SINAPI","HASTE DE ATERRAMENTO EM ACO COM 3,00 M DE COMPRIMENTO E DN = 5/8\", REVESTIDA COM BAIXA CAMADA DE COBRE, SEM CONECTOR","Material",null,"UN",0.66,102.77,67.83]
["Insumo"," 00001891 ","SINAPI","FORNECIMENTO DE  LUVA EM PVC RIGIDO ROSCAVEL, DE 3/4\", PARA ELETRODUTO","Material",null,"UN",9,1.35,12.15]
["Insumo"," 00000425 ","SINAPI","GRAMPO METALICO TIPO OLHAL PARA HASTE DE ATERRAMENTO DE 5/8'', CONDUTOR DE *10* A 50 MM2","Material",null,"UN",2,9.75,19.5]
["Insumo"," 00034643 ","SINAPI","FORNECIMENTO DE  CAIXA DE INSPECAO PARA ATERRAMENTO E PARA RAIOS, EM POLIPROPILENO,  DIAMETRO = 300 MM X ALTURA = 400 MM","Material",null,"UN",2,41.48,82.96]
["Insumo"," 00000867 ","SINAPI","CABO DE COBRE NU 50 MM2 MEIO-DURO","Material",null,"M",7.5,51.16,383.7]
["Insumo"," 54581 ","SIURB INFRA","DPS - DISPOSITIVO DE PROTEÇÃO CONTRA SURTOS – 45KA – 500 VOLTS - CORRENTE CONTÍNUA - CLASSE II - P/ SISTEMA FOTOVOLTÁICO","Material",null,"Un",1,222.7,222.7]
[{"$nulls":4},"MO sem LS =>",65.22,"LS =>",71.02,"MO com LS =>",136.24]
[{"$nulls":4},"Valor do BDI =>",283.75818600000002,null,"Valor com BDI =>",null,1361.05]
[{"$nulls":6},"Quant. =>",1,"Preço Total =>",1361.05]
[]
[" 12.2 ","Código","Banco","Descrição","Tipo",null,"Und","Quant.","Valor Unit","Total"]
["Insumo"," 00034622 ","SINAPI","FORNECIMENTO DE  CABO FLEXIVEL PVC 750 V, 3 CONDUTORES DE 6,0 MM2","Material",null,"M",1,20.11,20.11]
[{"$nulls":4},"MO sem LS =>",0,"LS =>",0,"MO com LS =>",0]
[{"$nulls":4},"Valor do BDI =>",3.07,null,"Valor com BDI =>",null,23.18]
[{"$nulls":6},"Quant. =>",105,"Preço Total =>",2433.9]
[]
[" 12.3 ","Código","Banco","Descrição","Tipo",null,"Und","Quant.","Valor Unit","Total"]
["Composição"," COMPOSIÇÃO - 047 ","Próprio","Fornecimento e instalação de automático de bóia superior e inferior","ASTU - ASSENTAMENTO DE TUBOS E PECAS",null,"un",1,68.08,68.08]
["Composição Auxiliar"," 88264 ","SINAPI","ELETRICISTA COM ENCARGOS COMPLEMENTARES","SEDI - SERVIÇOS DIVERSOS",null,"H",0.2,28.55,5.71]
["Composição Auxiliar"," 88247 ","SINAPI","AUXILIAR DE ELETRICISTA COM ENCARGOS COMPLEMENTARES","SEDI - SERVIÇOS DIVERSOS",null,"H",0.2,23.03,4.6100000000000003]
["Insumo"," 00007588 ","SINAPI","AUTOMATICO DE BOIA SUPERIOR / INFERIOR, *15* A / 250 V","Material",null,"UN",1,56.85,56.85]
["Insumo"," 00021127 ","SINAPI","FITA ISOLANTE ADESIVA ANTICHAMA, USO ATE 750 V, EM ROLO DE 19 MM X 5 M","Material",null,"UN",0.1,3.18,0.32]
["Insumo"," 00003146 ","SINAPI","FITA VEDA ROSCA EM ROLOS DE 18 MM X 10 M (L X C)","Material",null,"UN",0.15,3.93,0.59]
[{"$nulls":4},"MO sem LS =>",3.79,"LS =>",4.13,"MO com LS =>",7.92]
[{"$nulls":4},"Valor do BDI =>",17.932272000000001,null,"Valor com BDI =>",null,86.01]
[{"$nulls":6},"Quant. =>",1,"Preço Total =>",86.01]
[]
[" 12.4 ","Código","Banco","Descrição","Tipo",null,"Und","Quant.","Valor Unit","Total"]
["Insumo"," 00039257 ","SINAPI","CABO MULTIPOLAR DE COBRE, FLEXIVEL, CLASSE 4 OU 5, ISOLACAO EM HEPR, COBERTURA EM PVC-ST2, ANTICHAMA BWF-B, 0,6/1 KV, 3 CONDUTORES DE 1,5 MM2","Material",null,"M",1,5.47,5.47]
[{"$nulls":4},"MO sem LS =>",0,"LS =>",0,"MO com LS =>",0]
[{"$nulls":4},"Valor do BDI =>",1.44,null,"Valor com BDI =>",null,6.91]
[{"$nulls":6},"Quant. =>",200,"Preço Total =>",1382]
[]
[" 12.5 ","Código","Banco","Descrição","Tipo",null,"Und","Quant.","Valor Unit","Total"]
["Insumo"," COTAÇÃO-001 ","Próprio","Fornecimento de kit de bombeamento fotovoltaico, incluindo uma bomba CC de 1500W com controladora de carga externa, caixa de proteção metálica, módulos fotovoltaicos compatíveis com a geração de 2200Wp além de componentes elétricos necessários para interligação dos painéis, como cabos, conectores MC4 e presilhas de fixação.","Serviços",null,"un",1,9744.39,9744.39]
[{"$nulls":4},"MO sem LS =>",0,"LS =>",0,"MO com LS =>",0]
[{"$nulls":4},"Valor do BDI =>",2566.67,null,"Valor com BDI =>",null,12311.06]
[{"$nulls":6},"Quant. =>",1,"Preço Total =>",12311.06]
[]
[" 13 ",null,null,"URBANIZAÇÃO",{"$nulls":5},4225.3599999999997]
[" 13.1 ","Código","Banco","Descrição","Tipo",null,"Und","Quant.","Valor Unit","Total"]
["Composição"," COMPOSIÇÃO - 023 ","Próprio","Cerca com mourões de concreto de 15x15cm, espaçados de 3m e cravados a 0,5m, escoras de 10x10cm nos cantos, e 9 fios de arame de aço ovalado 15x17.","SEDI - SERVIÇOS DIVERSOS",null,"m",1,83.2,83.2]
["Composição Auxiliar"," 88309 ","SINAPI","PEDREIRO COM ENCARGOS COMPLEMENTARES","SEDI - SERVIÇOS DIVERSOS",null,"H",0.33500000000000002,28.16,9.43]
["Composição Auxiliar"," 88316 ","SINAPI","SERVENTE COM ENCARGOS COMPLEMENTARES","SEDI - SERVIÇOS DIVERSOS",null,"H",0.67100000000000004,20.420000000000002,13.7]
["Composição Auxiliar"," 94975 ","SINAPI","CONCRETO FCK = 15MPA, TRAÇO 1:3,4:3,5 (EM MASSA SECA DE CIMENTO/ AREIA MÉDIA/ BRITA 1) - PREPARO MANUAL. AF_05/2021","FUES - FUNDAÇÕES E ESTRUTURAS",null,"m³",2.8799999999999999E-2,519.59,14.96]
["Insumo"," 00043130 ","SINAPI","ARAME GALVANIZADO 12 BWG, D = 2,76 MM (0,048 KG/M) OU 14 BWG, D = 2,11 MM (0,026 KG/M)","Material",null,"KG",9.8000000000000004E-2,21.4,2.1]
["Insumo"," 00000346 ","SINAPI","ARAME DE ACO OVALADO 15 X 17 ( 45,7 KG, 700 KGF), ROLO 1000 M","Material",null,"KG",0.40500000000000003,25.35,10.27]
["Insumo"," 00004111 ","SINAPI","ESCORA PRE-MOLDADA EM CONCRETO, *10 X 10* CM, H = 2,30M","Material",null,"UN",0.16,80.7,12.91]
["Insumo"," I1533 ","SEINFRA","MOURÃO CONCRETO BASE 15X15CM H=2.3 C/ 12 FUROS","Material",null,"UN",0.42,47.22,19.829999999999998]
[{"$nulls":4},"MO sem LS =>",9.4600000000000009,"LS =>",10.31,"MO com LS =>",19.77]
[{"$nulls":4},"Valor do BDI =>",21.91488,null,"Valor com BDI =>",null,105.11]
[{"$nulls":6},"Quant. =>",28,"Preço Total =>",2943.08]
[]
[" 13.2 ","Código","Banco","Descrição","Tipo",null,"Und","Quant.","Valor Unit","Total"]
["Composição"," COMPOSIÇÃO - 024 ","Próprio","Serviço de instalação de portão de ferro com suporte e batedor conforme projeto, incluso material","SEDI - SERVIÇOS DIVERSOS",null,"m²",1,676.63,676.63]
["Composição Auxiliar"," 88309 ","SINAPI","PEDREIRO COM ENCARGOS COMPLEMENTARES","SEDI - SERVIÇOS DIVERSOS",null,"H",1.5,28.16,42.24]
["Composição Auxiliar"," 88316 ","SINAPI","SERVENTE COM ENCARGOS COMPLEMENTARES","SEDI - SERVIÇOS DIVERSOS",null,"H",1.5,20.420000000000002,30.63]
["Insumo"," 00000367 ","SINAPI","AREIA GROSSA - POSTO JAZIDA/FORNECEDOR (RETIRADO NA JAZIDA, SEM TRANSPORTE)","Material",null,"m³",6.0999999999999999E-2,131.69,8.0299999999999994]
["Insumo"," 00001379 ","SINAPI","CIMENTO PORTLAND COMPOSTO CP II-32","Material",null,"KG",4.83,0.76,3.67]
["Insumo"," 00004948 ","SINAPI","PORTAO DE ABRIR / GIRO, EM GRADIL DE METALON REDONDO DE 3/4\"  VERTICAL, COM REQUADRO, ACABAMENTO NATURAL - COMPLETO","Material",null,"m²",1,592.05999999999995,592.05999999999995]
[{"$nulls":4},"MO sem LS =>",26.34,"LS =>",28.69,"MO com LS =>",55.03]
[{"$nulls":4},"Valor do BDI =>",178.22434200000001,null,"Valor com BDI =>",null,854.85]
[{"$nulls":6},"Quant. =>",1.5,"Preço Total =>",1282.28]
[]
[" 14 ",null,null,"OUTROS SERVIÇOS E INSUMOS EXCEPCIONAIS",{"$nulls":5},9051.93]
[" 14.1 ","Código","Banco","Descrição","Tipo",null,"Und","Quant.","Valor Unit","Total"]
["Composição"," COMPOSIÇÃO - 054 ","Próprio","Fornecimento e instalação do pré filtro para revestimento interno","ASTU - ASSENTAMENTO DE TUBOS E PECAS",null,"m³",1,1665.29,1665.29]
["Composição Auxiliar"," 90776 ","SINAPI","ENCARREGADO GERAL COM ENCARGOS COMPLEMENTARES","SEDI - SERVIÇOS DIVERSOS",null,"H",0.4,55.16,22.06]
["Composição Auxiliar"," 88297 ","SINAPI","OPERADOR DE MÁQUINAS E EQUIPAMENTOS COM ENCARGOS COMPLEMENTARES","SEDI - SERVIÇOS DIVERSOS",null,"H",0.4,34.090000000000003,13.64]
["Composição Auxiliar"," 88316 ","SINAPI","SERVENTE COM ENCARGOS COMPLEMENTARES","SEDI - SERVIÇOS DIVERSOS",null,"H",0.5,20.420000000000002,10.210000000000001]
["Insumo"," 5073 ","ORSE","Pré-filtro comum","Serviços",null,"m³",1,1619.38,1619.38]
[{"$nulls":4},"MO sem LS =>",19.12,"LS =>",20.83,"MO com LS =>",39.950000000000003]
[{"$nulls":4},"Valor do BDI =>",438.63738599999999,null,"Valor com BDI =>",null,2103.9299999999998]
[{"$nulls":6},"Quant. =>",0.18,"Preço Total =>",378.71]
[]
[" 14.2 ","Código","Banco","Descrição","Tipo",null,"Und","Quant.","Valor Unit","Total"]
["Composição"," COMPOSIÇÃO - 025 ","Próprio","Execução de tamponamento conforme especificação","SEDI - SERVIÇOS DIVERSOS",null,"m³",1,664.98,664.98]
["Composição Auxiliar"," 87316 ","SINAPI","ARGAMASSA TRAÇO 1:4 (EM VOLUME DE CIMENTO E AREIA GROSSA ÚMIDA) PARA CHAPISCO CONVENCIONAL, PREPARO MECÂNICO COM BETONEIRA 400 L. AF_08/2019","SEDI - SERVIÇOS DIVERSOS",null,"m³",1,516.87,516.87]
["Composição Auxiliar"," 88316 ","SINAPI","SERVENTE COM ENCARGOS COMPLEMENTARES","SEDI - SERVIÇOS DIVERSOS",null,"H",1,20.420000000000002,20.420000000000002]
["Insumo"," 00004721 ","SINAPI","PEDRA BRITADA N. 1 (9,5 a 19 MM) POSTO PEDREIRA/FORNECEDOR, SEM FRETE","Material",null,"m³",1,127.69,127.69]
[{"$nulls":4},"MO sem LS =>",52.51,"LS =>",57.19,"MO com LS =>",109.7]
[{"$nulls":4},"Valor do BDI =>",175.155732,null,"Valor com BDI =>",null,840.14]
[{"$nulls":6},"Quant. =>",0.24,"Preço Total =>",201.63]
[]
[" 14.3 ","Código","Banco","Descrição","Tipo",null,"Und","Quant.","Valor Unit","Total"]
["Composição"," COMPOSIÇÃO - 056 ","Próprio","Fornecimento e instalação do filtro para revestimento interno Ø 4 1/2\"","ASTU - ASSENTAMENTO DE TUBOS E PECAS",null,"m",1,120.26,120.26]
["Composição Auxiliar"," 88316 ","SINAPI","SERVENTE COM ENCARGOS COMPLEMENTARES","SEDI - SERVIÇOS DIVERSOS",null,"H",0.65,20.420000000000002,13.27]
["Composição Auxiliar"," 90776 ","SINAPI","ENCARREGADO GERAL COM ENCARGOS COMPLEMENTARES","SEDI - SERVIÇOS DIVERSOS",null,"H",0.65,55.16,35.85]
["Insumo"," COTAÇÃO-004 ","Próprio","Fornecimento tubo filtro geomecânico classe reforçado diâmetro Ø 4 1/2\" com junta roscável. ","Material",null,"m",1,71.14,71.14]
[{"$nulls":4},"MO sem LS =>",20.83,"LS =>",22.69,"MO com LS =>",43.52]
[{"$nulls":4},"Valor do BDI =>",31.676483999999999,null,"Valor com BDI =>",null,151.94]
[{"$nulls":6},"Quant. =>",0.6,"Preço Total =>",91.16]
[]
[" 14.4 ","Código","Banco","Descrição","Tipo",null,"Und","Quant.","Valor Unit","Total"]
["Composição"," COMPOSIÇÃO - 055 ","Próprio","Fornecimento e instalação do revestimento interno Ø 4 1/2\"","ASTU - ASSENTAMENTO DE TUBOS E PECAS",null,"m",1,111.49,111.49]
["Composição Auxiliar"," 88316 ","SINAPI","SERVENTE COM ENCARGOS COMPLEMENTARES","SEDI - SERVIÇOS DIVERSOS",null,"H",0.65,20.420000000000002,13.27]
["Composição Auxiliar"," 90776 ","SINAPI","ENCARREGADO GERAL COM ENCARGOS COMPLEMENTARES","SEDI - SERVIÇOS DIVERSOS",null,"H",0.65,55.16,35.85]
["Insumo"," COTAÇÃO-006 ","Próprio","Fornecimento tubo revestimento geomecânico classe reforçado Ø 4 1/2\" com junta roscável.","Material",null,"m",1,62.37,62.37]
[{"$nulls":4},"MO sem LS =>",20.83,"LS =>",22.69,"MO com LS =>",43.52]
[{"$nulls":4},"Valor do BDI =>",29.366465999999999,null,"Valor com BDI =>",null,140.86000000000001]
[{"$nulls":6},"Quant. =>",0.6,"Preço Total =>",84.52]
[]
[" 14.5 ","Código","Banco","Descrição","Tipo",null,"Und","Quant.","Valor Unit","Total"]
["Insumo"," M3929 ","SICRO3","Tubo em aço-carbono - E = 3,00 mm e D = 150 mm (6\")","Material",null,"m",1,171.2287,171.2287]
[{"$nulls":4},"MO sem LS =>",0,"LS =>",0,"MO com LS =>",0]
[{"$nulls":4},"Valor do BDI =>",45.1,null,"Valor com BDI =>",null,216.33]
[{"$nulls":6},"Quant. =>",9,"Preço Total =>",1946.97]
[]
[" 14.6 ","Código","Banco","Descrição","Tipo",null,"Und","Quant.","Valor Unit","Total"]
["Insumo"," 00041699 ","SINAPI","TUBO DE REVESTIMENTO, EM ACO, CORPO SCHEDULE 40, PONTEIRA SCHEDULE 80, ROSQUEAVEL E SEGMENTADO PARA PERFURACAO, DIAMETRO 8","Material",null,"M",1,2219.15,2219.15]
[{"$nulls":4},"MO sem LS =>",0,"LS =>",0,"MO com LS =>",0]
[{"$nulls":4},"Valor do BDI =>",584.52,null,"Valor com BDI =>",null,2803.67]
[{"$nulls":6},"Quant. =>",1.8,"Preço Total =>",5046.6099999999997]
[]
[" 14.7 ","Código","Banco","Descrição","Tipo",null,"Und","Quant.","Valor Unit","Total"]
["Insumo"," M039706073 ","EMBASA","FILTRO NOLD EM AÇO GALVANIZADO DN 6\"","Material",null,"M",1,763.9,763.9]
[{"$nulls":4},"MO sem LS =>",0,"LS =>",0,"MO com LS =>",0]
[{"$nulls":4},"Valor do BDI =>",201.21,null,"Valor com BDI =>",null,965.11]
[{"$nulls":6},"Quant. =>",1.2,"Preço Total =>",1158.1300000000001]
[]
[" 14.8 ","Código","Banco","Descrição","Tipo",null,"Und","Quant.","Valor Unit","Total"]
["Composição"," COMPOSIÇÃO - 009 ","Próprio","Limpeza manual , remoção de cerca, capina e instalação dos equipamentos (área do poço, painéis solares, bebedouro e reservatório)","SEDI - SERVIÇOS DIVERSOS",null,"m²",1,1.63,1.63]
["Composição Auxiliar"," 88316 ","SINAPI","SERVENTE COM ENCARGOS COMPLEMENTARES","SEDI - SERVIÇOS DIVERSOS",null,"H",0.08,20.420000000000002,1.63]
[{"$nulls":4},"MO sem LS =>",0.56000000000000005,"LS =>",0.6,"MO com LS =>",1.1599999999999999]
[{"$nulls":4},"Valor do BDI =>",0.429342,null,"Valor com BDI =>",null,2.06]
[{"$nulls":6},"Quant. =>",70,"Preço Total =>",144.19999999999999]
[]
[]
[]
[]
[{"$nulls":5},"Total Geral",null,146087.1]
[]
["_______________________________________________________________\n1ªGRR/UES"]

{"sheet":"Resumo Totalmente","index":4,"n_rows":23,"n_cols":11,"rows_kept":23,"cut":false,"hidden":false,"merged":[[20,6,20,7],[20,8,20,10],[16,0,16,2],[16,3,16,8],[18,0,18,2],[18,6,18,7],[18,8,18,10],[22,0,22,10],[19,0,19,2],[19,6,19,7],[19,8,19,10],[20,0,20,2],[13,0,13,2],[13,3,13,8],[14,0,14,2],[14,3,14,8],[15,0,15,2],[15,3,15,8],[10,0,10,2],[10,3,10,8],[11,0,11,2],[11,3,11,8],[12,0,12,2],[12,3,12,8],[7,0,7,2],[7,3,7,8],[8,0,8,2],[8,3,8,8],[9,0,9,2],[9,3,9,8],[4,0,4,2],[4,3,4,8],[5,0,5,2],[5,3,5,8],[6,0,6,2],[6,3,6,8],[0,5,0,7],[0,8,0,10],[1,5,1,7],[1,8,1,10],[2,0,2,10],[3,0,3,2],[3,3,3,8]]}
[null,null,null,"Obra:","Bancos","B.D.I.",null,null,"Encargos Sociais"]
["1ªSR/MG",null,null,"PERFURAÇÃO E INSTALAÇÃO DE POÇO TUBULAR TOTALMENTE REVESTIDO - 150m","SINAPI - 09/2024 - Minas Gerais\nSBC - 10/2024 - Minas Gerais\nSICRO3 - 04/2024 - Minas Gerais\nORSE - 06/2024 - Sergipe\nSEINFRA - 028 - Ceará\nCPOS/CDHU - 09/2024 - São Paulo\nFDE - 07/2024 - São Paulo\nEMBASA - 05/2024 - Bahia\n","26,34%",null,null,"Não Desonerado: \nHorista: 108,90%\nMensalista: 67,79%"]
["Planilha Orçamentária Resumida"]
["Item",null,null,"Descrição",{"$nulls":5},"Total","Peso (%)"]
[1,null,null,"SERVIÇOS PRELIMINARES",{"$nulls":5},9804.7000000000007,{"$f":"J5 / 232426.4","v":4.2184106452623285E-2}]
[2,null,null,"MOBILIZAÇÂO E DESMOBILIZAÇÂO EQUIPE CAMPO",{"$nulls":5},4884,{"$f":"J6 / 232426.4","v":2.1013103502872308E-2}]
[3,null,null,"PERFURAÇÃO E COMPLETAÇÃO DE POÇO TUBULAR",{"$nulls":5},108450.81,{"$f":"J7 / 232426.4","v":0.46660280415649857}]
[4,null,null,"PÓS PERFURAÇÃO",{"$nulls":5},12156.03,{"$f":"J8 / 232426.4","v":5.230055621908699E-2}]
[5,null,null,"RESERVAÇÃO",{"$nulls":5},27094.09,{"$f":"J9 / 232426.4","v":0.1165706219259086}]
[6,null,null,"BEBEDOURO",{"$nulls":5},1951.4,{"$f":"J10 / 232426.4","v":8.3957760392106926E-3}]
[7,null,null,"CHAFARIZ",{"$nulls":5},1331.14,{"$f":"J11 / 232426.4","v":5.7271463138438665E-3}]
[8,null,null,"CAVALETE",{"$nulls":5},2163.96,{"$f":"J12 / 232426.4","v":9.3103020999335713E-3}]
[9,null,null,"INSTALAÇÕES HIDRÁULICAS POÇO E ADUTORA",{"$nulls":5},21026.04,{"$f":"J13 / 232426.4","v":9.0463217603508048E-2}]
[10,null,null,"ESTRUTURA DE FIXAÇÃO PARA MÓDULOS FOTOVOLTÁICOS",{"$nulls":5},5111.04,{"$f":"J14 / 232426.4","v":2.1989928854897724E-2}]
[11,null,null,"INSTALAÇÕES ELÉTRICAS",{"$nulls":5},19945.939999999999,{"$f":"J15 / 232426.4","v":8.5816155135561192E-2}]
[12,null,null,"URBANIZAÇÃO",{"$nulls":5},4225.3599999999997,{"$f":"J16 / 232426.4","v":1.8179346236055799E-2}]
[13,null,null,"OUTROS SERVIÇOS E INSUMOS EXCEPCIONAIS",{"$nulls":5},14281.89,{"$f":"J17 / 232426.4","v":6.144693545999938E-2}]
[]
[{"$nulls":6},"Total sem BDI",null,185192.5]
[{"$nulls":6},"Total do BDI",null,47233.9]
[{"$nulls":6},"Total Geral",null,232426.4]
[]
["_______________________________________________________________\nAR/GSA/UEA"]

{"sheet":"Orçamento Sintético (T)","index":5,"n_rows":65,"n_cols":10,"rows_kept":65,"cut":false,"hidden":false,"merged":[[61,7,61,9],[0,4,0,5],[0,6,0,7],[0,8,0,9],[1,4,1,5],[1,6,1,7],[1,8,1,9],[62,0,62,2],[62,5,62,6],[62,7,62,9],[64,0,64,9],[2,0,2,9],[60,0,60,2],[60,5,60,6],[60,7,60,9],[61,0,61,2],[61,5,61,6]]}
[null,null,null,"Obra:","Bancos",null,"B.D.I.",null,"Encargos Sociais"]
["1ªSR/MG",null,null,"PERFURAÇÃO E INSTALAÇÃO DE POÇO TUBULAR TOTALMENTE \nREVESTIDO - 150m","SINAPI - 09/2024 - Minas Gerais\nSBC - 10/2024 - Minas Gerais\nSICRO3 - 04/2024 - Minas Gerais\nORSE - 06/2024 - Sergipe\nSEINFRA - 028 - Ceará\nCPOS/CDHU - 09/2024 - São Paulo\nFDE - 07/2024 - São Paulo\nEMBASA - 05/2024 - Bahia\n",null,"26,34%",null,"Não Desonerado: \nHorista: 108,90%\nMensalista: 67,79%"]
["Orçamento Sintético"]
["Item","Código","Banco","Descrição","Und","Quant.","Valor Unit","Valor Unit com BDI","Total","Peso (%)"]
[" 1 ",null,null,"SERVIÇOS PRELIMINARES",{"$nulls":4},9804.7000000000007,{"$f":"I5 / 232426.4","v":4.2184106452623285E-2}]
[" 1.1 "," COMPOSIÇÃO - 050 ","Próprio","Administração Local da Obra - Poço Totalmente Revestido","un",1,1972.11,{"$f":"ROUND(G6 * (1 + 26.34 / 100), 2)","v":2491.56},{"$f":"ROUND(F6 * H6, 2)","v":2491.56},{"$f":"I6 / 232426.4","v":1.0719780541281025E-2}]
[" 1.2 "," COMPOSIÇÃO - 003 ","Próprio","Serviço de locação Geológica de campo com relatório hidro geológico e perfil construtivo e geológico esperado. Relatório de Viabilidade de implantação das estruturas e vistorias preliminares","un",1,590.29999999999995,{"$f":"ROUND(G7 * (1 + 26.34 / 100), 2)","v":745.79},{"$f":"ROUND(F7 * H7, 2)","v":745.79},{"$f":"I7 / 232426.4","v":3.208714672687784E-3}]
[" 1.3 "," 103689 ","SINAPI","FORNECIMENTO E INSTALAÇÃO DE PLACA DE OBRA COM CHAPA GALVANIZADA E ESTRUTURA DE MADEIRA. AF_03/2022_PS","m²",0.72,487.37,{"$f":"ROUND(G8 * (1 + 26.34 / 100), 2)","v":615.74},{"$f":"ROUND(F8 * H8, 2)","v":443.33},{"$f":"I8 / 232426.4","v":1.9073995036708394E-3}]
[" 1.4 "," COMPOSIÇÃO - 052 ","Próprio","Taxas e emolumentos fiscais , administrativos para obtenção outorga e outros","un",1,4847.25,{"$f":"ROUND(G9 * (1 + 26.34 / 100), 2)","v":6124.02},{"$f":"ROUND(F9 * H9, 2)","v":6124.02},{"$f":"I9 / 232426.4","v":2.6348211734983636E-2}]
[" 2 ",null,null,"MOBILIZAÇÂO E DESMOBILIZAÇÂO EQUIPE CAMPO",{"$nulls":4},4884,{"$f":"I10 / 232426.4","v":2.1013103502872308E-2}]
[" 2.1 "," COMPOSIÇÃO - 006 ","Próprio","Transporte de Comboio Perfuração","km",300,4.59,{"$f":"ROUND(G11 * (1 + 26.34 / 100), 2)","v":5.8},{"$f":"ROUND(F11 * H11, 2)","v":1740},{"$f":"I11 / 232426.4","v":7.486240805691608E-3}]
[" 2.2 "," COMPOSIÇÃO - 007 ","Próprio","Transporte de Comboio Instalação","km",300,5.78,{"$f":"ROUND(G12 * (1 + 26.34 / 100), 2)","v":7.3},{"$f":"ROUND(F12 * H12, 2)","v":2190},{"$f":"I12 / 232426.4","v":9.422337565784266E-3}]
[" 2.3 "," COMPOSIÇÃO - 067 ","Próprio","Transporte de Equipe Teste de Vazão","km",300,2.52,{"$f":"ROUND(G13 * (1 + 26.34 / 100), 2)","v":3.18},{"$f":"ROUND(F13 * H13, 2)","v":954},{"$f":"I13 / 232426.4","v":4.1045251313964332E-3}]
[" 3 ",null,null,"PERFURAÇÃO E COMPLETAÇÃO DE POÇO TUBULAR",{"$nulls":4},108450.81,{"$f":"I14 / 232426.4","v":0.46660280415649857}]
[" 3.2 "," COMPOSIÇÃO - 038 ","Próprio","Perfuração diâmetro de Ø 12 1/4\" em rocha - incluso mão de obra para instalação do revestimento e completação anelar","m",150,326.11,{"$f":"ROUND(G15 * (1 + 26.34 / 100), 2)","v":412.01},{"$f":"ROUND(F15 * H15, 2)","v":61801.5},{"$f":"I15 / 232426.4","v":0.26589707537525858}]
[" 3.3 "," 5073 ","ORSE","Fornecimento de pré-filtro comum m3","m³",6.96,1619.38,{"$f":"ROUND(G16 * (1 + 15.28 / 100), 2) &CHAR(10)& \"(15.28%)\"","v":"1866,82\n(15.28%)"},{"$f":"ROUND((F16  * 1 ) * ROUND(G16 * (1 + 15.28 / 100), 2), 2)","v":12993.07},{"$f":"I16 / 232426.4","v":5.590186829034912E-2}]
[" 3.4 "," 5091 ","ORSE","Revestimento filtro pvc geomecânico reforçado dn 150mm","m",16,221.38,{"$f":"ROUND(G17 * (1 + 26.34 / 100), 2)","v":279.69},{"$f":"ROUND(F17 * H17, 2)","v":4475.04},{"$f":"I17 / 232426.4","v":1.9253578767300099E-2}]
[" 3.5 "," 5024 ","ORSE","Centralizador em 6\"","un",10,267.02,{"$f":"ROUND(G18 * (1 + 26.34 / 100), 2)","v":337.35},{"$f":"ROUND(F18 * H18, 2)","v":3373.5},{"$f":"I18 / 232426.4","v":1.4514272044827954E-2}]
[" 3.6 "," 00009850 ","SINAPI","TUBO PVC DE REVESTIMENTO GEOMECANICO NERVURADO REFORCADO, DN = 150 MM, COMPRIMENTO = 2 M","M",134,147.75,{"$f":"ROUND(G19 * (1 + 26.34 / 100), 2)","v":186.67},{"$f":"ROUND(F19 * H19, 2)","v":25013.78},{"$f":"I19 / 232426.4","v":0.10762021870149002}]
[" 3.7 "," COMPOSIÇÃO - 011 ","Próprio","Serviço de lançamento cimentação anelar, incluso materiais.","m³",1.1599999999999999,541.72,{"$f":"ROUND(G20 * (1 + 26.34 / 100), 2)","v":684.41},{"$f":"ROUND(F20 * H20, 2)","v":793.92},{"$f":"I20 / 232426.4","v":3.4157909772728054E-3}]
[" 4 ",null,null,"PÓS PERFURAÇÃO",{"$nulls":4},12156.03,{"$f":"I21 / 232426.4","v":5.230055621908699E-2}]
[" 4.1 "," 6305 ","ORSE","Desenvolvimento com Compressor 250psi / 750cfm","h",2,411.16,{"$f":"ROUND(G22 * (1 + 26.34 / 100), 2)","v":519.46},{"$f":"ROUND(F22 * H22, 2)","v":1038.92},{"$f":"I22 / 232426.4","v":4.4698881022121415E-3}]
[" 4.3 "," COMPOSIÇÃO - 015 ","Próprio","Inspeção ótica em poço tubular câmera com rotação de 360º, visada lateral, com fonte própria de luz, entregue vídeo em cores e marcação de profundidades.","m",150,9.42,{"$f":"ROUND(G23 * (1 + 26.34 / 100), 2)","v":11.9},{"$f":"ROUND(F23 * H23, 2)","v":1785},{"$f":"I23 / 232426.4","v":7.6798504817008739E-3}]
[" 4.5 "," COMPOSIÇÃO - 053 ","Próprio","Serviço de coleta e Análise Físico-Química e Bacteriológica","un",1,621.19000000000005,{"$f":"ROUND(G24 * (1 + 26.34 / 100), 2)","v":784.81},{"$f":"ROUND(F24 * H24, 2)","v":784.81},{"$f":"I24 / 232426.4","v":3.3765957739740407E-3}]
[" 4.6 "," COMPOSIÇÃO - 014 ","Próprio","Serviço de instalação de laje sanitária com dimensões (1,5x1,5x0,3) , incluso material.","un",1,634.04999999999995,{"$f":"ROUND(G25 * (1 + 26.34 / 100), 2)","v":801.06},{"$f":"ROUND(F25 * H25, 2)","v":801.06},{"$f":"I25 / 232426.4","v":3.4465103791996086E-3}]
[" 4.7 "," 24.80.22 ","EMBASA","Ensaio de bombeamento poço tubular incluso materiais e grupo gerador","H",24,255.47,{"$f":"ROUND(G26 * (1 + 26.34 / 100), 2)","v":322.76},{"$f":"ROUND(F26 * H26, 2)","v":7746.24},{"$f":"I26 / 232426.4","v":3.3327711482000325E-2}]
[" 5 ",null,null,"RESERVAÇÃO",{"$nulls":4},27094.09,{"$f":"I27 / 232426.4","v":0.1165706219259086}]
[" 5.1 "," COMPOSIÇÃO - 059 ","Próprio","Fornecimento e instalação de reservatório e base elevada 10 m³","un",0.8,25308.6,{"$f":"ROUND(G28 * (1 + 26.34 / 100), 2)","v":31974.89},{"$f":"ROUND(F28 * H28, 2)","v":25579.91},{"$f":"I28 / 232426.4","v":0.11005595749880392}]
[" 5.2 "," COMPOSIÇÃO - 039 ","Próprio","Fornecimento e execução de reservatório apoiado de 5 m³","un",0.2,5992.49,{"$f":"ROUND(G29 * (1 + 26.34 / 100), 2)","v":7570.91},{"$f":"ROUND(F29 * H29, 2)","v":1514.18},{"$f":"I29 / 232426.4","v":6.5146644271046666E-3}]
[" 6 ",null,null,"BEBEDOURO",{"$nulls":4},1951.4,{"$f":"I30 / 232426.4","v":8.3957760392106926E-3}]
[" 6.1 "," COMPOSIÇÃO - 017 ","Próprio","Serviço de execução do bebedouro em concreto armado, incluso materiais.","un",1,1544.56,{"$f":"ROUND(G31 * (1 + 26.34 / 100), 2)","v":1951.4},{"$f":"ROUND(F31 * H31, 2)","v":1951.4},{"$f":"I31 / 232426.4","v":8.3957760392106926E-3}]
[" 7 ",null,null,"CHAFARIZ",{"$nulls":4},1331.14,{"$f":"I32 / 232426.4","v":5.7271463138438665E-3}]
[" 7.1 "," COMPOSIÇÃO - 045 ","Próprio","Fornecimento de material e instalação do chafariz","un",1,1053.6199999999999,{"$f":"ROUND(G33 * (1 + 26.34 / 100), 2)","v":1331.14},{"$f":"ROUND(F33 * H33, 2)","v":1331.14},{"$f":"I33 / 232426.4","v":5.7271463138438665E-3}]
[" 8 ",null,null,"CAVALETE",{"$nulls":4},2163.96,{"$f":"I34 / 232426.4","v":9.3103020999335713E-3}]
[" 8.1 "," COMPOSIÇÃO - 018 ","Próprio","Fornecimento de conexões e Instalação do Cavalete com hidrômetro e clorador de pastilhas","un",1,1712.81,{"$f":"ROUND(G35 * (1 + 26.34 / 100), 2)","v":2163.96},{"$f":"ROUND(F35 * H35, 2)","v":2163.96},{"$f":"I35 / 232426.4","v":9.3103020999335713E-3}]
[" 9 ",null,null,"INSTALAÇÕES HIDRÁULICAS POÇO E ADUTORA",{"$nulls":4},21026.04,{"$f":"I36 / 232426.4","v":9.0463217603508048E-2}]
[" 9.1 "," COMPOSIÇÃO - 020 ","Próprio","Fornecimento e instalação da rede adutora poço-reservatório-bebedouro em PN80 e DN50MM","m",400,28.27,{"$f":"ROUND(G37 * (1 + 26.34 / 100), 2)","v":35.72},{"$f":"ROUND(F37 * H37, 2)","v":14288},{"$f":"I37 / 232426.4","v":6.1473223351564195E-2}]
[" 9.2 "," COMPOSIÇÃO - 019 ","Próprio","Montagem hidráulica do equipamento de bombeamento","un",1,148.13999999999999,{"$f":"ROUND(G38 * (1 + 26.34 / 100), 2)","v":187.16},{"$f":"ROUND(F38 * H38, 2)","v":187.16},{"$f":"I38 / 232426.4","v":8.0524415470875947E-4}]
[" 9.3 "," 00038200 ","SINAPI","CORDA DE POLIAMIDA 12 MM TIPO BOMBEIRO, PARA TRABALHO EM ALTURA","100M",0.93,635.12,{"$f":"ROUND(G39 * (1 + 15.28 / 100), 2) &CHAR(10)& \"(15.28%)\"","v":"732,17\n(15.28%)"},{"$f":"ROUND((F39  * 1 ) * ROUND(G39 * (1 + 15.28 / 100), 2), 2)","v":680.92},{"$f":"I39 / 232426.4","v":2.9296155686273158E-3}]
[" 9.4 "," 00009860 ","SINAPI","TUBO PVC, ROSCAVEL,  2\", PARA AGUA FRIA PREDIAL","M",90,44.05,{"$f":"ROUND(G40 * (1 + 26.34 / 100), 2)","v":55.65},{"$f":"ROUND(F40 * H40, 2)","v":5008.5},{"$f":"I40 / 232426.4","v":2.1548756939831278E-2}]
[" 9.5 "," 00003912 ","SINAPI","LUVA DE FERRO GALVANIZADO, COM ROSCA BSP, DE 2\"","UN",16,35.909999999999997,{"$f":"ROUND(G41 * (1 + 26.34 / 100), 2)","v":45.37},{"$f":"ROUND(F41 * H41, 2)","v":725.92},{"$f":"I41 / 232426.4","v":3.1232252446365817E-3}]
[" 9.6 "," 5128 ","ORSE","Tampa de poço galvanizada em 6\" un","un",1,107.28,{"$f":"ROUND(G42 * (1 + 26.34 / 100), 2)","v":135.54},{"$f":"ROUND(F42 * H42, 2)","v":135.54},{"$f":"I42 / 232426.4","v":5.8315234413990839E-4}]
[" 11 ",null,null,"ESTRUTURA DE FIXAÇÃO PARA MÓDULOS FOTOVOLTÁICOS",{"$nulls":4},5111.04,{"$f":"I43 / 232426.4","v":2.1989928854897724E-2}]
[" 11.1 "," COMPOSIÇÃO - 022 ","Próprio","Serviço de fixação de estruturas para os módulos fotovoltaicos e suportes de concreto, incluso materiais.","m²",16,252.84,{"$f":"ROUND(G44 * (1 + 26.34 / 100), 2)","v":319.44},{"$f":"ROUND(F44 * H44, 2)","v":5111.04},{"$f":"I44 / 232426.4","v":2.1989928854897724E-2}]
[" 12 ",null,null,"INSTALAÇÕES ELÉTRICAS",{"$nulls":4},19945.939999999999,{"$f":"I45 / 232426.4","v":8.5816155135561192E-2}]
[" 12.1 "," COMPOSIÇÃO - 021 ","Próprio","Montagem e instalação elétrica do kit de bombeamento e sistema fotovoltaico inclusive sistema de aterramento.","un",1,1077.29,{"$f":"ROUND(G46 * (1 + 26.34 / 100), 2)","v":1361.05},{"$f":"ROUND(F46 * H46, 2)","v":1361.05},{"$f":"I46 / 232426.4","v":5.8558322118313581E-3}]
[" 12.2 "," 00034622 ","SINAPI","FORNECIMENTO DE  CABO FLEXIVEL PVC 750 V, 3 CONDUTORES DE 6,0 MM2","M",105,20.11,{"$f":"ROUND(G47 * (1 + 15.28 / 100), 2) &CHAR(10)& \"(15.28%)\"","v":"23,18\n(15.28%)"},{"$f":"ROUND((F47  * 1 ) * ROUND(G47 * (1 + 15.28 / 100), 2), 2)","v":2433.9},{"$f":"I47 / 232426.4","v":1.0471702009754487E-2}]
[" 12.3 "," COMPOSIÇÃO - 047 ","Próprio","Fornecimento e instalação de automático de bóia superior e inferior","un",1,68.08,{"$f":"ROUND(G48 * (1 + 26.34 / 100), 2)","v":86.01},{"$f":"ROUND(F48 * H48, 2)","v":86.01},{"$f":"I48 / 232426.4","v":3.7005262741237661E-4}]
[" 12.4 "," 00039257 ","SINAPI","CABO MULTIPOLAR DE COBRE, FLEXIVEL, CLASSE 4 OU 5, ISOLACAO EM HEPR, COBERTURA EM PVC-ST2, ANTICHAMA BWF-B, 0,6/1 KV, 3 CONDUTORES DE 1,5 MM2","M",200,5.47,{"$f":"ROUND(G49 * (1 + 26.34 / 100), 2)","v":6.91},{"$f":"ROUND(F49 * H49, 2)","v":1382},{"$f":"I49 / 232426.4","v":5.9459682721067835E-3}]
[" 12.5 "," COTAÇÃO-002 ","Próprio","Fornecimento de kit de bombeamento fotovoltaico, incluindo uma bomba CC de 2200W com controladora de carga externa,  caixa de proteção metálica, módulos fotovoltaicos compatíveis com a geração de 3300Wp além de componentes elétricos necessários para interligação dos painéis, como cabos, conectores MC4 e presilhas de fixação.","un",1,11621.8,{"$f":"ROUND(G50 * (1 + 26.34 / 100), 2)","v":14682.98},{"$f":"ROUND(F50 * H50, 2)","v":14682.98},{"$f":"I50 / 232426.4","v":6.3172600014456196E-2}]
[" 13 ",null,null,"URBANIZAÇÃO",{"$nulls":4},4225.3599999999997,{"$f":"I51 / 232426.4","v":1.8179346236055799E-2}]
[" 13.1 "," COMPOSIÇÃO - 023 ","Próprio","Cerca com mourões de concreto de 15x15cm, espaçados de 3m e cravados a 0,5m, escoras de 10x10cm nos cantos, e 9 fios de arame de aço ovalado 15x17.","m",28,83.2,{"$f":"ROUND(G52 * (1 + 26.34 / 100), 2)","v":105.11},{"$f":"ROUND(F52 * H52, 2)","v":2943.08},{"$f":"I52 / 232426.4","v":1.2662417005985551E-2}]
[" 13.2 "," COMPOSIÇÃO - 024 ","Próprio","Serviço de instalação de portão de ferro com suporte e batedor conforme projeto, incluso material","m²",1.5,676.63,{"$f":"ROUND(G53 * (1 + 26.34 / 100), 2)","v":854.85},{"$f":"ROUND(F53 * H53, 2)","v":1282.28},{"$f":"I53 / 232426.4","v":5.5169292300702505E-3}]
[" 14 ",null,null,"OUTROS SERVIÇOS E INSUMOS EXCEPCIONAIS",{"$nulls":4},14281.89,{"$f":"I54 / 232426.4","v":6.144693545999938E-2}]
[" 14.2 "," COMPOSIÇÃO - 025 ","Próprio","Execução de tamponamento conforme especificação","m³",0.08,664.98,{"$f":"ROUND(G55 * (1 + 26.34 / 100), 2)","v":840.14},{"$f":"ROUND(F55 * H55, 2)","v":67.209999999999994},{"$f":"I55 / 232426.4","v":2.8916680721294995E-4}]
[" 14.3 "," 13747 ","ORSE","Revestimento tubo liso aço sch-40 em 12\"","m",6,921.04,{"$f":"ROUND(G56 * (1 + 26.34 / 100), 2)","v":1163.6400000000001},{"$f":"ROUND(F56 * H56, 2)","v":6981.84},{"$f":"I56 / 232426.4","v":3.0038928452189598E-2}]
[" 14.5 "," M3929 ","SICRO3","Tubo em aço-carbono - E = 3,00 mm e D = 150 mm (6\")","m",6,171.2287,{"$f":"ROUND(G57 * (1 + 26.34 / 100), 2)","v":216.33},{"$f":"ROUND(F57 * H57, 2)","v":1297.98},{"$f":"I57 / 232426.4","v":5.5844774948112606E-3}]
[" 14.6 "," M039706073 ","EMBASA","FILTRO NOLD EM AÇO GALVANIZADO DN 6\"","M",6,763.9,{"$f":"ROUND(G58 * (1 + 26.34 / 100), 2)","v":965.11},{"$f":"ROUND(F58 * H58, 2)","v":5790.66},{"$f":"I58 / 232426.4","v":2.4913951255106995E-2}]
[" 14.7 "," COMPOSIÇÃO - 009 ","Próprio","Limpeza manual , remoção de cerca, capina e instalação dos equipamentos (área do poço, painéis solares, bebedouro e reservatório)","m²",70,1.63,{"$f":"ROUND(G59 * (1 + 26.34 / 100), 2)","v":2.06},{"$f":"ROUND(F59 * H59, 2)","v":144.19999999999999},{"$f":"I59 / 232426.4","v":6.2041145067858036E-4}]
[]
[{"$nulls":5},"Total sem BDI",null,185192.5]
[{"$nulls":5},"Total do BDI",null,47233.9]
[{"$nulls":5},"Total Geral",null,232426.4]
[]
["_______________________________________________________________\nAR/GSA/UEA"]

{"sheet":"Orçamento Analítico (T)","index":6,"n_rows":439,"n_cols":10,"rows_kept":439,"cut":false,"hidden":false,"merged":[[434,7,434,9],[436,0,436,2],[436,5,436,6],[436,7,436,9],[438,0,438,9],[420,4,420,5],[421,4,421,5],[423,7,423,8],[426,4,426,5],[427,4,427,5],[428,4,428,5],[411,7,411,8],[414,4,414,5],[415,4,415,5],[417,7,417,8],[435,0,435,2],[435,5,435,6],[435,7,435,9],[430,7,430,8],[434,0,434,2],[434,5,434,6],[401,4,401,5],[402,4,402,5],[403,4,403,5],[405,7,405,8],[408,4,408,5],[409,4,409,5],[392,4,392,5],[393,4,393,5],[395,7,395,8],[398,5,398,6],[399,4,399,5],[400,4,400,5],[384,7,384,8],[387,4,387,5],[388,4,388,5],[389,4,389,5],[390,4,390,5],[391,4,391,5],[377,4,377,5],[378,4,378,5],[379,4,379,5],[380,4,380,5],[381,4,381,5],[382,4,382,5],[368,4,368,5],[370,7,370,8],[373,5,373,6],[374,4,374,5],[375,4,375,5],[376,4,376,5],[356,4,356,5],[358,7,358,8],[361,4,361,5],[362,4,362,5],[364,7,364,8],[367,4,367,5],[350,4,350,5],[351,4,351,5],[352,4,352,5],[353,4,353,5],[354,4,354,5],[355,4,355,5],[338,4,338,5],[339,4,339,5],[341,7,341,8],[344,4,344,5],[345,4,345,5],[347,7,347,8],[332,4,332,5],[333,4,333,5],[334,4,334,5],[335,4,335,5],[336,4,336,5],[337,4,337,5],[326,5,326,6],[327,4,327,5],[328,4,328,5],[329,4,329,5],[330,4,330,5],[331,4,331,5],[317,4,317,5],[318,4,318,5],[319,4,319,5],[320,4,320,5],[321,4,321,5],[323,7,323,8],[308,4,308,5],[310,7,310,8],[313,5,313,6],[314,4,314,5],[315,4,315,5],[316,4,316,5],[296,4,296,5],[298,7,298,8],[301,4,301,5],[302,4,302,5],[304,7,304,8],[307,4,307,5],[284,4,284,5],[286,7,286,8],[289,4,289,5],[290,4,290,5],[292,7,292,8],[295,4,295,5],[275,4,275,5],[276,4,276,5],[278,7,278,8],[281,4,281,5],[282,4,282,5],[283,4,283,5],[267,7,267,8],[270,5,270,6],[271,4,271,5],[272,4,272,5],[273,4,273,5],[274,4,274,5],[260,4,260,5],[261,4,261,5],[262,4,262,5],[263,4,263,5],[264,4,264,5],[265,4,265,5],[254,4,254,5],[255,4,255,5],[256,4,256,5],[257,4,257,5],[258,4,258,5],[259,4,259,5],[248,5,248,6],[249,4,249,5],[250,4,250,5],[251,4,251,5],[252,4,252,5],[253,4,253,5],[239,4,239,5],[240,4,240,5],[241,4,241,5],[242,4,242,5],[243,4,243,5],[245,7,245,8],[233,4,233,5],[234,4,234,5],[235,4,235,5],[236,4,236,5],[237,4,237,5],[238,4,238,5],[227,4,227,5],[228,4,228,5],[229,4,229,5],[230,4,230,5],[231,4,231,5],[232,4,232,5],[221,5,221,6],[222,4,222,5],[223,4,223,5],[224,4,224,5],[225,4,225,5],[226,4,226,5],[212,4,212,5],[213,4,213,5],[214,4,214,5],[215,4,215,5],[216,4,216,5],[218,7,218,8],[206,4,206,5],[207,4,207,5],[208,4,208,5],[209,4,209,5],[210,4,210,5],[211,4,211,5],[200,4,200,5],[201,4,201,5],[202,4,202,5],[203,4,203,5],[204,4,204,5],[205,4,205,5],[192,7,192,8],[195,5,195,6],[196,4,196,5],[197,4,197,5],[198,4,198,5],[199,4,199,5],[185,4,185,5],[186,4,186,5],[187,4,187,5],[188,4,188,5],[189,4,189,5],[190,4,190,5],[179,4,179,5],[180,4,180,5],[181,4,181,5],[182,4,182,5],[183,4,183,5],[184,4,184,5],[170,4,170,5],[171,4,171,5],[172,4,172,5],[173,4,173,5],[175,7,175,8],[178,4,178,5],[164,4,164,5],[165,4,165,5],[166,4,166,5],[167,4,167,5],[168,4,168,5],[169,4,169,5],[158,4,158,5],[159,4,159,5],[160,4,160,5],[161,4,161,5],[162,4,162,5],[163,4,163,5],[152,4,152,5],[153,4,153,5],[154,4,154,5],[155,4,155,5],[156,4,156,5],[157,4,157,5],[143,4,143,5],[145,7,145,8],[148,5,148,6],[149,4,149,5],[150,4,150,5],[151,4,151,5],[134,4,134,5],[135,4,135,5],[137,7,137,8],[140,4,140,5],[141,4,141,5],[142,4,142,5],[125,4,125,5],[127,7,127,8],[130,4,130,5],[131,4,131,5],[132,4,132,5],[133,4,133,5],[116,4,116,5],[117,4,117,5],[119,7,119,8],[122,4,122,5],[123,4,123,5],[124,4,124,5],[107,4,107,5],[108,4,108,5],[109,4,109,5],[111,7,111,8],[114,4,114,5],[115,4,115,5],[96,7,96,8],[99,4,99,5],[100,4,100,5],[101,4,101,5],[103,7,103,8],[106,5,106,6],[84,7,84,8],[87,4,87,5],[88,4,88,5],[90,7,90,8],[93,4,93,5],[94,4,94,5],[72,7,72,8],[75,4,75,5],[76,4,76,5],[78,7,78,8],[81,4,81,5],[82,4,82,5],[63,7,63,8],[66,5,66,6],[67,4,67,5],[68,4,68,5],[69,4,69,5],[70,4,70,5],[53,4,53,5],[55,7,55,8],[58,4,58,5],[59,4,59,5],[60,4,60,5],[61,4,61,5],[44,4,44,5],[45,4,45,5],[47,7,47,8],[50,4,50,5],[51,4,51,5],[52,4,52,5],[35,4,35,5],[36,4,36,5],[38,7,38,8],[41,5,41,6],[42,4,42,5],[43,4,43,5],[26,4,26,5],[27,4,27,5],[28,4,28,5],[29,4,29,5],[31,7,31,8],[34,4,34,5],[18,7,18,8],[21,4,21,5],[22,4,22,5],[23,4,23,5],[24,4,24,5],[25,4,25,5],[9,7,9,8],[12,4,12,5],[13,4,13,5],[14,4,14,5],[15,4,15,5],[16,4,16,5],[2,0,2,9],[3,5,3,6],[4,4,4,5],[5,4,5,5],[6,4,6,5],[7,4,7,5],[0,2,0,3],[0,4,0,5],[0,6,0,7],[0,8,0,9],[1,2,1,3],[1,4,1,5],[1,6,1,7],[1,8,1,9]]}
[null,null,"Obra:",null,"Bancos",null,"B.D.I.",null,"Encargos Sociais"]
["1ªSR/MG",null,"PERFURAÇÃO E INSTALAÇÃO DE POÇO TUBULAR TOTALMENTE REVESTIDO - 150m",null,"SINAPI - 09/2024 - Minas Gerais\nSBC - 10/2024 - Minas Gerais\nSICRO3 - 04/2024 - Minas Gerais\nORSE - 06/2024 - Sergipe\nSEINFRA - 028 - Ceará\nCPOS/CDHU - 09/2024 - São Paulo\nFDE - 07/2024 - São Paulo\nEMBASA - 05/2024 - Bahia\n",null,"26,34%",null,"Não Desonerado: \nHorista: 108,90%\nMensalista: 67,79%"]
["Planilha Orçamentária Analítica"]
[" 1 ",null,null,"SERVIÇOS PRELIMINARES",{"$nulls":5},9804.7000000000007]
[" 1.1 ","Código","Banco","Descrição","Tipo",null,"Und","Quant.","Valor Unit","Total"]
["Composição"," COMPOSIÇÃO - 050 ","Próprio","Administração Local da Obra - Poço Totalmente Revestido","CANT - CANTEIRO DE OBRAS",null,"un",1,1972.11,1972.11]
["Composição Auxiliar"," 012710 ","SBC","DESPESAS GERAIS DE MANUTENCAO CANTEIRO DE OBRAS","INSTALACOES PROVISORIAS",null,"MES",0.23,1805.82,415.34]
["Composição Auxiliar"," 100321 ","SINAPI","TÉCNICO EM SEGURANÇA DO TRABALHO COM ENCARGOS COMPLEMENTARES","SEDI - SERVIÇOS DIVERSOS",null,"MES",0.23,6768.58,1556.77]
[{"$nulls":4},"MO sem LS =>",699.17,"LS =>",761.39,"MO com LS =>",1460.56]
[{"$nulls":4},"Valor do BDI =>",519.45377399999995,null,"Valor com BDI =>",null,2491.56]
[{"$nulls":6},"Quant. =>",1,"Preço Total =>",2491.56]
[]
[" 1.2 ","Código","Banco","Descrição","Tipo",null,"Und","Quant.","Valor Unit","Total"]
["Composição"," COMPOSIÇÃO - 003 ","Próprio","Serviço de locação Geológica de campo com relatório hidro geológico e perfil construtivo e geológico esperado. Relatório de Viabilidade de implantação das estruturas e vistorias preliminares","SERT - SERVIÇOS TÉCNICOS",null,"un",1,590.29999999999995,590.29999999999995]
["Composição Auxiliar"," 30.01.45 ","EMBASA","GEOLOGO SENIOR",3001,null,"hora",5,97.41,487.05]
["Insumo"," 5896 ","ORSE","Veículo tipo sedan ou pick-up capacidade 0,6 ton h","Equipamento",null,"h",5,8.33,41.65]
["Insumo"," 00004222 ","SINAPI","GASOLINA COMUM","Material",null,"L",10,6.16,61.6]
[{"$nulls":4},"MO sem LS =>",233.15,"LS =>",253.9,"MO com LS =>",487.05]
[{"$nulls":4},"Valor do BDI =>",155.48501999999999,null,"Valor com BDI =>",null,745.79]
[{"$nulls":6},"Quant. =>",1,"Preço Total =>",745.79]
[]
[" 1.3 ","Código","Banco","Descrição","Tipo",null,"Und","Quant.","Valor Unit","Total"]
["Composição"," 103689 ","SINAPI","FORNECIMENTO E INSTALAÇÃO DE PLACA DE OBRA COM CHAPA GALVANIZADA E ESTRUTURA DE MADEIRA. AF_03/2022_PS","PAVI - PAVIMENTAÇÃO",null,"m²",1,487.37,487.37]
["Composição Auxiliar"," 102234 ","SINAPI","PINTURA IMUNIZANTE PARA MADEIRA, 2 DEMÃOS. AF_01/2021","PINT - PINTURAS",null,"m²",0.5,22.24,11.12]
["Composição Auxiliar"," 88262 ","SINAPI","CARPINTEIRO DE FORMAS COM ENCARGOS COMPLEMENTARES","SEDI - SERVIÇOS DIVERSOS",null,"H",0.37290000000000001,27.78,10.36]
["Composição Auxiliar"," 88316 ","SINAPI","SERVENTE COM ENCARGOS COMPLEMENTARES","SEDI - SERVIÇOS DIVERSOS",null,"H",1.1186,20.420000000000002,22.84]
["Insumo"," 00004509 ","SINAPI","SARRAFO *2,5 X 10* CM EM PINUS, MISTA OU EQUIVALENTE DA REGIAO - BRUTA","Material",null,"M",3.2082999999999999,4.0199999999999996,12.9]
["Insumo"," 00004813 ","SINAPI","PLACA DE OBRA (PARA CONSTRUCAO CIVIL) EM CHAPA GALVANIZADA *N. 22*, ADESIVADA, DE *2,4 X 1,2* M (SEM POSTES PARA FIXACAO)","Material",null,"m²",1,429.5,429.5]
["Insumo"," 00005065 ","SINAPI","PREGO DE ACO POLIDO COM CABECA 10 X 10 (7/8 X 17)","Material",null,"KG",1.1299999999999999E-2,35.119999999999997,0.4]
["Insumo"," 00005069 ","SINAPI","PREGO DE ACO POLIDO COM CABECA 17 X 27 (2 1/2 X 11)","Material",null,"KG",1.32E-2,18.82,0.25]
[{"$nulls":4},"MO sem LS =>",14.07,"LS =>",15.33,"MO com LS =>",29.4]
[{"$nulls":4},"Valor do BDI =>",128.37325799999999,null,"Valor com BDI =>",null,615.74]
[{"$nulls":6},"Quant. =>",0.72,"Preço Total =>",443.33]
[]
[" 1.4 ","Código","Banco","Descrição","Tipo",null,"Und","Quant.","Valor Unit","Total"]
["Composição"," COMPOSIÇÃO - 052 ","Próprio","Taxas e emolumentos fiscais , administrativos para obtenção outorga e outros","ASTU - ASSENTAMENTO DE TUBOS E PECAS",null,"un",1,4847.25,4847.25]
["Insumo"," A.09.000.020507 ","CPOS/CDHU","Outorga de direito de uso para poço profundo conforme Portaria DAEE nº 1.630 de 30/05/2017 e suas complementares 1.631 a 1.635 e Instrução Técnica DPO nº 10 de 30/05/2017 do DAEE","Material",null,"UN",1,4847.25,4847.25]
[{"$nulls":4},"MO sem LS =>",0,"LS =>",0,"MO com LS =>",0]
[{"$nulls":4},"Valor do BDI =>",1276.7656500000001,null,"Valor com BDI =>",null,6124.02]
[{"$nulls":6},"Quant. =>",1,"Preço Total =>",6124.02]
[]
[" 2 ",null,null,"MOBILIZAÇÂO E DESMOBILIZAÇÂO EQUIPE CAMPO",{"$nulls":5},4884]
[" 2.1 ","Código","Banco","Descrição","Tipo",null,"Und","Quant.","Valor Unit","Total"]
["Composição"," COMPOSIÇÃO - 006 ","Próprio","Transporte de Comboio Perfuração","TRAN - TRANSPORTES, CARGAS E DESCARGAS",null,"km",1,4.59,4.59]
["Composição Auxiliar"," 5824 ","SINAPI","CAMINHÃO TOCO, PBT 16.000 KG, CARGA ÚTIL MÁX. 10.685 KG, DIST. ENTRE EIXOS 4,8 M, POTÊNCIA 189 CV, INCLUSIVE CARROCERIA FIXA ABERTA DE MADEIRA P/ TRANSPORTE GERAL DE CARGA SECA, DIMEN. APROX. 2,5 X 7,00 X 0,50 M - CHP DIURNO. AF_06/2014","CHOR - CUSTOS HORÁRIOS DE MÁQUINAS E EQUIPAMENTOS",null,"CHP",1.6660000000000001E-2,213.13,3.55]
["Composição Auxiliar"," 5826 ","SINAPI","CAMINHÃO TOCO, PBT 16.000 KG, CARGA ÚTIL MÁX. 10.685 KG, DIST. ENTRE EIXOS 4,8 M, POTÊNCIA 189 CV, INCLUSIVE CARROCERIA FIXA ABERTA DE MADEIRA P/ TRANSPORTE GERAL DE CARGA SECA, DIMEN. APROX. 2,5 X 7,00 X 0,50 M - CHI DIURNO. AF_06/2014","CHOR - CUSTOS HORÁRIOS DE MÁQUINAS E EQUIPAMENTOS",null,"CHI",1.6660000000000001E-2,62.19,1.04]
[{"$nulls":4},"MO sem LS =>",0.4,"LS =>",0.44,"MO com LS =>",0.84]
[{"$nulls":4},"Valor do BDI =>",1.209006,null,"Valor com BDI =>",null,5.8]
[{"$nulls":6},"Quant. =>",300,"Preço Total =>",1740]
[]
[" 2.2 ","Código","Banco","Descrição","Tipo",null,"Und","Quant.","Valor Unit","Total"]
["Composição"," COMPOSIÇÃO - 007 ","Próprio","Transporte de Comboio Instalação","TRAN - TRANSPORTES, CARGAS E DESCARGAS",null,"km",1,5.78,5.78]
["Composição Auxiliar"," 5928 ","SINAPI","GUINDAUTO HIDRÁULICO, CAPACIDADE MÁXIMA DE CARGA 6200 KG, MOMENTO MÁXIMO DE CARGA 11,7 TM, ALCANCE MÁXIMO HORIZONTAL 9,70 M, INCLUSIVE CAMINHÃO TOCO PBT 16.000 KG, POTÊNCIA DE 189 CV - CHP DIURNO. AF_06/2014","CHOR - CUSTOS HORÁRIOS DE MÁQUINAS E EQUIPAMENTOS",null,"CHP",1.6660000000000001E-2,272.82,4.55]
["Composição Auxiliar"," 5930 ","SINAPI","GUINDAUTO HIDRÁULICO, CAPACIDADE MÁXIMA DE CARGA 6200 KG, MOMENTO MÁXIMO DE CARGA 11,7 TM, ALCANCE MÁXIMO HORIZONTAL 9,70 M, INCLUSIVE CAMINHÃO TOCO PBT 16.000 KG, POTÊNCIA DE 189 CV - CHI DIURNO. AF_06/2014","CHOR - CUSTOS HORÁRIOS DE MÁQUINAS E EQUIPAMENTOS",null,"CHI",1.6660000000000001E-2,73.84,1.23]
[{"$nulls":4},"MO sem LS =>",0.45,"LS =>",0.51,"MO com LS =>",0.96]
[{"$nulls":4},"Valor do BDI =>",1.5224519999999999,null,"Valor com BDI =>",null,7.3]
[{"$nulls":6},"Quant. =>",300,"Preço Total =>",2190]
[]
[" 2.3 ","Código","Banco","Descrição","Tipo",null,"Und","Quant.","Valor Unit","Total"]
["Composição"," COMPOSIÇÃO - 067 ","Próprio","Transporte de Equipe Teste de Vazão","TRAN - TRANSPORTES, CARGAS E DESCARGAS",null,"km",1,2.52,2.52]
["Composição Auxiliar"," 73467 ","SINAPI","CAMINHÃO TOCO, PBT 14.300 KG, CARGA ÚTIL MÁX. 9.710 KG, DIST. ENTRE EIXOS 3,56 M, POTÊNCIA 185 CV, INCLUSIVE CARROCERIA FIXA ABERTA DE MADEIRA P/ TRANSPORTE GERAL DE CARGA SECA, DIMEN. APROX. 2,50 X 6,50 X 0,50 M - CHP DIURNO. AF_06/2014","CHOR - CUSTOS HORÁRIOS DE MÁQUINAS E EQUIPAMENTOS",null,"CHP",8.3000000000000001E-3,244.26,2.0299999999999998]
["Composição Auxiliar"," 91395 ","SINAPI","CAMINHÃO TOCO, PBT 14.300 KG, CARGA ÚTIL MÁX. 9.710 KG, DIST. ENTRE EIXOS 3,56 M, POTÊNCIA 185 CV, INCLUSIVE CARROCERIA FIXA ABERTA DE MADEIRA P/ TRANSPORTE GERAL DE CARGA SECA, DIMEN. APROX. 2,50 X 6,50 X 0,50 M - CHI DIURNO. AF_06/2014","CHOR - CUSTOS HORÁRIOS DE MÁQUINAS E EQUIPAMENTOS",null,"CHI",8.3000000000000001E-3,59.38,0.49]
[{"$nulls":4},"MO sem LS =>",0.2,"LS =>",0.22,"MO com LS =>",0.42]
[{"$nulls":4},"Valor do BDI =>",0.66376800000000002,null,"Valor com BDI =>",null,3.18]
[{"$nulls":6},"Quant. =>",300,"Preço Total =>",954]
[]
[" 3 ",null,null,"PERFURAÇÃO E COMPLETAÇÃO DE POÇO TUBULAR",{"$nulls":5},108450.81]
[" 3.2 ","Código","Banco","Descrição","Tipo",null,"Und","Quant.","Valor Unit","Total"]
["Composição"," COMPOSIÇÃO - 038 ","Próprio","Perfuração diâmetro de Ø 12 1/4\" em rocha - incluso mão de obra para instalação do revestimento e completação anelar","SERT - SERVIÇOS TÉCNICOS",null,"m",1,326.11,326.11]
["Composição Auxiliar"," 6224 ","ORSE","Perfuração em Sedimento / Camadas inconsolidadas DN 12.1/2\" - Poço de 150 a 250m","Conversão InfoWOrca",null,"m",1,318.61,318.61]
["Insumo"," 00043366 ","SINAPI","BENTONITA, ARGILA CONSTITUIDA POR  MONTMORILONITA","Material",null,"KG",5,1.5,7.5]
[{"$nulls":4},"MO sem LS =>",0,"LS =>",0,"MO com LS =>",0]
[{"$nulls":4},"Valor do BDI =>",85.897373999999999,null,"Valor com BDI =>",null,412.01]
[{"$nulls":6},"Quant. =>",150,"Preço Total =>",61801.5]
[]
[" 3.3 ","Código","Banco","Descrição","Tipo",null,"Und","Quant.","Valor Unit","Total"]
["Insumo"," 5073 ","ORSE","Fornecimento de pré-filtro comum m3","Serviços",null,"m³",1,1619.38,1619.38]
[{"$nulls":4},"MO sem LS =>",0,"LS =>",0,"MO com LS =>",0]
[{"$nulls":4},"Valor do BDI =>",247.44,null,"Valor com BDI =>",null,1866.82]
[{"$nulls":6},"Quant. =>",6.96,"Preço Total =>",12993.07]
[]
[" 3.4 ","Código","Banco","Descrição","Tipo",null,"Und","Quant.","Valor Unit","Total"]
["Insumo"," 5091 ","ORSE","Revestimento filtro pvc geomecânico reforçado dn 150mm","Serviços",null,"m",1,221.38,221.38]
[{"$nulls":4},"MO sem LS =>",0,"LS =>",0,"MO com LS =>",0]
[{"$nulls":4},"Valor do BDI =>",58.31,null,"Valor com BDI =>",null,279.69]
[{"$nulls":6},"Quant. =>",16,"Preço Total =>",4475.04]
[]
[" 3.5 ","Código","Banco","Descrição","Tipo",null,"Und","Quant.","Valor Unit","Total"]
["Insumo"," 5024 ","ORSE","Centralizador em 6\"","Serviços",null,"un",1,267.02,267.02]
[{"$nulls":4},"MO sem LS =>",0,"LS =>",0,"MO com LS =>",0]
[{"$nulls":4},"Valor do BDI =>",70.33,null,"Valor com BDI =>",null,337.35]
[{"$nulls":6},"Quant. =>",10,"Preço Total =>",3373.5]
[]
[" 3.6 ","Código","Banco","Descrição","Tipo",null,"Und","Quant.","Valor Unit","Total"]
["Insumo"," 00009850 ","SINAPI","TUBO PVC DE REVESTIMENTO GEOMECANICO NERVURADO REFORCADO, DN = 150 MM, COMPRIMENTO = 2 M","Material",null,"M",1,147.75,147.75]
[{"$nulls":4},"MO sem LS =>",0,"LS =>",0,"MO com LS =>",0]
[{"$nulls":4},"Valor do BDI =>",38.92,null,"Valor com BDI =>",null,186.67]
[{"$nulls":6},"Quant. =>",134,"Preço Total =>",25013.78]
[]
[" 3.7 ","Código","Banco","Descrição","Tipo",null,"Und","Quant.","Valor Unit","Total"]
["Composição"," COMPOSIÇÃO - 011 ","Próprio","Serviço de lançamento cimentação anelar, incluso materiais.","SEDI - SERVIÇOS DIVERSOS",null,"m³",1,541.72,541.72]
["Composição Auxiliar"," 1903 ","ORSE","Argamassa cimento e areia traço t-1 (1:3) - 1 saco cimento 50kg / 3 padiolas areia dim. 0.35 x 0.45 x 0.23 m - Confecção mecânica e transporte","Argamassas",null,"m³",1,541.72,541.72]
[{"$nulls":4},"MO sem LS =>",26.14,"LS =>",28.46,"MO com LS =>",54.6]
[{"$nulls":4},"Valor do BDI =>",142.68904800000001,null,"Valor com BDI =>",null,684.41]
[{"$nulls":6},"Quant. =>",1.1599999999999999,"Preço Total =>",793.92]
[]
[" 4 ",null,null,"PÓS PERFURAÇÃO",{"$nulls":5},12156.03]
[" 4.1 ","Código","Banco","Descrição","Tipo",null,"Und","Quant.","Valor Unit","Total"]
["Composição"," 6305 ","ORSE","Desenvolvimento com Compressor 250psi / 750cfm","Conversão InfoWOrca",null,"h",1,411.16,411.16]
["Insumo"," 5030 ","ORSE","Desenvolvimento com compressor 250psi - 750cfm h","Serviços",null,"h",1,411.16,411.16]
[{"$nulls":4},"MO sem LS =>",0,"LS =>",0,"MO com LS =>",0]
[{"$nulls":4},"Valor do BDI =>",108.299544,null,"Valor com BDI =>",null,519.46]
[{"$nulls":6},"Quant. =>",2,"Preço Total =>",1038.92]
[]
[" 4.3 ","Código","Banco","Descrição","Tipo",null,"Und","Quant.","Valor Unit","Total"]
["Composição"," COMPOSIÇÃO - 015 ","Próprio","Inspeção ótica em poço tubular câmera com rotação de 360º, visada lateral, com fonte própria de luz, entregue vídeo em cores e marcação de profundidades.","SEES - SERVIÇOS ESPECIAIS",null,"m",1,9.42,9.42]
["Insumo"," H020050004 ","EMBASA","APARELHO DE PERFILAGEM OPTICA","Material",null,"M",1,4.4000000000000004,4.4000000000000004]
["Insumo"," B590000022 ","EMBASA","TECNICO MEDIO","Mão de Obra",null,"H",8.3500000000000005E-2,60.147199999999998,5.0199999999999996]
[{"$nulls":4},"MO sem LS =>",2.4,"LS =>",2.62,"MO com LS =>",5.0199999999999996]
[{"$nulls":4},"Valor do BDI =>",2.4812280000000002,null,"Valor com BDI =>",null,11.9]
[{"$nulls":6},"Quant. =>",150,"Preço Total =>",1785]
[]
[" 4.5 ","Código","Banco","Descrição","Tipo",null,"Und","Quant.","Valor Unit","Total"]
["Composição"," COMPOSIÇÃO - 053 ","Próprio","Serviço de coleta e Análise Físico-Química e Bacteriológica","SEDI - SERVIÇOS DIVERSOS",null,"un",1,621.19000000000005,621.19000000000005]
["Composição Auxiliar"," 6312 ","ORSE","Análise Físico-química da Água","Conversão InfoWOrca",null,"un",1,565.21,565.21]
["Composição Auxiliar"," 6313 ","ORSE","Análise Bacteriológica da Água","Conversão InfoWOrca",null,"un",1,55.98,55.98]
[{"$nulls":4},"MO sem LS =>",0,"LS =>",0,"MO com LS =>",0]
[{"$nulls":4},"Valor do BDI =>",163.62144599999999,null,"Valor com BDI =>",null,784.81]
[{"$nulls":6},"Quant. =>",1,"Preço Total =>",784.81]
[]
[" 4.6 ","Código","Banco","Descrição","Tipo",null,"Und","Quant.","Valor Unit","Total"]
["Composição"," COMPOSIÇÃO - 014 ","Próprio","Serviço de instalação de laje sanitária com dimensões (1,5x1,5x0,3) , incluso material.","SEDI - SERVIÇOS DIVERSOS",null,"un",1,634.04999999999995,634.04999999999995]
["Composição Auxiliar"," 92522 ","SINAPI","MONTAGEM E DESMONTAGEM DE FÔRMA DE LAJE MACIÇA, PÉ-DIREITO SIMPLES, EM CHAPA DE MADEIRA COMPENSADA RESINADA, 8 UTILIZAÇÕES. AF_09/2020","FUES - FUNDAÇÕES E ESTRUTURAS",null,"m²",1.8,38.4,69.12]
["Composição Auxiliar"," 93358 ","SINAPI","ESCAVAÇÃO MANUAL DE VALA COM PROFUNDIDADE MENOR OU IGUAL A 1,30 M. AF_02/2021","MOVT - MOVIMENTO DE TERRA",null,"m³",0.22500000000000001,80.78,18.18]
["Composição Auxiliar"," 94975 ","SINAPI","CONCRETO FCK = 15MPA, TRAÇO 1:3,4:3,5 (EM MASSA SECA DE CIMENTO/ AREIA MÉDIA/ BRITA 1) - PREPARO MANUAL. AF_05/2021","FUES - FUNDAÇÕES E ESTRUTURAS",null,"m³",0.67500000000000004,519.59,350.72]
["Composição Auxiliar"," 103670 ","SINAPI","LANÇAMENTO COM USO DE BALDES, ADENSAMENTO E ACABAMENTO DE CONCRETO EM ESTRUTURAS. AF_02/2022","FUES - FUNDAÇÕES E ESTRUTURAS",null,"m³",0.67500000000000004,290.42,196.03]
[{"$nulls":4},"MO sem LS =>",116.8,"LS =>",127.2,"MO com LS =>",244]
[{"$nulls":4},"Valor do BDI =>",167.00877,null,"Valor com BDI =>",null,801.06]
[{"$nulls":6},"Quant. =>",1,"Preço Total =>",801.06]
[]
[" 4.7 ","Código","Banco","Descrição","Tipo",null,"Und","Quant.","Valor Unit","Total"]
["Composição"," 24.80.22 ","EMBASA","Ensaio de bombeamento poço tubular incluso materiais e grupo gerador",2480,null,"H",1,255.47,255.47]
["Composição Auxiliar"," 24.00.15 ","EMBASA","EQUIPE (3 PROFISSIONAIS CAMPO) - BOMBEIO",2400,null,"H",1,190.55,190.55]
["Insumo"," H020050001 ","EMBASA","UNIDADE DE ENSAIO E BOMBEAMENTO - UEB1 ATE 150M3 NO SEDIMENTO","Material",null,"H",1,64.92,64.92]
[{"$nulls":4},"MO sem LS =>",91.22,"LS =>",99.33,"MO com LS =>",190.55]
[{"$nulls":4},"Valor do BDI =>",67.290797999999995,null,"Valor com BDI =>",null,322.76]
[{"$nulls":6},"Quant. =>",24,"Preço Total =>",7746.24]
[]
[" 5 ",null,null,"RESERVAÇÃO",{"$nulls":5},27094.09]
[" 5.1 ","Código","Banco","Descrição","Tipo",null,"Und","Quant.","Valor Unit","Total"]
["Composição"," COMPOSIÇÃO - 059 ","Próprio","Fornecimento e instalação de reservatório e base elevada 10 m³","ASTU - ASSENTAMENTO DE TUBOS E PECAS",null,"un",1,25308.6,25308.6]
["Composição Auxiliar"," 92759 ","SINAPI","ARMAÇÃO DE PILAR OU VIGA DE ESTRUTURA CONVENCIONAL DE CONCRETO ARMADO UTILIZANDO AÇO CA-60 DE 5,0 MM - MONTAGEM. AF_06/2022","FUES - FUNDAÇÕES E ESTRUTURAS",null,"KG",29.1,14,407.4]
["Composição Auxiliar"," 92761 ","SINAPI","ARMAÇÃO DE PILAR OU VIGA DE ESTRUTURA CONVENCIONAL DE CONCRETO ARMADO UTILIZANDO AÇO CA-50 DE 8,0 MM - MONTAGEM. AF_06/2022","FUES - FUNDAÇÕES E ESTRUTURAS",null,"KG",48,12.31,590.88]
["Composição Auxiliar"," 93358 ","SINAPI","ESCAVAÇÃO MANUAL DE VALA COM PROFUNDIDADE MENOR OU IGUAL A 1,30 M. AF_02/2021","MOVT - MOVIMENTO DE TERRA",null,"m³",5.2,80.78,420.06]
["Composição Auxiliar"," 92763 ","SINAPI","ARMAÇÃO DE PILAR OU VIGA DE ESTRUTURA CONVENCIONAL DE CONCRETO ARMADO UTILIZANDO AÇO CA-50 DE 12,5 MM - MONTAGEM. AF_06/2022","FUES - FUNDAÇÕES E ESTRUTURAS",null,"KG",118.4,9.19,1088.0999999999999]
["Composição Auxiliar"," 94970 ","SINAPI","CONCRETO FCK = 20MPA, TRAÇO 1:2,7:3 (EM MASSA SECA DE CIMENTO/ AREIA MÉDIA/ BRITA 1) - PREPARO MECÂNICO COM BETONEIRA 600 L. AF_05/2021","FUES - FUNDAÇÕES E ESTRUTURAS",null,"m³",4.8899999999999997,500.39,2446.91]
["Composição Auxiliar"," 103670 ","SINAPI","LANÇAMENTO COM USO DE BALDES, ADENSAMENTO E ACABAMENTO DE CONCRETO EM ESTRUTURAS. AF_02/2022","FUES - FUNDAÇÕES E ESTRUTURAS",null,"m³",6.85,290.42,1989.38]
["Composição Auxiliar"," 84651 ","SINAPI","PINTURA COM TINTA IMPERMEAVEL MINERAL EM PO, DUAS DEMAOS","PINT - PINTURAS",null,"m²",28.66,13.29,380.89]
["Composição Auxiliar"," 90776 ","SINAPI","ENCARREGADO GERAL COM ENCARGOS COMPLEMENTARES","SEDI - SERVIÇOS DIVERSOS",null,"H",1,55.16,55.16]
["Composição Auxiliar"," 102482 ","SINAPI","CONCRETO FCK = 25MPA, TRAÇO 1:2,2:2,5 (EM MASSA SECA DE CIMENTO/ AREIA MÉDIA/ SEIXO ROLADO) - PREPARO MECÂNICO COM BETONEIRA 600 L. AF_05/2021","FUES - FUNDAÇÕES E ESTRUTURAS",null,"m³",1.96,713.85,1399.15]
["Composição Auxiliar"," 92263 ","SINAPI","FABRICAÇÃO DE FÔRMA PARA PILARES E ESTRUTURAS SIMILARES, EM CHAPA DE MADEIRA COMPENSADA RESINADA, E = 17 MM. AF_09/2020","FUES - FUNDAÇÕES E ESTRUTURAS",null,"m²",18.100000000000001,156.69,2836.09]
["Composição Auxiliar"," 89272 ","SINAPI","GUINDASTE HIDRÁULICO AUTOPROPELIDO, COM LANÇA TELESCÓPICA 28,80 M, CAPACIDADE MÁXIMA 30 T, POTÊNCIA 97 KW, TRAÇÃO 4 X 4 - CHP DIURNO. AF_11/2014","CHOR - CUSTOS HORÁRIOS DE MÁQUINAS E EQUIPAMENTOS",null,"CHP",13,225.81,2935.53]
["Composição Auxiliar"," 5824 ","SINAPI","CAMINHÃO TOCO, PBT 16.000 KG, CARGA ÚTIL MÁX. 10.685 KG, DIST. ENTRE EIXOS 4,8 M, POTÊNCIA 189 CV, INCLUSIVE CARROCERIA FIXA ABERTA DE MADEIRA P/ TRANSPORTE GERAL DE CARGA SECA, DIMEN. APROX. 2,5 X 7,00 X 0,50 M - CHP DIURNO. AF_06/2014","CHOR - CUSTOS HORÁRIOS DE MÁQUINAS E EQUIPAMENTOS",null,"CHP",24,213.13,5115.12]
["Composição Auxiliar"," 88267 ","SINAPI","ENCANADOR OU BOMBEIRO HIDRÁULICO COM ENCARGOS COMPLEMENTARES","SEDI - SERVIÇOS DIVERSOS",null,"H",4,27.39,109.56]
["Composição Auxiliar"," 88248 ","SINAPI","AUXILIAR DE ENCANADOR OU BOMBEIRO HIDRÁULICO COM ENCARGOS COMPLEMENTARES","SEDI - SERVIÇOS DIVERSOS",null,"H",4,21.99,87.96]
["Insumo"," 00011677 ","SINAPI","REGISTRO DE ESFERA, PVC, COM VOLANTE, VS, SOLDAVEL, DN 50 MM, COM CORPO DIVIDIDO","Material",null,"UN",1,32.78,32.78]
["Insumo"," 00003146 ","SINAPI","FITA VEDA ROSCA EM ROLOS DE 18 MM X 10 M (L X C)","Material",null,"UN",0.18,3.93,0.71]
["Insumo"," 00037106 ","SINAPI","CAIXA D'AGUA / RESERVATORIO EM POLIESTER REFORCADO COM FIBRA DE VIDRO, 10000 LITROS, COM TAMPA","Material",null,"UN",1,5073.93,5073.93]
["Insumo"," 00009875 ","SINAPI","TUBO PVC, SOLDAVEL, DE 50 MM, AGUA FRIA (NBR-5648)","Material",null,"M",15.2,15.16,230.43]
["Insumo"," 00000113 ","SINAPI","ADAPTADOR PVC SOLDAVEL CURTO COM BOLSA E ROSCA, 60 MM X 2\", PARA AGUA FRIA","Material",null,"UN",1,10.97,10.97]
["Insumo"," 00003871 ","SINAPI","LUVA SOLDAVEL COM ROSCA, PVC, 50 MM X 1 1/2\", PARA AGUA FRIA PREDIAL","Material",null,"UN",1,17.95,17.95]
["Insumo"," 00003540 ","SINAPI","JOELHO PVC, SOLDAVEL, 90 GRAUS, 50 MM, COR MARROM, PARA AGUA FRIA PREDIAL","Material",null,"UN",5,4.9000000000000004,24.5]
["Insumo"," 00000099 ","SINAPI","ADAPTADOR PVC SOLDAVEL, COM FLANGE E ANEL DE VEDACAO, 50 MM X 1 1/2\", PARA CAIXA D'AGUA","Material",null,"UN",2,25.76,51.52]
["Insumo"," 00000119 ","SINAPI","ADESIVO PLASTICO PARA PVC, BISNAGA COM 75 GR","Material",null,"UN",0.45,8.0500000000000007,3.62]
[{"$nulls":4},"MO sem LS =>",2216.34,"LS =>",2413.7199999999998,"MO com LS =>",4630.0600000000004]
[{"$nulls":4},"Valor do BDI =>",6666.2852400000002,null,"Valor com BDI =>",null,31974.89]
[{"$nulls":6},"Quant. =>",0.8,"Preço Total =>",25579.91]
[]
[" 5.2 ","Código","Banco","Descrição","Tipo",null,"Und","Quant.","Valor Unit","Total"]
["Composição"," COMPOSIÇÃO - 039 ","Próprio","Fornecimento e execução de reservatório apoiado de 5 m³","SEDI - SERVIÇOS DIVERSOS",null,"un",1,5992.49,5992.49]
["Composição Auxiliar"," 5928 ","SINAPI","GUINDAUTO HIDRÁULICO, CAPACIDADE MÁXIMA DE CARGA 6200 KG, MOMENTO MÁXIMO DE CARGA 11,7 TM, ALCANCE MÁXIMO HORIZONTAL 9,70 M, INCLUSIVE CAMINHÃO TOCO PBT 16.000 KG, POTÊNCIA DE 189 CV - CHP DIURNO. AF_06/2014","CHOR - CUSTOS HORÁRIOS DE MÁQUINAS E EQUIPAMENTOS",null,"CHP",4,272.82,1091.28]
["Composição Auxiliar"," 88309 ","SINAPI","PEDREIRO COM ENCARGOS COMPLEMENTARES","SEDI - SERVIÇOS DIVERSOS",null,"H",3,28.16,84.48]
["Composição Auxiliar"," 88316 ","SINAPI","SERVENTE COM ENCARGOS COMPLEMENTARES","SEDI - SERVIÇOS DIVERSOS",null,"H",3,20.420000000000002,61.26]
["Composição Auxiliar"," 88262 ","SINAPI","CARPINTEIRO DE FORMAS COM ENCARGOS COMPLEMENTARES","SEDI - SERVIÇOS DIVERSOS",null,"H",3,27.78,83.34]
["Composição Auxiliar"," 102617 ","SINAPI","CAIXA D´ÁGUA EM POLIÉSTER REFORÇADO COM FIBRA DE VIDRO, 5000 LITROS - FORNECIMENTO E INSTALAÇÃO. AF_06/2021","INHI - INSTALAÇÕES HIDROS SANITÁRIAS",null,"UN",1,3517.25,3517.25]
["Composição Auxiliar"," 92783 ","SINAPI","ARMAÇÃO DE LAJE DE UMA ESTRUTURA CONVENCIONAL DE CONCRETO ARMADO EM UMA EDIFICAÇÃO TÉRREA OU SOBRADO UTILIZANDO AÇO CA-60 DE 4,2 MM - MONTAGEM. AF_12/2015","FUES - FUNDAÇÕES E ESTRUTURAS",null,"KG",3.2,18.07,57.82]
["Composição Auxiliar"," 92759 ","SINAPI","ARMAÇÃO DE PILAR OU VIGA DE ESTRUTURA CONVENCIONAL DE CONCRETO ARMADO UTILIZANDO AÇO CA-60 DE 5,0 MM - MONTAGEM. AF_06/2022","FUES - FUNDAÇÕES E ESTRUTURAS",null,"KG",5.6,14,78.400000000000006]
["Composição Auxiliar"," 94964 ","SINAPI","CONCRETO FCK = 20MPA, TRAÇO 1:2,7:3 (EM MASSA SECA DE CIMENTO/ AREIA MÉDIA/ BRITA 1) - PREPARO MECÂNICO COM BETONEIRA 400 L. AF_05/2021","FUES - FUNDAÇÕES E ESTRUTURAS",null,"m³",1.56,513.20000000000005,800.59]
["Composição Auxiliar"," 84651 ","SINAPI","PINTURA COM TINTA IMPERMEAVEL MINERAL EM PO, DUAS DEMAOS","PINT - PINTURAS",null,"m²",2.7,13.29,35.880000000000003]
["Composição Auxiliar"," 92783 ","SINAPI","ARMAÇÃO DE LAJE DE UMA ESTRUTURA CONVENCIONAL DE CONCRETO ARMADO EM UMA EDIFICAÇÃO TÉRREA OU SOBRADO UTILIZANDO AÇO CA-60 DE 4,2 MM - MONTAGEM. AF_12/2015","FUES - FUNDAÇÕES E ESTRUTURAS",null,"KG",3.2,18.07,57.82]
["Insumo"," 00007155 ","SINAPI","TELA DE ACO SOLDADA NERVURADA, CA-60, Q-138, (2,20 KG/M2), DIAMETRO DO FIO = 4,2 MM, LARGURA = 2,45 M, ESPACAMENTO DA MALHA = 10  X 10 CM","Material",null,"m²",6.16,20.190000000000001,124.37]
[{"$nulls":4},"MO sem LS =>",300.93,"LS =>",327.73,"MO com LS =>",628.66]
[{"$nulls":4},"Valor do BDI =>",1578.4218659999999,null,"Valor com BDI =>",null,7570.91]
[{"$nulls":6},"Quant. =>",0.2,"Preço Total =>",1514.18]
[]
[" 6 ",null,null,"BEBEDOURO",{"$nulls":5},1951.4]
[" 6.1 ","Código","Banco","Descrição","Tipo",null,"Und","Quant.","Valor Unit","Total"]
["Composição"," COMPOSIÇÃO - 017 ","Próprio","Serviço de execução do bebedouro em concreto armado, incluso materiais.","SEDI - SERVIÇOS DIVERSOS",null,"un",1,1544.56,1544.56]
["Composição Auxiliar"," 5928 ","SINAPI","GUINDAUTO HIDRÁULICO, CAPACIDADE MÁXIMA DE CARGA 6200 KG, MOMENTO MÁXIMO DE CARGA 11,7 TM, ALCANCE MÁXIMO HORIZONTAL 9,70 M, INCLUSIVE CAMINHÃO TOCO PBT 16.000 KG, POTÊNCIA DE 189 CV - CHP DIURNO. AF_06/2014","CHOR - CUSTOS HORÁRIOS DE MÁQUINAS E EQUIPAMENTOS",null,"CHP",2,272.82,545.64]
["Composição Auxiliar"," 87445 ","SINAPI","BETONEIRA CAPACIDADE NOMINAL 400 L, CAPACIDADE DE MISTURA 310 L, MOTOR A DIESEL POTÊNCIA 5,0 HP, SEM CARREGADOR - CHP DIURNO. AF_05/2023","CHOR - CUSTOS HORÁRIOS DE MÁQUINAS E EQUIPAMENTOS",null,"CHP",0.5,5.38,2.69]
["Composição Auxiliar"," 88377 ","SINAPI","OPERADOR DE BETONEIRA ESTACIONÁRIA/MISTURADOR COM ENCARGOS COMPLEMENTARES","SEDI - SERVIÇOS DIVERSOS",null,"H",0.5,25.33,12.67]
["Composição Auxiliar"," 88310 ","SINAPI","PINTOR COM ENCARGOS COMPLEMENTARES","SEDI - SERVIÇOS DIVERSOS",null,"H",0.3,29.64,8.89]
["Composição Auxiliar"," 100301 ","SINAPI","AJUDANTE DE PINTOR COM ENCARGOS COMPLEMENTARES","SEDI - SERVIÇOS DIVERSOS",null,"H",0.1,24.26,2.4300000000000002]
["Composição Auxiliar"," 88245 ","SINAPI","ARMADOR COM ENCARGOS COMPLEMENTARES","SEDI - SERVIÇOS DIVERSOS",null,"H",3,27.92,83.76]
["Composição Auxiliar"," 88262 ","SINAPI","CARPINTEIRO DE FORMAS COM ENCARGOS COMPLEMENTARES","SEDI - SERVIÇOS DIVERSOS",null,"H",2,27.78,55.56]
["Composição Auxiliar"," 88316 ","SINAPI","SERVENTE COM ENCARGOS COMPLEMENTARES","SEDI - SERVIÇOS DIVERSOS",null,"H",5,20.420000000000002,102.1]
["Composição Auxiliar"," 88309 ","SINAPI","PEDREIRO COM ENCARGOS COMPLEMENTARES","SEDI - SERVIÇOS DIVERSOS",null,"H",4,28.16,112.64]
["Insumo"," 00043055 ","SINAPI","ACO CA-50, 12,5 MM OU 16,0 MM, VERGALHAO","Material",null,"KG",12,6.86,82.32]
["Insumo"," 00043059 ","SINAPI","ACO CA-60, 4,2 MM, OU 5,0 MM, OU 6,0 MM, OU 7,0 MM, VERGALHAO","Material",null,"KG",13,7.49,97.37]
["Insumo"," 00000032 ","SINAPI","ACO CA-50, 6,3 MM, VERGALHAO","Material",null,"KG",6,8.35,50.1]
["Insumo"," 00000370 ","SINAPI","AREIA MEDIA - POSTO JAZIDA/FORNECEDOR (RETIRADO NA JAZIDA, SEM TRANSPORTE)","Material",null,"m³",0.32,130,41.6]
["Insumo"," 00001379 ","SINAPI","CIMENTO PORTLAND COMPOSTO CP II-32","Material",null,"KG",127,0.76,96.52]
["Insumo"," 00004718 ","SINAPI","PEDRA BRITADA N. 2 (19 A 38 MM) POSTO PEDREIRA/FORNECEDOR, SEM FRETE","Material",null,"m³",0.08,128.37,10.27]
["Insumo"," 00004721 ","SINAPI","PEDRA BRITADA N. 1 (9,5 a 19 MM) POSTO PEDREIRA/FORNECEDOR, SEM FRETE","Material",null,"m³",0.23,127.69,29.37]
["Insumo"," 00003767 ","SINAPI","LIXA EM FOLHA PARA PAREDE OU MADEIRA, NUMERO 120, COR VERMELHA","Material",null,"UN",0.12,1.31,0.16]
["Insumo"," 00007356 ","SINAPI","TINTA LATEX ACRILICA PREMIUM, COR BRANCO FOSCO","Material",null,"L",0.18,29.67,5.34]
["Insumo"," 00043681 ","SINAPI","CHAPA/PAINEL DE MADEIRA COMPENSADA RESINADA (MADEIRITE RESINADO ROSA) PARA FORMA DE CONCRETO, DE 2200 x 1100 MM, E = 8 A 12 MM","Material",null,"m²",7.3,28.1,205.13]
[{"$nulls":4},"MO sem LS =>",165.8,"LS =>",180.56,"MO com LS =>",346.36]
[{"$nulls":4},"Valor do BDI =>",406.83710400000001,null,"Valor com BDI =>",null,1951.4]
[{"$nulls":6},"Quant. =>",1,"Preço Total =>",1951.4]
[]
[" 7 ",null,null,"CHAFARIZ",{"$nulls":5},1331.14]
[" 7.1 ","Código","Banco","Descrição","Tipo",null,"Und","Quant.","Valor Unit","Total"]
["Composição"," COMPOSIÇÃO - 045 ","Próprio","Fornecimento de material e instalação do chafariz","ASTU - ASSENTAMENTO DE TUBOS E PECAS",null,"un",1,1053.6199999999999,1053.6199999999999]
["Composição Auxiliar"," 88267 ","SINAPI","ENCANADOR OU BOMBEIRO HIDRÁULICO COM ENCARGOS COMPLEMENTARES","SEDI - SERVIÇOS DIVERSOS",null,"H",2,27.39,54.78]
["Composição Auxiliar"," 88248 ","SINAPI","AUXILIAR DE ENCANADOR OU BOMBEIRO HIDRÁULICO COM ENCARGOS COMPLEMENTARES","SEDI - SERVIÇOS DIVERSOS",null,"H",2,21.99,43.98]
["Composição Auxiliar"," 93358 ","SINAPI","ESCAVAÇÃO MANUAL DE VALA COM PROFUNDIDADE MENOR OU IGUAL A 1,30 M. AF_02/2021","MOVT - MOVIMENTO DE TERRA",null,"m³",9.4990000000000005E-2,80.78,7.67]
["Composição Auxiliar"," 92270 ","SINAPI","FABRICAÇÃO DE FÔRMA PARA VIGAS, COM MADEIRA SERRADA, E = 25 MM. AF_09/2020","FUES - FUNDAÇÕES E ESTRUTURAS",null,"m²",0.628,214.68,134.82]
["Composição Auxiliar"," 94975 ","SINAPI","CONCRETO FCK = 15MPA, TRAÇO 1:3,4:3,5 (EM MASSA SECA DE CIMENTO/ AREIA MÉDIA/ BRITA 1) - PREPARO MANUAL. AF_05/2021","FUES - FUNDAÇÕES E ESTRUTURAS",null,"m³",0.157,519.59,81.58]
["Composição Auxiliar"," 2171 ","ORSE","Piso cimentado liso traço 1:5, e = 3 cm, c/ junta plástica 3 x 27 mm","Pisos : Cimentados, em Concreto Simples, tipo Tech-Stone e de Alta Resistência",null,"m²",0.78500000000000003,52.58,41.28]
["Composição Auxiliar"," 87904 ","SINAPI","CHAPISCO APLICADO EM ALVENARIA (COM PRESENÇA DE VÃOS) E ESTRUTURAS DE CONCRETO DE FACHADA, COM COLHER DE PEDREIRO.  ARGAMASSA TRAÇO 1:3 COM PREPARO MANUAL. AF_10/2022","REVE - REVESTIMENTO E TRATAMENTO DE SUPERFÍCIES",null,"m²",0.314,8.5,2.67]
["Composição Auxiliar"," 87529 ","SINAPI","MASSA ÚNICA, EM ARGAMASSA TRAÇO 1:2:8, PREPARO MECÂNICO, APLICADA MANUALMENTE EM PAREDES INTERNAS DE AMBIENTES COM ÁREA ENTRE 5M² E 10M², E = 17,5MM, COM TALISCAS. AF_03/2024","REVE - REVESTIMENTO E TRATAMENTO DE SUPERFÍCIES",null,"m²",0.314,36.840000000000003,11.57]
["Composição Auxiliar"," 84651 ","SINAPI","PINTURA COM TINTA IMPERMEAVEL MINERAL EM PO, DUAS DEMAOS","PINT - PINTURAS",null,"m²",0.314,13.29,4.17]
["Insumo"," 00000765 ","SINAPI","BUCHA DE REDUCAO DE FERRO GALVANIZADO, COM ROSCA BSP, DE 1\" X 3/4\"","Material",null,"UN",2,10.23,20.46]
["Insumo"," 00009887 ","SINAPI","UNIAO DE FERRO GALVANIZADO, COM ROSCA BSP, COM ASSENTO PLANO, DE 2\"","Material",null,"UN",2,104.13,208.26]
["Insumo"," 00021013 ","SINAPI","TUBO ACO GALVANIZADO COM COSTURA, CLASSE LEVE, DN 50 MM ( 2\"),  E = 3,00 MM,  *4,40* KG/M (NBR 5580)","Material",null,"M",1.8,74.3,133.74]
["Insumo"," 00006298 ","SINAPI","TE DE FERRO GALVANIZADO, DE 2\"","Material",null,"UN",1,67.819999999999993,67.819999999999993]
["Insumo"," 00003471 ","SINAPI","COTOVELO 90 GRAUS DE FERRO GALVANIZADO, COM ROSCA BSP, DE 2\"","Material",null,"UN",1,51.01,51.01]
["Insumo"," 00000113 ","SINAPI","ADAPTADOR PVC SOLDAVEL CURTO COM BOLSA E ROSCA, 60 MM X 2\", PARA AGUA FRIA","Material",null,"UN",1,10.97,10.97]
["Insumo"," 00000818 ","SINAPI","BUCHA DE REDUCAO DE PVC, SOLDAVEL, CURTA, COM 60 X 50 MM, PARA AGUA FRIA PREDIAL","Material",null,"UN",1,6.7,6.7]
["Insumo"," 00007604 ","SINAPI","TORNEIRA METALICA CROMADA PARA TANQUE / JARDIM, SEM BICO , CANO LONGO, DE PAREDE, PADRAO POPULAR / USO GERAL, 1/2 \" OU 3/4 \" (REF 1126)","Material",null,"UN",2,51.68,103.36]
["Insumo"," 00000119 ","SINAPI","ADESIVO PLASTICO PARA PVC, BISNAGA COM 75 GR","Material",null,"UN",1,8.0500000000000007,8.0500000000000007]
["Insumo"," 00003146 ","SINAPI","FITA VEDA ROSCA EM ROLOS DE 18 MM X 10 M (L X C)","Material",null,"UN",1,3.93,3.93]
["Insumo"," 00000771 ","SINAPI","BUCHA DE REDUCAO DE FERRO GALVANIZADO, COM ROSCA BSP, DE 2\" X 1\"","Material",null,"UN",2,28.4,56.8]
[{"$nulls":4},"MO sem LS =>",70.400000000000006,"LS =>",76.66,"MO com LS =>",147.06]
[{"$nulls":4},"Valor do BDI =>",277.52350799999999,null,"Valor com BDI =>",null,1331.14]
[{"$nulls":6},"Quant. =>",1,"Preço Total =>",1331.14]
[]
[" 8 ",null,null,"CAVALETE",{"$nulls":5},2163.96]
[" 8.1 ","Código","Banco","Descrição","Tipo",null,"Und","Quant.","Valor Unit","Total"]
["Composição"," COMPOSIÇÃO - 018 ","Próprio","Fornecimento de conexões e Instalação do Cavalete com hidrômetro e clorador de pastilhas","INHI - INSTALAÇÕES HIDROS SANITÁRIAS",null,"un",1,1712.81,1712.81]
["Composição Auxiliar"," 88248 ","SINAPI","AUXILIAR DE ENCANADOR OU BOMBEIRO HIDRÁULICO COM ENCARGOS COMPLEMENTARES","SEDI - SERVIÇOS DIVERSOS",null,"H",3,21.99,65.97]
["Insumo"," 00000791 ","SINAPI","BUCHA DE REDUCAO DE FERRO GALVANIZADO, COM ROSCA BSP, DE 1 1/2\" X 1\"","Material",null,"UN",1,21.16,21.16]
["Insumo"," 00009862 ","SINAPI","TUBO PVC, ROSCAVEL, 1 1/2\",  AGUA FRIA PREDIAL","Material",null,"M",1.5,30.78,46.17]
["Insumo"," 00011831 ","SINAPI","TORNEIRA PLASTICA PARA TANQUE 1/2 \" OU 3/4 \" COM BICO PARA MANGUEIRA","Material",null,"UN",1,18.579999999999998,18.579999999999998]
["Insumo"," 002121 ","SBC","TE DE REDUCAO FERRO GALVANIZADO 1.1/2\" x 1\"","Material",null,"UN",1,57.49,57.49]
["Insumo"," 9569 ","ORSE","Adaptador pvc BSxRM d= 35mm x 1 1/2\", linha Irriga-LF, Tigre ou similar un","Material",null,"un",1,3.04,3.04]
["Insumo"," 00003939 ","SINAPI","LUVA DE FERRO GALVANIZADO, COM ROSCA BSP, DE 1 1/2\"","Material",null,"UN",1,23.45,23.45]
["Insumo"," 00001798 ","SINAPI","CURVA 90 GRAUS DE FERRO GALVANIZADO, COM ROSCA BSP MACHO, DE 2\"","Material",null,"UN",1,130.71,130.71]
["Insumo"," 00009887 ","SINAPI","UNIAO DE FERRO GALVANIZADO, COM ROSCA BSP, COM ASSENTO PLANO, DE 2\"","Material",null,"UN",2,104.13,208.26]
["Insumo"," 00004181/SINAPI ","ORSE","Niple de ferro galvanizado, com rosca bsp, de 2\"","Material",null,"un",2,39.24,78.48]
["Insumo"," 00006028 ","SINAPI","REGISTRO GAVETA BRUTO EM LATAO FORJADO, BITOLA 2 \" (REF 1509)","Material",null,"UN",1,180.34,180.34]
["Insumo"," 00012775 ","SINAPI","HIDROMETRO MULTIJATO / MEDIDOR DE AGUA, DN 1\", VAZAO MAXIMA DE 7 M3/H, PARA AGUA POTAVEL FRIA, RELOJOARIA PLANA, CLASSE B, HORIZONTAL (SEM CONEXOES)","Material",null,"UN",1,524.70000000000005,524.70000000000005]
["Insumo"," 00000771 ","SINAPI","BUCHA DE REDUCAO DE FERRO GALVANIZADO, COM ROSCA BSP, DE 2\" X 1\"","Material",null,"UN",1,28.4,28.4]
["Insumo"," 00006305 ","SINAPI","TE DE REDUCAO DE FERRO GALVANIZADO, COM ROSCA BSP, DE 2\" X 1\"","Material",null,"UN",1,75.09,75.09]
["Insumo"," 12464 ","ORSE","Clorador dosador de cloro de pastilhas automático","Material",null,"un",1,250.97,250.97]
[{"$nulls":4},"MO sem LS =>",23.94,"LS =>",26.07,"MO com LS =>",50.01]
[{"$nulls":4},"Valor do BDI =>",451.15415400000001,null,"Valor com BDI =>",null,2163.96]
[{"$nulls":6},"Quant. =>",1,"Preço Total =>",2163.96]
[]
[" 9 ",null,null,"INSTALAÇÕES HIDRÁULICAS POÇO E ADUTORA",{"$nulls":5},21026.04]
[" 9.1 ","Código","Banco","Descrição","Tipo",null,"Und","Quant.","Valor Unit","Total"]
["Composição"," COMPOSIÇÃO - 020 ","Próprio","Fornecimento e instalação da rede adutora poço-reservatório-bebedouro em PN80 e DN50MM","SEDI - SERVIÇOS DIVERSOS",null,"m",1,28.27,28.27]
["Composição Auxiliar"," 88316 ","SINAPI","SERVENTE COM ENCARGOS COMPLEMENTARES","SEDI - SERVIÇOS DIVERSOS",null,"H",0.05,20.420000000000002,1.02]
["Composição Auxiliar"," 93358 ","SINAPI","ESCAVAÇÃO MANUAL DE VALA COM PROFUNDIDADE MENOR OU IGUAL A 1,30 M. AF_02/2021","MOVT - MOVIMENTO DE TERRA",null,"m³",0.05,80.78,4.04]
["Insumo"," 00009875 ","SINAPI","TUBO PVC, SOLDAVEL, DE 50 MM, AGUA FRIA (NBR-5648)","Material",null,"M",1,15.16,15.16]
["Insumo"," 00000119 ","SINAPI","ADESIVO PLASTICO PARA PVC, BISNAGA COM 75 GR","Material",null,"UN",1,8.0500000000000007,8.0500000000000007]
[{"$nulls":4},"MO sem LS =>",1.72,"LS =>",1.88,"MO com LS =>",3.6]
[{"$nulls":4},"Valor do BDI =>",7.4463179999999998,null,"Valor com BDI =>",null,35.72]
[{"$nulls":6},"Quant. =>",400,"Preço Total =>",14288]
[]
[" 9.2 ","Código","Banco","Descrição","Tipo",null,"Und","Quant.","Valor Unit","Total"]
["Composição"," COMPOSIÇÃO - 019 ","Próprio","Montagem hidráulica do equipamento de bombeamento","INHI - INSTALAÇÕES HIDROS SANITÁRIAS",null,"un",1,148.13999999999999,148.13999999999999]
["Composição Auxiliar"," 88267 ","SINAPI","ENCANADOR OU BOMBEIRO HIDRÁULICO COM ENCARGOS COMPLEMENTARES","SEDI - SERVIÇOS DIVERSOS",null,"H",3,27.39,82.17]
["Composição Auxiliar"," 88248 ","SINAPI","AUXILIAR DE ENCANADOR OU BOMBEIRO HIDRÁULICO COM ENCARGOS COMPLEMENTARES","SEDI - SERVIÇOS DIVERSOS",null,"H",3,21.99,65.97]
[{"$nulls":4},"MO sem LS =>",55.63,"LS =>",60.59,"MO com LS =>",116.22]
[{"$nulls":4},"Valor do BDI =>",39.020076000000003,null,"Valor com BDI =>",null,187.16]
[{"$nulls":6},"Quant. =>",1,"Preço Total =>",187.16]
[]
[" 9.3 ","Código","Banco","Descrição","Tipo",null,"Und","Quant.","Valor Unit","Total"]
["Insumo"," 00038200 ","SINAPI","CORDA DE POLIAMIDA 12 MM TIPO BOMBEIRO, PARA TRABALHO EM ALTURA","Material",null,"100M",1,635.12,635.12]
[{"$nulls":4},"MO sem LS =>",0,"LS =>",0,"MO com LS =>",0]
[{"$nulls":4},"Valor do BDI =>",97.05,null,"Valor com BDI =>",null,732.17]
[{"$nulls":6},"Quant. =>",0.93,"Preço Total =>",680.92]
[]
[" 9.4 ","Código","Banco","Descrição","Tipo",null,"Und","Quant.","Valor Unit","Total"]
["Insumo"," 00009860 ","SINAPI","TUBO PVC, ROSCAVEL,  2\", PARA AGUA FRIA PREDIAL","Material",null,"M",1,44.05,44.05]
[{"$nulls":4},"MO sem LS =>",0,"LS =>",0,"MO com LS =>",0]
[{"$nulls":4},"Valor do BDI =>",11.6,null,"Valor com BDI =>",null,55.65]
[{"$nulls":6},"Quant. =>",90,"Preço Total =>",5008.5]
[]
[" 9.5 ","Código","Banco","Descrição","Tipo",null,"Und","Quant.","Valor Unit","Total"]
["Insumo"," 00003912 ","SINAPI","LUVA DE FERRO GALVANIZADO, COM ROSCA BSP, DE 2\"","Material",null,"UN",1,35.909999999999997,35.909999999999997]
[{"$nulls":4},"MO sem LS =>",0,"LS =>",0,"MO com LS =>",0]
[{"$nulls":4},"Valor do BDI =>",9.4600000000000009,null,"Valor com BDI =>",null,45.37]
[{"$nulls":6},"Quant. =>",16,"Preço Total =>",725.92]
[]
[" 9.6 ","Código","Banco","Descrição","Tipo",null,"Und","Quant.","Valor Unit","Total"]
["Insumo"," 5128 ","ORSE","Tampa de poço galvanizada em 6\" un","Serviços",null,"un",1,107.28,107.28]
[{"$nulls":4},"MO sem LS =>",0,"LS =>",0,"MO com LS =>",0]
[{"$nulls":4},"Valor do BDI =>",28.26,null,"Valor com BDI =>",null,135.54]
[{"$nulls":6},"Quant. =>",1,"Preço Total =>",135.54]
[]
[" 11 ",null,null,"ESTRUTURA DE FIXAÇÃO PARA MÓDULOS FOTOVOLTÁICOS",{"$nulls":5},5111.04]
[" 11.1 ","Código","Banco","Descrição","Tipo",null,"Und","Quant.","Valor Unit","Total"]
["Composição"," COMPOSIÇÃO - 022 ","Próprio","Serviço de fixação de estruturas para os módulos fotovoltaicos e suportes de concreto, incluso materiais.","SEDI - SERVIÇOS DIVERSOS",null,"m²",1,252.84,252.84]
["Composição Auxiliar"," 94975 ","SINAPI","CONCRETO FCK = 15MPA, TRAÇO 1:3,4:3,5 (EM MASSA SECA DE CIMENTO/ AREIA MÉDIA/ BRITA 1) - PREPARO MANUAL. AF_05/2021","FUES - FUNDAÇÕES E ESTRUTURAS",null,"m³",9.4500000000000001E-2,519.59,49.1]
["Composição Auxiliar"," 93358 ","SINAPI","ESCAVAÇÃO MANUAL DE VALA COM PROFUNDIDADE MENOR OU IGUAL A 1,30 M. AF_02/2021","MOVT - MOVIMENTO DE TERRA",null,"m³",6.25E-2,80.78,5.05]
["Composição Auxiliar"," 96534 ","SINAPI","FABRICAÇÃO, MONTAGEM E DESMONTAGEM DE FÔRMA PARA BLOCO DE COROAMENTO, EM MADEIRA SERRADA, E=25 MM, 4 UTILIZAÇÕES. AF_06/2017","FUES - FUNDAÇÕES E ESTRUTURAS",null,"m²",3.2000000000000001E-2,76.260000000000005,2.44]
["Composição Auxiliar"," 88316 ","SINAPI","SERVENTE COM ENCARGOS COMPLEMENTARES","SEDI - SERVIÇOS DIVERSOS",null,"H",2.637,20.420000000000002,53.85]
["Composição Auxiliar"," 88278 ","SINAPI","MONTADOR DE ESTRUTURA METÁLICA COM ENCARGOS COMPLEMENTARES","SEDI - SERVIÇOS DIVERSOS",null,"H",2.637,24.46,64.5]
["Insumo"," 015690 ","SBC","ESTRUTURA METALICA TESOURA C/COLUNA 20/35m(24,72kg/m2)","Material",null,"m²",1,77.900000000000006,77.900000000000006]
[{"$nulls":4},"MO sem LS =>",49.55,"LS =>",53.97,"MO com LS =>",103.52]
[{"$nulls":4},"Valor do BDI =>",66.598056,null,"Valor com BDI =>",null,319.44]
[{"$nulls":6},"Quant. =>",16,"Preço Total =>",5111.04]
[]
[" 12 ",null,null,"INSTALAÇÕES ELÉTRICAS",{"$nulls":5},19945.939999999999]
[" 12.1 ","Código","Banco","Descrição","Tipo",null,"Und","Quant.","Valor Unit","Total"]
["Composição"," COMPOSIÇÃO - 021 ","Próprio","Montagem e instalação elétrica do kit de bombeamento e sistema fotovoltaico inclusive sistema de aterramento.","INEL - INSTALAÇÃO ELÉTRICA/ELETRIFICAÇÃO E ILUMINAÇÃO EXTERNA",null,"un",1,1077.29,1077.29]
["Composição Auxiliar"," 88247 ","SINAPI","AUXILIAR DE ELETRICISTA COM ENCARGOS COMPLEMENTARES","SEDI - SERVIÇOS DIVERSOS",null,"H",8,23.03,184.24]
["Insumo"," 00020111 ","SINAPI","FITA ISOLANTE ADESIVA ANTICHAMA, USO ATE 750 V, EM ROLO DE 19 MM X 20 M","Material",null,"UN",1,8.42,8.42]
["Insumo"," 00002674 ","SINAPI","FORNECIMENTO DE  ELETRODUTO DE PVC RIGIDO ROSCAVEL DE 3/4 \", SEM LUVA","Material",null,"M",15,5.64,84.6]
["Insumo"," 00012034 ","SINAPI","FORNECIMENTO DE  CURVA 180 GRAUS, DE PVC RIGIDO ROSCAVEL, DE 3/4\", PARA ELETRODUTO","Material",null,"UN",1,5.35,5.35]
["Insumo"," 00039272 ","SINAPI","FORNECIMENTO DE  CURVA 90 GRAUS, CURTA, DE PVC RIGIDO ROSCAVEL, DE 3/4\", PARA ELETRODUTO","Material",null,"UN",2,2.92,5.84]
["Insumo"," 00003379 ","SINAPI","HASTE DE ATERRAMENTO EM ACO COM 3,00 M DE COMPRIMENTO E DN = 5/8\", REVESTIDA COM BAIXA CAMADA DE COBRE, SEM CONECTOR","Material",null,"UN",0.66,102.77,67.83]
["Insumo"," 00001891 ","SINAPI","FORNECIMENTO DE  LUVA EM PVC RIGIDO ROSCAVEL, DE 3/4\", PARA ELETRODUTO","Material",null,"UN",9,1.35,12.15]
["Insumo"," 00000425 ","SINAPI","GRAMPO METALICO TIPO OLHAL PARA HASTE DE ATERRAMENTO DE 5/8'', CONDUTOR DE *10* A 50 MM2","Material",null,"UN",2,9.75,19.5]
["Insumo"," 00034643 ","SINAPI","FORNECIMENTO DE  CAIXA DE INSPECAO PARA ATERRAMENTO E PARA RAIOS, EM POLIPROPILENO,  DIAMETRO = 300 MM X ALTURA = 400 MM","Material",null,"UN",2,41.48,82.96]
["Insumo"," 00000867 ","SINAPI","CABO DE COBRE NU 50 MM2 MEIO-DURO","Material",null,"M",7.5,51.16,383.7]
["Insumo"," 54581 ","SIURB INFRA","DPS - DISPOSITIVO DE PROTEÇÃO CONTRA SURTOS – 45KA – 500 VOLTS - CORRENTE CONTÍNUA - CLASSE II - P/ SISTEMA FOTOVOLTÁICO","Material",null,"Un",1,222.7,222.7]
[{"$nulls":4},"MO sem LS =>",65.22,"LS =>",71.02,"MO com LS =>",136.24]
[{"$nulls":4},"Valor do BDI =>",283.75818600000002,null,"Valor com BDI =>",null,1361.05]
[{"$nulls":6},"Quant. =>",1,"Preço Total =>",1361.05]
[]
[" 12.2 ","Código","Banco","Descrição","Tipo",null,"Und","Quant.","Valor Unit","Total"]
["Insumo"," 00034622 ","SINAPI","FORNECIMENTO DE  CABO FLEXIVEL PVC 750 V, 3 CONDUTORES DE 6,0 MM2","Material",null,"M",1,20.11,20.11]
[{"$nulls":4},"MO sem LS =>",0,"LS =>",0,"MO com LS =>",0]
[{"$nulls":4},"Valor do BDI =>",3.07,null,"Valor com BDI =>",null,23.18]
[{"$nulls":6},"Quant. =>",105,"Preço Total =>",2433.9]
[]
[" 12.3 ","Código","Banco","Descrição","Tipo",null,"Und","Quant.","Valor Unit","Total"]
["Composição"," COMPOSIÇÃO - 047 ","Próprio","Fornecimento e instalação de automático de bóia superior e inferior","ASTU - ASSENTAMENTO DE TUBOS E PECAS",null,"un",1,68.08,68.08]
["Composição Auxiliar"," 88264 ","SINAPI","ELETRICISTA COM ENCARGOS COMPLEMENTARES","SEDI - SERVIÇOS DIVERSOS",null,"H",0.2,28.55,5.71]
["Composição Auxiliar"," 88247 ","SINAPI","AUXILIAR DE ELETRICISTA COM ENCARGOS COMPLEMENTARES","SEDI - SERVIÇOS DIVERSOS",null,"H",0.2,23.03,4.6100000000000003]
["Insumo"," 00007588 ","SINAPI","AUTOMATICO DE BOIA SUPERIOR / INFERIOR, *15* A / 250 V","Material",null,"UN",1,56.85,56.85]
["Insumo"," 00021127 ","SINAPI","FITA ISOLANTE ADESIVA ANTICHAMA, USO ATE 750 V, EM ROLO DE 19 MM X 5 M","Material",null,"UN",0.1,3.18,0.32]
["Insumo"," 00003146 ","SINAPI","FITA VEDA ROSCA EM ROLOS DE 18 MM X 10 M (L X C)","Material",null,"UN",0.15,3.93,0.59]
[{"$nulls":4},"MO sem LS =>",3.79,"LS =>",4.13,"MO com LS =>",7.92]
[{"$nulls":4},"Valor do BDI =>",17.932272000000001,null,"Valor com BDI =>",null,86.01]
[{"$nulls":6},"Quant. =>",1,"Preço Total =>",86.01]
[]
[" 12.4 ","Código","Banco","Descrição","Tipo",null,"Und","Quant.","Valor Unit","Total"]
["Insumo"," 00039257 ","SINAPI","CABO MULTIPOLAR DE COBRE, FLEXIVEL, CLASSE 4 OU 5, ISOLACAO EM HEPR, COBERTURA EM PVC-ST2, ANTICHAMA BWF-B, 0,6/1 KV, 3 CONDUTORES DE 1,5 MM2","Material",null,"M",1,5.47,5.47]
[{"$nulls":4},"MO sem LS =>",0,"LS =>",0,"MO com LS =>",0]
[{"$nulls":4},"Valor do BDI =>",1.44,null,"Valor com BDI =>",null,6.91]
[{"$nulls":6},"Quant. =>",200,"Preço Total =>",1382]
[]
[" 12.5 ","Código","Banco","Descrição","Tipo",null,"Und","Quant.","Valor Unit","Total"]
["Insumo"," COTAÇÃO-002 ","Próprio","Fornecimento de kit de bombeamento fotovoltaico, incluindo uma bomba CC de 2200W com controladora de carga externa,  caixa de proteção metálica, módulos fotovoltaicos compatíveis com a geração de 3300Wp além de componentes elétricos necessários para interligação dos painéis, como cabos, conectores MC4 e presilhas de fixação.","Serviços",null,"un",1,11621.8,11621.8]
[{"$nulls":4},"MO sem LS =>",0,"LS =>",0,"MO com LS =>",0]
[{"$nulls":4},"Valor do BDI =>",3061.18,null,"Valor com BDI =>",null,14682.98]
[{"$nulls":6},"Quant. =>",1,"Preço Total =>",14682.98]
[]
[" 13 ",null,null,"URBANIZAÇÃO",{"$nulls":5},4225.3599999999997]
[" 13.1 ","Código","Banco","Descrição","Tipo",null,"Und","Quant.","Valor Unit","Total"]
["Composição"," COMPOSIÇÃO - 023 ","Próprio","Cerca com mourões de concreto de 15x15cm, espaçados de 3m e cravados a 0,5m, escoras de 10x10cm nos cantos, e 9 fios de arame de aço ovalado 15x17.","SEDI - SERVIÇOS DIVERSOS",null,"m",1,83.2,83.2]
["Composição Auxiliar"," 88309 ","SINAPI","PEDREIRO COM ENCARGOS COMPLEMENTARES","SEDI - SERVIÇOS DIVERSOS",null,"H",0.33500000000000002,28.16,9.43]
["Composição Auxiliar"," 88316 ","SINAPI","SERVENTE COM ENCARGOS COMPLEMENTARES","SEDI - SERVIÇOS DIVERSOS",null,"H",0.67100000000000004,20.420000000000002,13.7]
["Composição Auxiliar"," 94975 ","SINAPI","CONCRETO FCK = 15MPA, TRAÇO 1:3,4:3,5 (EM MASSA SECA DE CIMENTO/ AREIA MÉDIA/ BRITA 1) - PREPARO MANUAL. AF_05/2021","FUES - FUNDAÇÕES E ESTRUTURAS",null,"m³",2.8799999999999999E-2,519.59,14.96]
["Insumo"," 00043130 ","SINAPI","ARAME GALVANIZADO 12 BWG, D = 2,76 MM (0,048 KG/M) OU 14 BWG, D = 2,11 MM (0,026 KG/M)","Material",null,"KG",9.8000000000000004E-2,21.4,2.1]
["Insumo"," 00000346 ","SINAPI","ARAME DE ACO OVALADO 15 X 17 ( 45,7 KG, 700 KGF), ROLO 1000 M","Material",null,"KG",0.40500000000000003,25.35,10.27]
["Insumo"," 00004111 ","SINAPI","ESCORA PRE-MOLDADA EM CONCRETO, *10 X 10* CM, H = 2,30M","Material",null,"UN",0.16,80.7,12.91]
["Insumo"," I1533 ","SEINFRA","MOURÃO CONCRETO BASE 15X15CM H=2.3 C/ 12 FUROS","Material",null,"UN",0.42,47.22,19.829999999999998]
[{"$nulls":4},"MO sem LS =>",9.4600000000000009,"LS =>",10.31,"MO com LS =>",19.77]
[{"$nulls":4},"Valor do BDI =>",21.91488,null,"Valor com BDI =>",null,105.11]
[{"$nulls":6},"Quant. =>",28,"Preço Total =>",2943.08]
[]
[" 13.2 ","Código","Banco","Descrição","Tipo",null,"Und","Quant.","Valor Unit","Total"]
["Composição"," COMPOSIÇÃO - 024 ","Próprio","Serviço de instalação de portão de ferro com suporte e batedor conforme projeto, incluso material","SEDI - SERVIÇOS DIVERSOS",null,"m²",1,676.63,676.63]
["Composição Auxiliar"," 88309 ","SINAPI","PEDREIRO COM ENCARGOS COMPLEMENTARES","SEDI - SERVIÇOS DIVERSOS",null,"H",1.5,28.16,42.24]
["Composição Auxiliar"," 88316 ","SINAPI","SERVENTE COM ENCARGOS COMPLEMENTARES","SEDI - SERVIÇOS DIVERSOS",null,"H",1.5,20.420000000000002,30.63]
["Insumo"," 00000367 ","SINAPI","AREIA GROSSA - POSTO JAZIDA/FORNECEDOR (RETIRADO NA JAZIDA, SEM TRANSPORTE)","Material",null,"m³",6.0999999999999999E-2,131.69,8.0299999999999994]
["Insumo"," 00001379 ","SINAPI","CIMENTO PORTLAND COMPOSTO CP II-32","Material",null,"KG",4.83,0.76,3.67]
["Insumo"," 00004948 ","SINAPI","PORTAO DE ABRIR / GIRO, EM GRADIL DE METALON REDONDO DE 3/4\"  VERTICAL, COM REQUADRO, ACABAMENTO NATURAL - COMPLETO","Material",null,"m²",1,592.05999999999995,592.05999999999995]
[{"$nulls":4},"MO sem LS =>",26.34,"LS =>",28.69,"MO com LS =>",55.03]
[{"$nulls":4},"Valor do BDI =>",178.22434200000001,null,"Valor com BDI =>",null,854.85]
[{"$nulls":6},"Quant. =>",1.5,"Preço Total =>",1282.28]
[]
[" 14 ",null,null,"OUTROS SERVIÇOS E INSUMOS EXCEPCIONAIS",{"$nulls":5},14281.89]
[" 14.2 ","Código","Banco","Descrição","Tipo",null,"Und","Quant.","Valor Unit","Total"]
["Composição"," COMPOSIÇÃO - 025 ","Próprio","Execução de tamponamento conforme especificação","SEDI - SERVIÇOS DIVERSOS",null,"m³",1,664.98,664.98]
["Composição Auxiliar"," 87316 ","SINAPI","ARGAMASSA TRAÇO 1:4 (EM VOLUME DE CIMENTO E AREIA GROSSA ÚMIDA) PARA CHAPISCO CONVENCIONAL, PREPARO MECÂNICO COM BETONEIRA 400 L. AF_08/2019","SEDI - SERVIÇOS DIVERSOS",null,"m³",1,516.87,516.87]
["Composição Auxiliar"," 88316 ","SINAPI","SERVENTE COM ENCARGOS COMPLEMENTARES","SEDI - SERVIÇOS DIVERSOS",null,"H",1,20.420000000000002,20.420000000000002]
["Insumo"," 00004721 ","SINAPI","PEDRA BRITADA N. 1 (9,5 a 19 MM) POSTO PEDREIRA/FORNECEDOR, SEM FRETE","Material",null,"m³",1,127.69,127.69]
[{"$nulls":4},"MO sem LS =>",52.51,"LS =>",57.19,"MO com LS =>",109.7]
[{"$nulls":4},"Valor do BDI =>",175.155732,null,"Valor com BDI =>",null,840.14]
[{"$nulls":6},"Quant. =>",0.08,"Preço Total =>",67.209999999999994]
[]
[" 14.3 ","Código","Banco","Descrição","Tipo",null,"Und","Quant.","Valor Unit","Total"]
["Insumo"," 13747 ","ORSE","Revestimento tubo liso aço sch-40 em 12\"","Serviços",null,"m",1,921.04,921.04]
[{"$nulls":4},"MO sem LS =>",0,"LS =>",0,"MO com LS =>",0]
[{"$nulls":4},"Valor do BDI =>",242.6,null,"Valor com BDI =>",null,1163.6400000000001]
[{"$nulls":6},"Quant. =>",6,"Preço Total =>",6981.84]
[]
[" 14.5 ","Código","Banco","Descrição","Tipo",null,"Und","Quant.","Valor Unit","Total"]
["Insumo"," M3929 ","SICRO3","Tubo em aço-carbono - E = 3,00 mm e D = 150 mm (6\")","Material",null,"m",1,171.2287,171.2287]
[{"$nulls":4},"MO sem LS =>",0,"LS =>",0,"MO com LS =>",0]
[{"$nulls":4},"Valor do BDI =>",45.1,null,"Valor com BDI =>",null,216.33]
[{"$nulls":6},"Quant. =>",6,"Preço Total =>",1297.98]
[]
[" 14.6 ","Código","Banco","Descrição","Tipo",null,"Und","Quant.","Valor Unit","Total"]
["Insumo"," M039706073 ","EMBASA","FILTRO NOLD EM AÇO GALVANIZADO DN 6\"","Material",null,"M",1,763.9,763.9]
[{"$nulls":4},"MO sem LS =>",0,"LS =>",0,"MO com LS =>",0]
[{"$nulls":4},"Valor do BDI =>",201.21,null,"Valor com BDI =>",null,965.11]
[{"$nulls":6},"Quant. =>",6,"Preço Total =>",5790.66]
[]
[" 14.7 ","Código","Banco","Descrição","Tipo",null,"Und","Quant.","Valor Unit","Total"]
["Composição"," COMPOSIÇÃO - 009 ","Próprio","Limpeza manual , remoção de cerca, capina e instalação dos equipamentos (área do poço, painéis solares, bebedouro e reservatório)","SEDI - SERVIÇOS DIVERSOS",null,"m²",1,1.63,1.63]
["Composição Auxiliar"," 88316 ","SINAPI","SERVENTE COM ENCARGOS COMPLEMENTARES","SEDI - SERVIÇOS DIVERSOS",null,"H",0.08,20.420000000000002,1.63]
[{"$nulls":4},"MO sem LS =>",0.56000000000000005,"LS =>",0.6,"MO com LS =>",1.1599999999999999]
[{"$nulls":4},"Valor do BDI =>",0.429342,null,"Valor com BDI =>",null,2.06]
[{"$nulls":6},"Quant. =>",70,"Preço Total =>",144.19999999999999]
[]
[]
[{"$nulls":5},"Total sem BDI",null,185192.5]
[{"$nulls":5},"Total do BDI",null,47233.9]
[{"$nulls":5},"Total Geral",null,232426.4]
[]
["_______________________________________________________________\n1ªGRR/UES"]

{"sheet":"Planilha1","index":7,"n_rows":0,"n_cols":0,"rows_kept":0,"cut":false,"hidden":false,"merged":[]}